Workbook

Sheet INICIO
D37: *REQUERIMIENTOS: EXCEL 2013 EN ADELANTE
C42: http://educacion.chihuahua.gob.mx/investigacion/

Sheet ENTRADA
D32: LEER | E32: IMPORTANTE: Este programa educativo se elaboró exclusivamente con fines de mejoramiento educativo. Sugerimos no hacer otro tipo de uso diferente, sobre todo aquél que perjudique a cualquier integrante de las comunidades escolares, como estudiantes, padres de familia, docentes, directivos, etc.

Sheet INDICE_1
A3: LEER ANTES DE COMENZAR
B27: NOTA: La información que se muestra en este prorgama proviene de tres fuentes: SEP, INEE y SEECH. El INEE aplicó PLANEA en algunos planteles de bachillerato como parte de una muestra. Estas escuelas cuentan con los datos de niveles de desempeño (4), pero no informa en su base de datos sobre el desempeño de los estudiantes en cada unidad de diagnóstico. Esa es la razón por la que, en algunas de estas escuelas, el análisis se verá un tanto limitado.

Sheet MRA_PROPÓSITOS

Sheet PLANEA EMS17

Sheet INDICE_2

Sheet CONTEXTO
B2: CONTEXTO DEL SUBSISTEMA POR ESCUELA
A3: NOMBRE DE LA ESCUELA | B3: COBACH 1
A4: CLAVE Y TURNO | B4: 08ECB0001I MATUTINO
A5: MUNICIPIO | B5: CHIHUAHUA
A6: LOCALIDAD | B6: CHIHUAHUA
A7: SUBSISTEMA | B7: COBACH
A8: MARGINALIDAD | B8: MUY BAJO
A9: ESTUDIANTES CONVOCADOS AL EXAMEN | B9: 70
A10: REPRESENTATIVIDAD EN LENGUAJE Y COMUNICACIÓN | B10: SÍ
A11: REPRESENTATIVIDAD EN MATEMÁTICAS | B11: SÍ
B12: 08ECB0001I VESPERTINO
B13: CHIHUAHUA
B14: CHIHUAHUA
B15: COBACH
B16: MUY BAJO
B17: 70
B18: SÍ
B19: SÍ
B20: COBACH 10
B21: 08ECB0012O MATUTINO
B22: CHIHUAHUA
B23: CHIHUAHUA
B24: COBACH
B25: MUY BAJO
B26: 70
B27: SÍ
B28: SÍ
B29: 08ECB0012O VESPERTINO
B30: CHIHUAHUA
B31: CHIHUAHUA
B32: COBACH
B33: MUY BAJO
B34: 70
B35: SÍ
B36: SÍ
B37: COBACH 11
B38: 08ECB0013N MATUTINO
B39: JUAREZ
B40: JUAREZ
B41: COBACH
B42: MUY BAJO
B43: 70
B44: SÍ
B45: SÍ
B46: 08ECB0013N VESPERTINO
B47: JUAREZ
B48: JUAREZ
B49: COBACH
B50: MUY BAJO
B51: 70
B52: SÍ
B53: SÍ
B54: COBACH 12
B55: 08ECB0014M MATUTINO
B56: HIDALGO DEL PARRAL
B57: HIDALGO DEL PARRAL
B58: COBACH
B59: MUY BAJO
B60: 70
B61: SÍ
B62: SÍ
B63: 08ECB0014M VESPERTINO
B64: HIDALGO DEL PARRAL
B65: HIDALGO DEL PARRAL
B66: COBACH
B67: MUY BAJO
B68: 70
B69: SÍ
B70: SÍ
B71: COBACH 13
B72: 08ECB0015L MATUTINO
B73: DELICIAS
B74: DELICIAS
B75: COBACH
B76: MUY BAJO
B77: 70
B78: SÍ
B79: SÍ
B80: 08ECB0015L VESPERTINO
B81: DELICIAS
B82: DELICIAS
B83: COBACH
B84: MUY BAJO
B85: 70
B86: SÍ
B87: SÍ
B88: COBACH 14
B89: 08ECB0016K MATUTINO
B90: CUAUHTEMOC
B91: CUAUHTEMOC
B92: COBACH
B93: MUY BAJO
B94: 70
B95: SÍ
B96: SÍ
B97: 08ECB0016K VESPERTINO
B98: CUAUHTEMOC
B99: CUAUHTEMOC
B100: COBACH
B101: MUY BAJO
B102: 70
B103: SÍ
B104: SÍ
B105: COBACH 15
B106: 08ECB0017J MATUTINO
B107: CAMARGO
B108: SANTA ROSALIA DE CAMARGO
B109: COBACH
B110: MUY BAJO
B111: 70
B112: SÍ
B113: SÍ
B114: 08ECB0017J VESPERTINO
B115: CAMARGO
B116: SANTA ROSALIA DE CAMARGO
B117: COBACH
B118: MUY BAJO
B119: 70
B120: SÍ
B121: SÍ
B122: COBACH 16
B123: 08ECB0022V MATUTINO
B124: JUAREZ
B125: JUAREZ
B126: COBACH
B127: MUY BAJO
B128: 255
B129: SÍ
B130: SÍ
B131: 08ECB0022V VESPERTINO
B132: JUAREZ
B133: JUAREZ
B134: COBACH
B135: MUY BAJO
B136: 70
B137: SÍ
B138: SÍ
B139: COBACH 17
B140: 08ECB0018I MATUTINO
B141: AHUMADA
B142: MIGUEL AHUMADA
B143: COBACH
B144: MUY BAJO
B145: 70
B146: SÍ
B147: SÍ
B148: COBACH 18
B149: 08ECB0019H MATUTINO
B150: NUEVO CASAS GRANDES
B151: NUEVO CASAS GRANDES
B152: COBACH
B153: MUY BAJO
B154: 70
B155: SÍ
B156: SÍ
B157: 08ECB0019H VESPERTINO
B158: NUEVO CASAS GRANDES
B159: NUEVO CASAS GRANDES
B160: COBACH
B161: MUY BAJO
B162: 70
B163: SÍ
B164: SÍ
B165: COBACH 19
B166: 08ECB0020X MATUTINO
B167: JUAREZ
B168: JUAREZ
B169: COBACH
B170: MUY BAJO
B171: 70
B172: SÍ
B173: SÍ
B174: 08ECB0020X VESPERTINO
B175: JUAREZ
B176: JUAREZ
B177: COBACH
B178: MUY BAJO
B179: 70
B180: SÍ
B181: SÍ
B182: COBACH 2
B183: 08ECB0002H MATUTINO
B184: CHIHUAHUA
B185: CHIHUAHUA
B186: COBACH
B187: MUY BAJO
B188: 70
B189: SÍ
B190: SÍ
B191: 08ECB0002H VESPERTINO
B192: CHIHUAHUA
B193: CHIHUAHUA
B194: COBACH
B195: MUY BAJO
B196: 70
B197: SÍ
B198: SÍ
B199: COBACH 20
B200: 08ECB0021W MATUTINO
B201: JIMENEZ
... 187 more rows

Sheet NIVELESdeDESEMP
E2: SUBSISTEMA | F2: NOMBRE DE LA ESCUELA | G2: MATEMÁTICAS
E3: DGETA | F3: CENTRO DE BACHILLERATO TECNOLOGICO AGROPECUARIO NO. 90 | G3: 2.842857143
E4: DGETA | F4: CENTRO DE BACHILLERATO TECNOLOGICO AGROPECUARIO NO. 170 | G4: 2.142857143
E5: DGETA | F5: CENTRO DE BACHILLERATO TECNOLOGICO AGROPECUARIO NO. 124 | G5: 2.114285714
E6: DGETA | F6: CENTRO DE BACHILLERATO TECNOLOGICO AGROPECUARIO NO. 214 | G6: 2.057142857
E7: DGETA | F7: CENTRO DE BACHILLERATO TECNOLOGICO AGROPECUARIO NO. 213 | G7: 1.971428571
E8: DGETA | F8: CENTRO DE BACHILLERATO TECNOLOGICO AGROPECUARIO NO. 147 | G8: 1.941176471
E9: DGETA | F9: CENTRO DE BACHILLERATO TECNOLOGICO AGROPECUARIO NO. 2 | G9: 1.84375
E10: DGETA | F10: CENTRO DE BACHILLERATO TECNOLOGICO AGROPECUARIO NO. 112 | G10: 1.842857143

Sheet UdeD_SUBSyESC
D2: MATEMÁTICAS: UNIDADES DE DIAGNÓSTICO EN EL SUBSISTEMA Y EN LAS ESCUELAS

Sheet CANTIDAD
AI4: UNIDADES DE DIAGNÓSTICO Y DESCRIPTORES CORRESPONDIENTES
AI5: MATEMÁTICAS
AI6: CANTIDAD
AI7: 21
AI8: Para identificar la fracción equivalente, tanto el numerador como el denominador se dividen entre 3 y luego entre 7. Se obtiene la fracción 2/3.
AI9: 22
E10: 1 | F10: 2 | G10: 3 | H10: 4 | I10: TOTAL | K10: I | L10: II | M10: III | N10: IV | AI10: Para calcular el resultado de la suma de fracciones se debe encontrar el denominador común, pudiendo obtenerse como la multiplicación de los tres denominadores que en este caso es 108. Luego se divide 108 entre cada denominador y se multiplica por su corr
A11: NOMBRE_CT | B11: NOFOLIO | C11: NVL_MAT | E11: =COUNTIF($C:$C,$E$10) -> 42 | F11: =COUNTIF($C:$C,$F$10) -> 27 | G11: =COUNTIF($C:$C,$G$10) -> 30 | H11: =COUNTIF($C:$C,$H$10) -> 3 | I11: =SUM(E11:H11) -> 102 | J11: NIVEL DE DESEMPEÑO PLANEA 17 LyC | K11: =(E11*100)/I11 -> 41.17647059 | L11: =(F11*100)/I11 -> 26.47058824 | M11: =(G11*100)/I11 -> 29.41176471 | N11: =(H11*100)/I11 -> 2.941176471 | O11: =SUM(K11:N11) -> 100 | AI11: 23
A12: CENTRO DE BACHILLERATO TECNOLOGICO AGROPECUARIO NO. 147 | B12: 080002606B16 | C12: 3 | AI12: Para calcular el resultado, una posible estrategia es unir los términos de la multiplicación en una sola fracción. Esto implica factorizar el 9 y el 4 como (3)(3) y (2)(2) respectivamente, y por último sustituir por la unidad los términos comunes en el nu
A13: CENTRO DE BACHILLERATO TECNOLOGICO AGROPECUARIO NO. 147 | B13: 080002607B16 | C13: 1 | AI13: 24
A14: CENTRO DE BACHILLERATO TECNOLOGICO AGROPECUARIO NO. 147 | B14: 080002608B16 | C14: 2 | AI14: Para obtener el resultado, se toma en cuenta tanto la jerarquía de operaciones como los corchetes y paréntesis y primero se realizan las operaciones que se encuentran más anidadas de la ecuación. Se continúa haciendo operaciones básicas (sumas, restas, mu
A15: CENTRO DE BACHILLERATO TECNOLOGICO AGROPECUARIO NO. 147 | B15: 080002609B16 | C15: 1 | AI15: 25
A16: CENTRO DE BACHILLERATO TECNOLOGICO AGROPECUARIO NO. 147 | B16: 080002611B16 | C16: 1 | AI16: Para obtener el resultado se considera que, en la división de fracciones, se requiere una multiplicación "cruzada" de numeradores y denominadores. Así, el numerador de la primera fracción se multiplica por denominador de la segunda fracción para obtener e
A17: CENTRO DE BACHILLERATO TECNOLOGICO AGROPECUARIO NO. 147 | B17: 080002613B16 | C17: 3 | AI17: 26
A18: CENTRO DE BACHILLERATO TECNOLOGICO AGROPECUARIO NO. 147 | B18: 080002614B16 | C18: 2 | AI18: Para identificar el número dentro del intervalo, una estrategia es convertir las fracciones a decimales obteniendo el cociente de los numeradores entre los denominadores. Después de ello se sabe que el valor a encontrar debe estar entre -0.2 y 0.8. Consid
A19: CENTRO DE BACHILLERATO TECNOLOGICO AGROPECUARIO NO. 147 | B19: 080002615B16 | C19: 1 | AI19: 27
A20: CENTRO DE BACHILLERATO TECNOLOGICO AGROPECUARIO NO. 147 | B20: 080002616B16 | C20: 1 | AI20: Para identificar la recta con el número de jabones que salieron a la venta, se restan los 8 jabones defectuosos a la producción de 15 jabones y se suman los 4 que se recuperaron (que corresponden a 2/4 o 1/2 de 8). Se obtienen 11 jabones que están represe
A21: CENTRO DE BACHILLERATO TECNOLOGICO AGROPECUARIO NO. 147 | B21: 080002617B16 | C21: 1 | AI21: 28
A22: CENTRO DE BACHILLERATO TECNOLOGICO AGROPECUARIO NO. 147 | B22: 080002618B16 | C22: 1 | AI22: Para identificar el producto con menor el costo por litro, una estrategia es, primero, dividir el precio por presentación de cada producto entre la cantidad de kilos. Así se sabe que cada kilo de Frutisa cuesta $15.5, de Juicelux $16, de Sabormax $15 y de
A23: CENTRO DE BACHILLERATO TECNOLOGICO AGROPECUARIO NO. 147 | B23: 080002620B16 | C23: 2 | AI23: 29
A24: CENTRO DE BACHILLERATO TECNOLOGICO AGROPECUARIO NO. 147 | B24: 080002621B16 | C24: 2 | AI24: Para determinar la distancia en metros que tuvo que recorrer el jugador, primero se obtiene la distancia en yardas multiplicando 5 segundos por las 8 yardas = 40 yardas. Luego, se multiplica el resultado por 0.91 para hacer la conversión a metros y se obt
A25: CENTRO DE BACHILLERATO TECNOLOGICO AGROPECUARIO NO. 147 | B25: 080002622B16 | C25: 1 | AI25: 30
A26: CENTRO DE BACHILLERATO TECNOLOGICO AGROPECUARIO NO. 147 | B26: 080002623B16 | C26: 2 | AI26: Para obtener el costo de los 55 cuadernos, una estrategia es plantear una ecuación considerando que 28 cuadernos equivalen a $1,360 y los 55 cuadernos equivalen a "x" pesos. Si se tiene que 28/55 = 1360/x se despeja x y se obtiene la opción C. 28 x = 1360
A27: CENTRO DE BACHILLERATO TECNOLOGICO AGROPECUARIO NO. 147 | B27: 080002624B16 | C27: 2 | AI27: 31
A28: CENTRO DE BACHILLERATO TECNOLOGICO AGROPECUARIO NO. 147 | B28: 080002625B16 | C28: 2 | AI28: Para obtener el porcentaje que se cobra de impuestos, se parte de que $1,200 es el 100% y se puede plantear una regla de tres [(225 x 100)/1,200]. Así, se obtiene que $225 equivalen a 18.75%.
A29: CENTRO DE BACHILLERATO TECNOLOGICO AGROPECUARIO NO. 147 | B29: 080002626B16 | C29: 3 | AI29: 32
A30: CENTRO DE BACHILLERATO TECNOLOGICO AGROPECUARIO NO. 147 | B30: 080002627B16 | C30: 2 | AI30: Para determinar el intervalo de dinero que gastará en total Enrique en su fiesta, una estrategia es pensar en términos de variaciones y, por un lado, sumar los valores más pequeños posibles correspondientes al gasto por invitado (30 x 100) + (30 x 300) =
A31: CENTRO DE BACHILLERATO TECNOLOGICO AGROPECUARIO NO. 147 | B31: 080002628B16 | C31: 2 | AI31: 33
A32: CENTRO DE BACHILLERATO TECNOLOGICO AGROPECUARIO NO. 147 | B32: 080002629B16 | C32: 1 | AI32: Para obtener la cardinalidad de los conjuntos se convierten a número las diferentes proporciones de personas según su actividad en el museo. Se toman las 3/4 partes de 60 obteniendo como resultado 45 para quienes entraron al cine. El resto sería 15 person
A33: CENTRO DE BACHILLERATO TECNOLOGICO AGROPECUARIO NO. 147 | B33: 080002630B16 | C33: 1 | AI33: 34
A34: CENTRO DE BACHILLERATO TECNOLOGICO AGROPECUARIO NO. 147 | B34: 080002631B16 | C34: 3 | AI34: Para obtener el cambio del billete de $200 se le resta la compra total, aplicando las siguientes operaciones:
A35: CENTRO DE BACHILLERATO TECNOLOGICO AGROPECUARIO NO. 147 | B35: 080002633B16 | C35: 1 | AI35: 35
A36: CENTRO DE BACHILLERATO TECNOLOGICO AGROPECUARIO NO. 147 | B36: 080002634B16 | C36: 1 | AI36: Para obtener el monto que recibió Esteban por su camioneta se calcula devaluación por devaluación. En la primera se tiene que determinar el 25% de 100,000 [aplicando una regla de tres (25 x 100,000)/100 = 25,000], restar 100,000 menos su 25% (100,000 - 25
A37: CENTRO DE BACHILLERATO TECNOLOGICO AGROPECUARIO NO. 147 | B37: 080002635B16 | C37: 3 | AI37: 36
A38: CENTRO DE BACHILLERATO TECNOLOGICO AGROPECUARIO NO. 147 | B38: 080002636B16 | C38: 4 | AI38: Para calcular la cantidad de litros que habrá en el tinaco en 2 horas una estrategia es, primero, obtener el tiempo que tomaría llenar el tinaco poniendo a trabajar a las tres llaves juntas. Para ello se plantea la ecuación: 1/5 + 1/6 + 1/30 = 1/x. El pro
A39: CENTRO DE BACHILLERATO TECNOLOGICO AGROPECUARIO NO. 147 | B39: 080002637B16 | C39: 3 | AI39: 37
A40: CENTRO DE BACHILLERATO TECNOLOGICO AGROPECUARIO NO. 147 | B40: 080002638B16 | C40: 3 | AI40: Para determinar la recta que representa el resultado, primero se obtiene el costo total del tiempo que pasó la persona en el café internet considerando que 20 minutos es igual a 1/3 y que todos los demás intervalos están expresados en fracciones de hora,
A41: CENTRO DE BACHILLERATO TECNOLOGICO AGROPECUARIO NO. 147 | B41: 080002640B16 | C41: 1 | AI41: 38
A42: CENTRO DE BACHILLERATO TECNOLOGICO AGROPECUARIO NO. 147 | B42: 080002641B16 | C42: 2 | AI42: Para obtener el lado de los cubos se calcula el Máximo Común Divisor de 88, 72 y 16 que es 8, debido a que es el número mayor que divide a los tres datos aunque quede residuo.
A43: CENTRO DE BACHILLERATO TECNOLOGICO AGROPECUARIO NO. 147 | B43: 080002642B16 | C43: 2 | AI43: 39
A44: CENTRO DE BACHILLERATO TECNOLOGICO AGROPECUARIO NO. 147 | B44: 080002643B16 | C44: 1 | AI44: Para encontrar la ganancia de las 5 semanas primero se calcula el 20% de cada semana considerando los datos de la gráfica (v. columna 3 de la tabla que aquí se muestra). Luego ese 20% se convierte a pesos multiplicando por 13 (v. columna 4) y por 13.5 (v.
A45: CENTRO DE BACHILLERATO TECNOLOGICO AGROPECUARIO NO. 147 | B45: 080002644B16 | C45: 1 | AI45: 40
A46: CENTRO DE BACHILLERATO TECNOLOGICO AGROPECUARIO NO. 147 | B46: 080002645B16 | C46: 1 | AI46: Para determinar el monto que tuvo que pagar la empresa de Silvia, primero se calculan los costos de los pedidos en pesos, previos al envío. Para ello, se multiplican los datos de la tabla por la cotización de cada día del euro (lunes 8,000 x 16.81 = 134 4
A47: CENTRO DE BACHILLERATO TECNOLOGICO AGROPECUARIO NO. 147 | B47: 080007436B16 | C47: 4
A48: CENTRO DE BACHILLERATO TECNOLOGICO AGROPECUARIO NO. 147 | B48: 080007438B16 | C48: 2
A49: CENTRO DE BACHILLERATO TECNOLOGICO AGROPECUARIO NO. 147 | B49: 080007439B16 | C49: 3
A50: CENTRO DE BACHILLERATO TECNOLOGICO AGROPECUARIO NO. 147 | B50: 080007440B16 | C50: 1
A51: CENTRO DE BACHILLERATO TECNOLOGICO AGROPECUARIO NO. 147 | B51: 080007441B16 | C51: 2
A52: CENTRO DE BACHILLERATO TECNOLOGICO AGROPECUARIO NO. 147 | B52: 080007442B16 | C52: 3
A53: CENTRO DE BACHILLERATO TECNOLOGICO AGROPECUARIO NO. 147 | B53: 080007443B16 | C53: 3
A54: CENTRO DE BACHILLERATO TECNOLOGICO AGROPECUARIO NO. 147 | B54: 080007444B16 | C54: 3
A55: CENTRO DE BACHILLERATO TECNOLOGICO AGROPECUARIO NO. 147 | B55: 080007445B16 | C55: 1
A56: CENTRO DE BACHILLERATO TECNOLOGICO AGROPECUARIO NO. 147 | B56: 080007446B16 | C56: 3
A57: CENTRO DE BACHILLERATO TECNOLOGICO AGROPECUARIO NO. 147 | B57: 080007447B16 | C57: 3
A58: CENTRO DE BACHILLERATO TECNOLOGICO AGROPECUARIO NO. 147 | B58: 080007448B16 | C58: 1
A59: CENTRO DE BACHILLERATO TECNOLOGICO AGROPECUARIO NO. 147 | B59: 080007449B16 | C59: 2
A60: CENTRO DE BACHILLERATO TECNOLOGICO AGROPECUARIO NO. 147 | B60: 080007450B16 | C60: 2
A61: CENTRO DE BACHILLERATO TECNOLOGICO AGROPECUARIO NO. 147 | B61: 080007451B16 | C61: 4
A62: CENTRO DE BACHILLERATO TECNOLOGICO AGROPECUARIO NO. 147 | B62: 080007452B16 | C62: 1
A63: CENTRO DE BACHILLERATO TECNOLOGICO AGROPECUARIO NO. 147 | B63: 080007453B16 | C63: 3
A64: CENTRO DE BACHILLERATO TECNOLOGICO AGROPECUARIO NO. 147 | B64: 080007455B16 | C64: 3
A65: CENTRO DE BACHILLERATO TECNOLOGICO AGROPECUARIO NO. 147 | B65: 080007457B16 | C65: 3
A66: CENTRO DE BACHILLERATO TECNOLOGICO AGROPECUARIO NO. 147 | B66: 080007458B16 | C66: 1
A67: CENTRO DE BACHILLERATO TECNOLOGICO AGROPECUARIO NO. 147 | B67: 080007459B16 | C67: 1
A68: CENTRO DE BACHILLERATO TECNOLOGICO AGROPECUARIO NO. 147 | B68: 080007460B16 | C68: 2
A69: CENTRO DE BACHILLERATO TECNOLOGICO AGROPECUARIO NO. 147 | B69: 080007461B16 | C69: 2
A70: CENTRO DE BACHILLERATO TECNOLOGICO AGROPECUARIO NO. 147 | B70: 080007462B16 | C70: 2
A71: CENTRO DE BACHILLERATO TECNOLOGICO AGROPECUARIO NO. 147 | B71: 080007464B16 | C71: 2
A72: CENTRO DE BACHILLERATO TECNOLOGICO AGROPECUARIO NO. 147 | B72: 080007465B16 | C72: 2
A73: CENTRO DE BACHILLERATO TECNOLOGICO AGROPECUARIO NO. 147 | B73: 080007466B16 | C73: 2
A74: CENTRO DE BACHILLERATO TECNOLOGICO AGROPECUARIO NO. 147 | B74: 080007468B16 | C74: 3
A75: CENTRO DE BACHILLERATO TECNOLOGICO AGROPECUARIO NO. 147 | B75: 080007470B16 | C75: 1
A76: CENTRO DE BACHILLERATO TECNOLOGICO AGROPECUARIO NO. 147 | B76: 080007471B16 | C76: 3
A77: CENTRO DE BACHILLERATO TECNOLOGICO AGROPECUARIO NO. 147 | B77: 080007472B16 | C77: 3
A78: CENTRO DE BACHILLERATO TECNOLOGICO AGROPECUARIO NO. 147 | B78: 080007474B16 | C78: 1
A79: CENTRO DE BACHILLERATO TECNOLOGICO AGROPECUARIO NO. 147 | B79: 080007475B16 | C79: 3
A80: CENTRO DE BACHILLERATO TECNOLOGICO AGROPECUARIO NO. 147 | B80: 080007476B16 | C80: 2
A81: CENTRO DE BACHILLERATO TECNOLOGICO AGROPECUARIO NO. 147 | B81: 080007477B16 | C81: 1
A82: CENTRO DE BACHILLERATO TECNOLOGICO AGROPECUARIO NO. 147 | B82: 080007478B16 | C82: 1
A83: CENTRO DE BACHILLERATO TECNOLOGICO AGROPECUARIO NO. 147 | B83: 080007479B16 | C83: 1
A84: CENTRO DE BACHILLERATO TECNOLOGICO AGROPECUARIO NO. 147 | B84: 080007482B16 | C84: 1
A85: CENTRO DE BACHILLERATO TECNOLOGICO AGROPECUARIO NO. 147 | B85: 080007483B16 | C85: 3
A86: CENTRO DE BACHILLERATO TECNOLOGICO AGROPECUARIO NO. 147 | B86: 080007484B16 | C86: 3
A87: CENTRO DE BACHILLERATO TECNOLOGICO AGROPECUARIO NO. 147 | B87: 080007485B16 | C87: 2
A88: CENTRO DE BACHILLERATO TECNOLOGICO AGROPECUARIO NO. 147 | B88: 080007486B16 | C88: 1
A89: CENTRO DE BACHILLERATO TECNOLOGICO AGROPECUARIO NO. 147 | B89: 080007487B16 | C89: 1
A90: CENTRO DE BACHILLERATO TECNOLOGICO AGROPECUARIO NO. 147 | B90: 080007488B16 | C90: 3
A91: CENTRO DE BACHILLERATO TECNOLOGICO AGROPECUARIO NO. 147 | B91: 080007489B16 | C91: 1
A92: CENTRO DE BACHILLERATO TECNOLOGICO AGROPECUARIO NO. 147 | B92: 080007491B16 | C92: 2
A93: CENTRO DE BACHILLERATO TECNOLOGICO AGROPECUARIO NO. 147 | B93: 080007492B16 | C93: 3
A94: CENTRO DE BACHILLERATO TECNOLOGICO AGROPECUARIO NO. 147 | B94: 080007493B16 | C94: 2
A95: CENTRO DE BACHILLERATO TECNOLOGICO AGROPECUARIO NO. 147 | B95: 080007494B16 | C95: 3
A96: CENTRO DE BACHILLERATO TECNOLOGICO AGROPECUARIO NO. 147 | B96: 080007495B16 | C96: 1
A97: CENTRO DE BACHILLERATO TECNOLOGICO AGROPECUARIO NO. 147 | B97: 080007496B16 | C97: 3
A98: CENTRO DE BACHILLERATO TECNOLOGICO AGROPECUARIO NO. 147 | B98: 080007497B16 | C98: 3
A99: CENTRO DE BACHILLERATO TECNOLOGICO AGROPECUARIO NO. 147 | B99: 080007498B16 | C99: 2
A100: CENTRO DE BACHILLERATO TECNOLOGICO AGROPECUARIO NO. 147 | B100: 080007499B16 | C100: 3
A101: CENTRO DE BACHILLERATO TECNOLOGICO AGROPECUARIO NO. 147 | B101: 080007501B16 | C101: 1
A102: CENTRO DE BACHILLERATO TECNOLOGICO AGROPECUARIO NO. 147 | B102: 080007502B16 | C102: 1
A103: CENTRO DE BACHILLERATO TECNOLOGICO AGROPECUARIO NO. 147 | B103: 080007503B16 | C103: 1
A104: CENTRO DE BACHILLERATO TECNOLOGICO AGROPECUARIO NO. 147 | B104: 080007505B16 | C104: 1
A105: CENTRO DE BACHILLERATO TECNOLOGICO AGROPECUARIO NO. 147 | B105: 080007506B16 | C105: 1
A106: CENTRO DE BACHILLERATO TECNOLOGICO AGROPECUARIO NO. 147 | B106: 080007507B16 | C106: 1
A107: CENTRO DE BACHILLERATO TECNOLOGICO AGROPECUARIO NO. 147 | B107: 080007508B16 | C107: 1
A108: CENTRO DE BACHILLERATO TECNOLOGICO AGROPECUARIO NO. 147 | B108: 080007509B16 | C108: 2
A109: CENTRO DE BACHILLERATO TECNOLOGICO AGROPECUARIO NO. 147 | B109: 080007511B16 | C109: 1
A110: CENTRO DE BACHILLERATO TECNOLOGICO AGROPECUARIO NO. 147 | B110: 080007512B16 | C110: 1
A111: CENTRO DE BACHILLERATO TECNOLOGICO AGROPECUARIO NO. 147 | B111: 080007513B16 | C111: 3
A112: CENTRO DE BACHILLERATO TECNOLOGICO AGROPECUARIO NO. 147 | B112: 080007514B16 | C112: 3
A113: CENTRO DE BACHILLERATO TECNOLOGICO AGROPECUARIO NO. 147 | B113: 080007515B16 | C113: 1

Sheet UdeD_ESPACIO Y FORMA
A2: PLANTEL O ESCUELA | B2: A_MAT_41 | C2: A_MAT_42 | D2: A_MAT_43 | E2: A_MAT_44 | F2: A_MAT_45 | G2: A_MAT_46 | H2: A_MAT_47 | I2: A_MAT_48 | J2: A_MAT_49 | K2: A_MAT_50 | L2: A_MAT_ 86 | M2: A_MAT_ 87 | N2: A_MAT_ 88 | O2: A_MAT_ 89 | P2: A_MAT_ 90 | Q2: A_MAT_ 91 | R2: A_MAT_ 92 | S2: A_MAT_ 93 | T2: A_MAT_ 94 | U2: A_MAT_ 95 | V2: UNIDADES DE DIAGNÓSTICO Y DESCRIPTORES CORRESPONDIENTES
A3: DGETA | V3: MATEMÁTICAS
A4: FEDERAL | V4: ESPACIO Y FORMA
A5: MATUTINO | V5: 41
A6: CENTRO DE BACHILLERATO TECNOLOGICO AGROPECUARIO NO. 147 | B6: 0.7894736842 | C6: 0.9175257732 | D6: 0.4193548387 | E6: 0.752688172 | F6: 0.4945054945 | G6: 0.3510638298 | H6: 0.2934782609 | I6: 0.4395604396 | J6: 0.623655914 | K6: 0.4945054945 | L6: 0.8118811881 | M6: 0.3235294118 | N6: 0.6435643564 | O6: 0.6060606061 | P6: 0.4455445545 | Q6: 0.44 | R6: 0.4897959184 | S6: 0.4489795918 | T6: 0.4387755102 | U6: 0.2736842105 | V6: Para identificar la figura que corresponde a la descripción deben interpretarse las indicaciones de la base del reactivo y traducir del lenguaje textual al lenguaje gráfico. La figura A tiene todos los elementos descritos, las demás figuras pueden descart
V7: 42
V8: Para identificar las figuras en que se descompone el juguete, se reconoce que la pirámide es el cuerpo principal en la imagen. Además, hay esferas pequeñas y un cilindro corto en el centro del juguete, lo que descarta las opciones A y D. Después, se desca
V9: 43
V10: Para identificar las coordenadas de la casa de Cynthia y la casa de Karina, se considera que la casa de Angélica, que es el número 1, coincide con el centro del plano cartesiano (0,0). A partir de ahí se cuentan las posiciones, primero en el eje X y luego
V11: 44
V12: Para identificar la imagen tridimensional se observa que, de acuerdo con la vista superior, existe una caja sostenida por tres prismas rectangulares que la atraviesan (lo que descarta a las opciones C y D). Después, atendiendo a las vistas frontal y super
V13: 45
V14: Para obtener la medida de la barda diagonal, se debe calcular el ancho y largo de la oficina, para lo que se requiere conocer el número de losetas de cada lado (que corresponde con los elementos 2 y 4 del listado). Posteriormente y contando con los datos
V15: 46
V16: Para identificar el movimiento debe notarse que la posición de la pieza para completar la figura mayor es: Por lo tanto, la pieza debe hacer un giro de 180°.
V17: 47
V18: Para identificar el número de diagonales desde un vértice, se realiza el doblez por la mitad y se nota que se pueden trazar dos diagonales de cada vértice de la figura resultante, como se muestra en la figura:
V19: 48
V20: Para obtener el área de la rejilla debe restarse la superficie de los 16 círculos (utilizando la fórmula π x r2, que es igual a 3.14 x r2 = 3.14 x 1) al área del cuadrado (16 x 16) según las siguientes operaciones: A = (16)(16) - (3.14)(1)(16) A = 256 -
V21: 49
V22: Para identificar la figura que debe elaborar el escultor, debe notarse que el cuerpo en la cima de la figura corresponde a medio prisma pentagonal, figura que solo se muestra en el inciso D.
V23: 50
V24: Para obtener el número de latas que caben en la caja, una estrategia es hacer la conversión de pulgadas a centímetros para saber cuánto mide cada lado de la lata (altura = 4 x 2.5 = 10 cm, diámetro = 2 x 2.5 = 5 cm). Después se calcula cuántas latas caben
V25: 86
V26: Para identificar la siguiente figura en la sucesión debe notarse que en la base se le hace girar, cada vez, 90º sobre su eje transversal. Así, la figura 1 que es igual a la D, aparece en las posiciones 1, 5, 9, 13, 17, ...
V27: 87
V28: Para encontrar el volumen del cilindro, se sustituyen los valores de la imagen en la fórmula: AB x H, es decir, área de la base por altura. Para calcular AB se tiene que aplicar a su vez la fórmula de la superficie de un círculo que es
V29: 88
V30: Para identificar el punto en el que está sentado Pedro, se relacionan ambas imágenes y se considera que la imagen capta la parte trasera de muchas sillas (lo que descarta A y B) y que se tiene mayor visión de la parte izquierda del teatro (lo que descarta
V31: 89
V32: Para calcular la longitud del segmento A se construye el triángulo rectángulo que hace falta para aplicar el Teorema de Pitágoras, restando a la longitud de la base mayor del trapecio la longitud de la base menor. Al aplicar el Teorema de Pitágoras re
V33: 90
V34: Para identificar la figura con el mayor volumen se calculan las dimensiones cúbicas de cada una considerando que la fórmula del volumen de la pirámide rectangular es igual a (l x l x h / 3) y la de un cono es (π x r2 x h / 3). La pirámide en la opción B e
V35: 91
V36: Para obtener el número de bocinas que tiene cada caja, una estrategia es convertir las medidas de la caja a pulgadas para manejar siempre las mismas unidades. Si se dividen las medidas entre 2.5 cm, se obtienen 20, 30 y 30 pulgadas, respectivamente. Poste
V37: 92
V38: Para obtener el número de caras del cuerpo mayor se identifica que el plano que corta al octaedro por ABC, genera una cara más de las que el poliedro ya tiene. Por tanto 8 + 1 = 9.
V39: 93
V40: Para obtener los centímetros de listón que se necesitan se debe calcular el perímetro del mantel. La sección circular corresponde a tres cuartas partes de una circunferencia, es decir, 0.75 de su perímetro, por lo que considerando la fórmula π x d se obti
V41: 94
V42: Para identificar la figura que se obtendrá se considera que el primer doblez se hace horizontalmente a lo largo de AC y luego se hace un corte simétrico pasando por B. Como no se indica algún giro, se descartan las opciones A, B y D.
V43: 95
V44: Para obtener los centímetros cuadrados de piel que requiere el artesano, se considera que el área del respaldo es la de un rectángulo cuyos lados miden 70 cm (110 cm de h menos 40 cm de a) y 60 cm (dos veces el radio del asiento), por tanto 70 x 60 = 4,20

Sheet UdeD_CAMBIOS Y RELACIONES
A4: ESCUELA O PLANTEL | B4: A_MAT_ 66 | C4: A_MAT_ 67 | D4: A_MAT_ 68 | E4: A_MAT_ 69 | F4: A_MAT_ 70 | G4: A_MAT_ 71 | H4: A_MAT_ 72 | I4: A_MAT_ 73 | J4: A_MAT_ 74 | K4: A_MAT_ 75 | L4: A_MAT_ 76 | M4: A_MAT_ 77 | N4: A_MAT_ 78 | O4: A_MAT_ 79 | P4: A_MAT_ 80 | Q4: A_MAT_ 81 | R4: A_MAT_ 82 | S4: A_MAT_ 83 | T4: A_MAT_ 84 | U4: A_MAT_ 85 | X4: UNIDADES DE DIAGNÓSTICO Y DESCRIPTORES CORRESPONDIENTES
A5: DGETA | X5: MATEMÁTICAS
A6: FEDERAL | X6: CAMBIOS Y RELACIONES
A7: MATUTINO | X7: 66
A8: CENTRO DE BACHILLERATO TECNOLOGICO AGROPECUARIO NO. 147 | B8: 0.4455445545 | C8: 0.5 | D8: 0.3402061856 | E8: 0.4897959184 | F8: 0.3265306122 | G8: 0.82 | H8: 0.4693877551 | I8: 0.4375 | J8: 0.46875 | K8: 0.45 | L8: 0.6060606061 | M8: 0.2755102041 | N8: 0.6666666667 | O8: 0.4791666667 | P8: 0.4949494949 | Q8: 0.3298969072 | R8: 0.2708333333 | S8: 0.4848484848 | T8: 0.2164948454 | U8: 0.2604166667 | X8: Para identificar la expresión algebraica se toma en cuenta la jerarquía de las operaciones. Debido a que en el primer factor se pide el cuadrado de un número, se descarta la opción B. El segundo factor es el cuadrado de una suma por lo que se descartan A
X9: 67
X10: Para identificar la gráfica que representa la expresión debe notarse que únicamente la gráfica D corresponde con una ecuación cúbica.
X11: 68
X12: Para obtener el resultado debe desarrollarse la función para -4 y 2. Posteriormente se dividen los valores.
X13: 69
X14: Para identificar la gráfica que corresponde con la expresión algebraica, se toma en cuenta que en la base del reactivo se presenta la ecuación de la circunferencia en su forma cónica, donde el centro de la misma esta en el punto (1,1) y el radio es 1.
X15: 70
X16: Para obtener el volumen del gas debe notarse que, si la presión se reduce a la mitad, entonces el volumen se duplica, por tanto se incrementa a 10 litros.
X17: 71
X18: Para estimar el promedio de computadores defectuosas almacenadas en el semestre, se suman los valores de cada mes y se dividen entre seis meses (20 + 55 + 35 + 60 + 10 + 35)/6 = 215/6 = 35.8.
X19: 72
X20: Para obtener el número que falta en la tabla, una posible estrategia es graficar los datos y establecer la relación entre el ahorro en pesos y el día del mes que puede expresarse mediante la ecuación: y = x2 + 2x + 1. Luego, para despejar y se sustituye e
X21: 73
X22: Para identificar la expresión algebraica que corresponde a las ventas por semana, se observa que la imagen muestra que la recta toca los puntos (2,5) y (3,7). La pendiente es igual a m = (y2 - y1) / (x2 - x1), es decir, m = (7 - 5)/(3 - 2) = 2/1 = 2. Desp
X23: 74
X24: Para obtener el ancho del terreno en metros, se parte de que la base tiene el doble de la altura menos 8 metros, por lo que es igual a 2x - 8. La ecuación para obtener el área del rectángulo queda (x)(2x - 8) = 330, lo que permite plantear la ecuación cua
X25: 75
X26: Para encontrar el precio de la pluma primero se plantea el sistema de ecuaciones. Si “L” representa el precio del lápiz y “p” el de la pluma, entonces: 4L + 8p = 40 (1) 6L + 2p = 25 (2) Si se despeja “L” de la ecuación (1) y se sustituye en la ecuación
X27: 76
X28: Para obtener la regla de correspondencia se evalúa n para cada uno de los datos de la tabla, descartando la opción A porque los datos tendrían que ser igual en ambas columnas. Luego se constata que, solo para la longitud igual a 3, se puede usar la regla
X29: 77
X30: Para identificar la expresión que representa la cantidad de metros que corren cada día Carlos y Susana, debe notarse gráficamente que la sucesión de Carlos es aritmética, y la de Susana es geométrica,
X31: 78
X32: Para identificar la frase que completa la relación entre los segundos y la distancia recorrida, se observa que al multiplicar los segundos por 2 y sumar 4 al resultado se cumplen todas las mediciones.
X33: 79
X34: Para saber qué artículos compraron los dos amigos se plantea y resuelve el siguiente sistema de ecuaciones: 5x + 3y = 550 (1) 7x + 2y = 660 (2) Utilizando cualquiera de los métodos para solución de ecuaciones se obtiene que x = 80 y = 50, de donde se con
X35: 80
X36: Para identificar la expresión algebraica que expresa el dinero que juntaron Luis, María y Felipe, se traduce la descripción textual en lenguaje algebraico. Si Felipe aporta x pesos, y Luis aporta el doble, esto es igual a 2x. María pone lo de Luis menos 7
X37: 81
X38: Para saber el segundo aproximado en que habrá la misma cantidad de ambas bacterias, se requiere conjuntar la información de la gráfica y la tabla. De la primera se pueden extraer los puntos (0,0), (2,4), (4,16) y (6,36), de donde se deduce que la función
X39: 82
X40: Para identificar la expresión que ilustra la variación de velocidad, se observa que en el intervalo del minuto 13 al 20 la pendiente es negativa (lo que descarta las opciones C y D). Para calcular el valor exacto se ubican los puntos (13, 80) y (20, 40) y
X41: 83
X42: Para determinar el consumo de litros de pintura si Pedro y Juan trabajan 8 horas, se debe observar que la gráfica muestra que Pedro pinta 3 m2 por hora, mientras que Juan pinta 4 m2 en el mismo tiempo. Entonces, si en 8 horas Pedro pinta 3 x 8 = 24 m2, y
X43: 84
X44: Para identificar la recta paralela de la ecuación y - 2x - 3 = 0 pueden calcularse los puntos que atraviesa la recta con el eje X (cuando y es 0 x es igual a -3/2) y con el eje Y (cuando x es 0 y es igual a 3), y luego desplazar la recta de forma que la o
X45: 85
X46: Para identificar el segundo y distancia en que Ana alcanzará a Carla, una estrategia es igualar la distancia que cada una recorre con su respectiva rapidez. Para ello, en principio y con los datos de la gráfica, se puede calcular la rapidez de Carla obten

Sheet RESPUESTAS_MAT
BW1: subsistema y plantel
BW2: DGETA
BW3: CENTRO DE BACHILLERATO TECNOLOGICO AGROPECUARIO NO. 147
A10: R_MAT_21 | B10: R_MAT_22 | C10: R_MAT_23 | D10: R_MAT_24 | E10: R_MAT_25 | F10: R_MAT_26 | G10: R_MAT_27 | H10: R_MAT_28 | I10: R_MAT_29 | J10: R_MAT_30 | K10: R_MAT_31 | L10: R_MAT_32 | M10: R_MAT_33 | N10: R_MAT_34 | O10: R_MAT_35 | P10: R_MAT_36 | Q10: R_MAT_37 | R10: R_MAT_38 | S10: R_MAT_39 | T10: R_MAT_40 | U10: R_MAT_41 | V10: R_MAT_42 | W10: R_MAT_43 | X10: R_MAT_44 | Y10: R_MAT_45 | Z10: R_MAT_46 | AA10: R_MAT_47 | AB10: R_MAT_48 | AC10: R_MAT_49 | AD10: R_MAT_ 50 | AE10: R_MAT_ 66 | AF10: R_MAT_ 67 | AG10: R_MAT_ 68 | AH10: R_MAT_69 | AI10: R_MAT_70 | AJ10: R_MAT_ 71 | AK10: R_MAT_ 72 | AL10: R_MAT_ 73 | AM10: R_MAT_ 74 | AN10: R_MAT_ 75 | AO10: R_MAT_ 76 | AP10: R_MAT_ 77 | AQ10: R_MAT_ 78 | AR10: R_MAT_ 79 | AS10: R_MAT_ 80 | AT10: R_MAT_ 81 | AU10: R_MAT_ 82 | AV10: R_MAT_ 83 | AW10: R_MAT_ 84 | AX10: R_MAT_ 85 | AY10: R_MAT_ 86 | AZ10: R_MAT_ 87 | BA10: R_MAT_ 88 | BB10: R_MAT_ 89 | BC10: R_MAT_ 90 | BD10: R_MAT_ 91 | BE10: R_MAT_ 92 | BF10: R_MAT_ 93 | BG10: R_MAT_ 94 | BH10: R_MAT_ 95
A11: (en blanco) | B11: 2 | C11: 3 | D11: (en blanco) | E11: 1 | F11: 4 | G11: 4 | H11: 4 | I11: 1 | J11: 3 | K11: 1 | L11: 4 | M11: 1 | N11: (en blanco) | O11: (en blanco) | P11: (en blanco) | Q11: (en blanco) | R11: (en blanco) | S11: (en blanco) | T11: (en blanco) | U11: 1 | V11: 2 | W11: (en blanco) | X11: 2 | Y11: (en blanco) | Z11: 3 | AA11: (en blanco) | AB11: (en blanco) | AC11: 4 | AD11: (en blanco) | AE11: 4 | AF11: 4 | AG11: (en blanco) | AH11: 3 | AI11: (en blanco) | AJ11: 3 | AK11: 2 | AL11: 2 | AM11: 1 | AN11: 3 | AO11: 4 | AP11: (en blanco) | AQ11: 3 | AR11: 3 | AS11: 3 | AT11: 4 | AU11: 2 | AV11: 4 | AW11: 4 | AX11: (en blanco) | AY11: 4 | AZ11: 4 | BA11: 2 | BB11: (en blanco) | BC11: (en blanco) | BD11: (en blanco) | BE11: (en blanco) | BF11: (en blanco) | BG11: 3 | BH11: (en blanco)
A12: (en blanco) | B12: 3 | C12: 4 | D12: 4 | E12: 4 | F12: 4 | G12: 2 | H12: 4 | I12: 2 | J12: 3 | K12: 1 | L12: 4 | M12: 1 | N12: 2 | O12: 1 | P12: 3 | Q12: 2 | R12: 3 | S12: 3 | T12: (en blanco) | U12: (en blanco) | V12: (en blanco) | W12: (en blanco) | X12: (en blanco) | Y12: (en blanco) | Z12: (en blanco) | AA12: (en blanco) | AB12: (en blanco) | AC12: (en blanco) | AD12: (en blanco) | AE12: 4 | AF12: 4 | AG12: 3 | AH12: 3 | AI12: 1 | AJ12: 3 | AK12: 2 | AL12: 2 | AM12: 1 | AN12: 2 | AO12: 2 | AP12: 1 | AQ12: 3 | AR12: 3 | AS12: 4 | AT12: 3 | AU12: 1 | AV12: 1 | AW12: 3 | AX12: 2 | AY12: 4 | AZ12: 3 | BA12: 3 | BB12: 1 | BC12: 3 | BD12: 2 | BE12: 2 | BF12: 3 | BG12: 2 | BH12: 2
A13: (en blanco) | B13: 4 | C13: (en blanco) | D13: 1 | E13: 4 | F13: 4 | G13: 4 | H13: 3 | I13: 1 | J13: 3 | K13: 2 | L13: 4 | M13: 2 | N13: 2 | O13: 1 | P13: 4 | Q13: 1 | R13: 2 | S13: (en blanco) | T13: (en blanco) | U13: 4 | V13: 4 | W13: 3 | X13: 1 | Y13: 1 | Z13: 2 | AA13: 4 | AB13: 1 | AC13: 1 | AD13: 3 | AE13: 4 | AF13: 2 | AG13: 3 | AH13: 3 | AI13: 1 | AJ13: 3 | AK13: 2 | AL13: 3 | AM13: 3 | AN13: 4 | AO13: 4 | AP13: 2 | AQ13: 4 | AR13: 1 | AS13: 3 | AT13: 2 | AU13: 1 | AV13: 2 | AW13: 4 | AX13: 3 | AY13: 4 | AZ13: 2 | BA13: 1 | BB13: 1 | BC13: 3 | BD13: 3 | BE13: 3 | BF13: 2 | BG13: 1 | BH13: 2 | BJ13: 1 | BK13: 2 | BL13: 3 | BM13: 4 | BP13: CANTIDAD DE ESTUDIANTES | BQ13: REACTIVO | BR13: A | BS13: B | BT13: C | BU13: D | BV13: TOTAL
A14: (en blanco) | B14: 4 | C14: 3 | D14: 3 | E14: 1 | F14: 3 | G14: 2 | H14: 2 | I14: 1 | J14: (en blanco) | K14: (en blanco) | L14: (en blanco) | M14: (en blanco) | N14: (en blanco) | O14: (en blanco) | P14: (en blanco) | Q14: (en blanco) | R14: (en blanco) | S14: (en blanco) | T14: (en blanco) | U14: (en blanco) | V14: (en blanco) | W14: (en blanco) | X14: (en blanco) | Y14: (en blanco) | Z14: (en blanco) | AA14: (en blanco) | AB14: (en blanco) | AC14: (en blanco) | AD14: (en blanco) | AE14: 4 | AF14: 2 | AG14: (en blanco) | AH14: (en blanco) | AI14: (en blanco) | AJ14: (en blanco) | AK14: 2 | AL14: (en blanco) | AM14: (en blanco) | AN14: 3 | AO14: 3 | AP14: 4 | AQ14: 3 | AR14: (en blanco) | AS14: 3 | AT14: (en blanco) | AU14: 2 | AV14: (en blanco) | AW14: 2 | AX14: (en blanco) | AY14: 4 | AZ14: 3 | BA14: 2 | BB14: 1 | BC14: 1 | BD14: 2 | BE14: 3 | BF14: (en blanco) | BG14: 3 | BH14: 4 | BI14: R_M_21 | BJ14: =COUNTIF($A:$A,$BJ$13) -> 20 | BK14: =COUNTIF($A:$A,$BK$13) -> 12 | BL14: =COUNTIF($A:$A,$BL$13) -> 59 | BM14: =COUNTIF($A:$A,$BM$13) -> 7 | BP14: =SUM(BJ14:BM14) -> 98 | BQ14: R_M_21 | BR14: =(BJ14*100)/BP14 -> 20.40816327 | BS14: =(BK14*100)/BP14 -> 12.24489796 | BT14: =(BL14*100)/BP14 -> 60.20408163 | BU14: =(BM14*100)/BP14 -> 7.142857143 | BV14: =SUM(BR14:BU14) -> 100
A15: Total (en blanco) | BI15: R_M_22 | BJ15: =COUNTIF($B:$B,$BJ$13) -> 6 | BK15: =COUNTIF($B:$B,$BK$13) -> 14 | BL15: =COUNTIF($B:$B,$BL$13) -> 22 | BM15: =COUNTIF($B:$B,$BM$13) -> 59 | BP15: 101 | BQ15: R_M_22 | BR15: 5.940594059 | BS15: 13.86138614 | BT15: 21.78217822 | BU15: 58.41584158 | BV15: 100
A16: 1 | B16: 1 | C16: 1 | D16: 3 | E16: 4 | F16: 3 | G16: (en blanco) | H16: 1 | I16: 1 | J16: 1 | K16: (en blanco) | L16: 2 | M16: 3 | N16: 1 | O16: 2 | P16: 1 | Q16: 1 | R16: 3 | S16: 2 | T16: 2 | U16: 1 | V16: 2 | W16: 3 | X16: 2 | Y16: 1 | Z16: 1 | AA16: 4 | AB16: 1 | AC16: 4 | AD16: 2 | AE16: 1 | AF16: 1 | AG16: 1 | AH16: 4 | AI16: 1 | AJ16: 3 | AK16: 2 | AL16: 2 | AM16: 4 | AN16: 3 | AO16: 4 | AP16: 1 | AQ16: 3 | AR16: 2 | AS16: 4 | AT16: 2 | AU16: 2 | AV16: 3 | AW16: 4 | AX16: 3 | AY16: 4 | AZ16: 4 | BA16: 3 | BB16: 1 | BC16: 4 | BD16: 2 | BE16: 2 | BF16: 2 | BG16: 1 | BH16: 3 | BI16: R_M_23 | BJ16: =COUNTIF($C:$C,$BJ$13) -> 9 | BK16: =COUNTIF($C:$C,$BK$13) -> 9 | BL16: =COUNTIF($C:$C,$BL$13) -> 70 | BM16: =COUNTIF($C:$C,$BM$13) -> 13 | BP16: 101 | BQ16: R_M_23 | BR16: 8.910891089 | BS16: 8.910891089 | BT16: 69.30693069 | BU16: 12.87128713 | BV16: 100
A17: 1 | B17: 1 | C17: 3 | D17: 1 | E17: 1 | F17: 3 | G17: 4 | H17: 4 | I17: 1 | J17: 3 | K17: 1 | L17: 4 | M17: 1 | N17: 2 | O17: 4 | P17: 4 | Q17: 2 | R17: 1 | S17: 3 | T17: 3 | U17: 1 | V17: 2 | W17: 3 | X17: 2 | Y17: 4 | Z17: 1 | AA17: 3 | AB17: 3 | AC17: 4 | AD17: 2 | AE17: 2 | AF17: 4 | AG17: 2 | AH17: 1 | AI17: 2 | AJ17: 3 | AK17: 2 | AL17: 2 | AM17: 2 | AN17: 4 | AO17: 4 | AP17: 2 | AQ17: 3 | AR17: 3 | AS17: 3 | AT17: 4 | AU17: 4 | AV17: 4 | AW17: 1 | AX17: 3 | AY17: 4 | AZ17: 1 | BA17: 3 | BB17: 2 | BC17: 2 | BD17: 3 | BE17: 1 | BF17: 4 | BG17: 2 | BH17: 3 | BI17: R_M_24 | BJ17: =COUNTIF($D:$D,$BJ$13) -> 21 | BK17: =COUNTIF($D:$D,$BK$13) -> 11 | BL17: =COUNTIF($D:$D,$BL$13) -> 61 | BM17: =COUNTIF($D:$D,$BM$13) -> 6 | BP17: 99 | BQ17: R_M_24 | BR17: 21.21212121 | BS17: 11.11111111 | BT17: 61.61616162 | BU17: 6.060606061 | BV17: 100
A18: 1 | B18: 2 | C18: 2 | D18: 2 | E18: 4 | F18: 4 | G18: 4 | H18: 1 | I18: 2 | J18: 2 | K18: 4 | L18: 4 | M18: 4 | N18: 2 | O18: 2 | P18: 3 | Q18: 4 | R18: 3 | S18: 3 | T18: 2 | U18: 1 | V18: 2 | W18: 1 | X18: 4 | Y18: 4 | Z18: 3 | AA18: 2 | AB18: 3 | AC18: 4 | AD18: 3 | AE18: 2 | AF18: 4 | AG18: 1 | AH18: 4 | AI18: 1 | AJ18: 3 | AK18: 1 | AL18: 3 | AM18: 4 | AN18: 3 | AO18: 2 | AP18: 4 | AQ18: 1 | AR18: 1 | AS18: 4 | AT18: 1 | AU18: 1 | AV18: 4 | AW18: 1 | AX18: 3 | AY18: 4 | AZ18: 1 | BA18: 4 | BB18: 2 | BC18: 2 | BD18: 2 | BE18: 2 | BF18: 1 | BG18: 1 | BH18: 2 | BI18: R_M_25 | BJ18: =COUNTIF($E:$E,$BJ$13) -> 69 | BK18: =COUNTIF($E:$E,$BK$13) -> 2 | BL18: =COUNTIF($E:$E,$BL$13) -> 21 | BM18: =COUNTIF($E:$E,$BM$13) -> 8 | BP18: 100 | BQ18: R_M_25 | BR18: 69 | BS18: 2 | BT18: 21 | BU18: 8 | BV18: 100
A19: 1 | B19: 3 | C19: 1 | D19: (en blanco) | E19: 1 | F19: 1 | G19: 1 | H19: 3 | I19: 4 | J19: 3 | K19: 2 | L19: 3 | M19: 2 | N19: 1 | O19: 3 | P19: 3 | Q19: 1 | R19: 3 | S19: 2 | T19: 2 | U19: 1 | V19: 2 | W19: 1 | X19: 2 | Y19: 4 | Z19: 1 | AA19: 2 | AB19: 4 | AC19: 4 | AD19: 1 | AE19: 1 | AF19: 4 | AG19: 2 | AH19: 2 | AI19: 1 | AJ19: 3 | AK19: 1 | AL19: 3 | AM19: 1 | AN19: 3 | AO19: 3 | AP19: 4 | AQ19: 1 | AR19: 3 | AS19: 4 | AT19: 4 | AU19: 4 | AV19: 4 | AW19: 3 | AX19: 1 | AY19: 4 | AZ19: 1 | BA19: 3 | BB19: 2 | BC19: (en blanco) | BD19: 1 | BE19: 1 | BF19: 2 | BG19: 3 | BH19: 2 | BI19: R_M_26 | BJ19: =COUNTIF($F:$F,$BJ$13) -> 10 | BK19: =COUNTIF($F:$F,$BK$13) -> 12 | BL19: =COUNTIF($F:$F,$BL$13) -> 56 | BM19: =COUNTIF($F:$F,$BM$13) -> 24 | BP19: 102 | BQ19: R_M_26 | BR19: 9.803921569 | BS19: 11.76470588 | BT19: 54.90196078 | BU19: 23.52941176 | BV19: 100
A20: 1 | B20: 3 | C20: 1 | D20: 3 | E20: 3 | F20: 3 | G20: 3 | H20: 3 | I20: 1 | J20: 3 | K20: 2 | L20: 3 | M20: 2 | N20: 3 | O20: 4 | P20: 4 | Q20: 2 | R20: 4 | S20: 2 | T20: 1 | U20: 1 | V20: 2 | W20: 4 | X20: 2 | Y20: 2 | Z20: 2 | AA20: 2 | AB20: 3 | AC20: 4 | AD20: 2 | AE20: 4 | AF20: 2 | AG20: 2 | AH20: 3 | AI20: 1 | AJ20: 3 | AK20: 2 | AL20: 4 | AM20: 2 | AN20: 4 | AO20: 1 | AP20: 4 | AQ20: 3 | AR20: 1 | AS20: 3 | AT20: 2 | AU20: 2 | AV20: 4 | AW20: 4 | AX20: 3 | AY20: 4 | AZ20: 1 | BA20: 1 | BB20: 1 | BC20: 2 | BD20: 3 | BE20: 3 | BF20: 1 | BG20: 3 | BH20: 2 | BI20: R_M_27 | BJ20: =COUNTIF($G:$G,$BJ$13) -> 15 | BK20: =COUNTIF($G:$G,$BK$13) -> 17 | BL20: =COUNTIF($G:$G,$BL$13) -> 17 | BM20: =COUNTIF($G:$G,$BM$13) -> 51 | BP20: 100 | BQ20: R_M_27 | BR20: 15 | BS20: 17 | BT20: 17 | BU20: 51 | BV20: 100
A21: 1 | B21: 3 | C21: 2 | D21: 3 | E21: (en blanco) | F21: 2 | G21: 4 | H21: 1 | I21: 2 | J21: 3 | K21: 1 | L21: 1 | M21: 4 | N21: 2 | O21: 1 | P21: 1 | Q21: 3 | R21: 4 | S21: 1 | T21: 2 | U21: 1 | V21: 2 | W21: 3 | X21: 3 | Y21: 1 | Z21: 1 | AA21: 4 | AB21: 2 | AC21: 4 | AD21: 1 | AE21: 4 | AF21: 4 | AG21: 3 | AH21: 2 | AI21: 2 | AJ21: 4 | AK21: 4 | AL21: 4 | AM21: 4 | AN21: 4 | AO21: 2 | AP21: 3 | AQ21: 2 | AR21: 1 | AS21: 2 | AT21: 2 | AU21: 4 | AV21: 2 | AW21: 4 | AX21: 1 | AY21: 2 | AZ21: 2 | BA21: 3 | BB21: 2 | BC21: 3 | BD21: 1 | BE21: 2 | BF21: 1 | BG21: 4 | BH21: 4 | BI21: R_M_28 | BJ21: =COUNTIF($H:$H,$BJ$13) -> 18 | BK21: =COUNTIF($H:$H,$BK$13) -> 6 | BL21: =COUNTIF($H:$H,$BL$13) -> 40 | BM21: =COUNTIF($H:$H,$BM$13) -> 36 | BP21: 100 | BQ21: R_M_28 | BR21: 18 | BS21: 6 | BT21: 40 | BU21: 36 | BV21: 100
A22: 1 | B22: 3 | C22: 2 | D22: 3 | E22: 1 | F22: 2 | G22: 2 | H22: 3 | I22: 4 | J22: 3 | K22: (en blanco) | L22: 3 | M22: 1 | N22: 3 | O22: 4 | P22: 2 | Q22: (en blanco) | R22: (en blanco) | S22: (en blanco) | T22: (en blanco) | U22: 1 | V22: 2 | W22: 1 | X22: 2 | Y22: 3 | Z22: 3 | AA22: 4 | AB22: 2 | AC22: 3 | AD22: 2 | AE22: 1 | AF22: 4 | AG22: (en blanco) | AH22: 2 | AI22: 1 | AJ22: 3 | AK22: 4 | AL22: 3 | AM22: 2 | AN22: (en blanco) | AO22: 4 | AP22: 4 | AQ22: 3 | AR22: 2 | AS22: 4 | AT22: (en blanco) | AU22: 4 | AV22: (en blanco) | AW22: 1 | AX22: 4 | AY22: 4 | AZ22: 4 | BA22: 2 | BB22: 3 | BC22: 4 | BD22: 3 | BE22: 2 | BF22: 3 | BG22: 1 | BH22: 2 | BI22: R_M_29 | BJ22: =COUNTIF($I:$I,$BJ$13) -> 67 | BK22: =COUNTIF($I:$I,$BK$13) -> 19 | BL22: =COUNTIF($I:$I,$BL$13) -> 6 | BM22: =COUNTIF($I:$I,$BM$13) -> 8 | BP22: 100 | BQ22: R_M_29 | BR22: 67 | BS22: 19 | BT22: 6 | BU22: 8 | BV22: 100
A23: 1 | B23: 3 | C23: 2 | D23: 3 | E23: 3 | F23: 2 | G23: 1 | H23: 4 | I23: 4 | J23: 3 | K23: 1 | L23: 4 | M23: 3 | N23: 1 | O23: 4 | P23: 4 | Q23: 4 | R23: 3 | S23: 1 | T23: 2 | U23: 1 | V23: 2 | W23: 1 | X23: 2 | Y23: 3 | Z23: 1 | AA23: 4 | AB23: 1 | AC23: 4 | AD23: 2 | AE23: 1 | AF23: 3 | AG23: 1 | AH23: 2 | AI23: 1 | AJ23: 3 | AK23: 1 | AL23: 2 | AM23: 4 | AN23: 3 | AO23: 1 | AP23: 2 | AQ23: 3 | AR23: 3 | AS23: 4 | AT23: 2 | AU23: 4 | AV23: 3 | AW23: 2 | AX23: 4 | AY23: 4 | AZ23: 2 | BA23: 3 | BB23: 4 | BC23: 3 | BD23: 1 | BE23: 4 | BF23: 2 | BG23: 1 | BH23: 1 | BI23: R_M_30 | BJ23: =COUNTIF($J:$J,$BJ$13) -> 2 | BK23: =COUNTIF($J:$J,$BK$13) -> 24 | BL23: =COUNTIF($J:$J,$BL$13) -> 68 | BM23: =COUNTIF($J:$J,$BM$13) -> 7 | BP23: 101 | BQ23: R_M_30 | BR23: 1.98019802 | BS23: 23.76237624 | BT23: 67.32673267 | BU23: 6.930693069 | BV23: 100
A24: 1 | B24: 3 | C24: 3 | D24: 2 | E24: 3 | F24: 3 | G24: 2 | H24: 3 | I24: 3 | J24: 3 | K24: 2 | L24: 1 | M24: 2 | N24: 2 | O24: 3 | P24: 2 | Q24: 2 | R24: 2 | S24: 3 | T24: 3 | U24: 1 | V24: 2 | W24: 1 | X24: 2 | Y24: 3 | Z24: 3 | AA24: 4 | AB24: 1 | AC24: 1 | AD24: 2 | AE24: 4 | AF24: 2 | AG24: 2 | AH24: 2 | AI24: 1 | AJ24: 4 | AK24: 4 | AL24: 3 | AM24: 2 | AN24: 4 | AO24: 4 | AP24: 3 | AQ24: 2 | AR24: 1 | AS24: 2 | AT24: 3 | AU24: 3 | AV24: 3 | AW24: 2 | AX24: 3 | AY24: 4 | AZ24: 1 | BA24: 2 | BB24: 1 | BC24: 3 | BD24: 3 | BE24: 3 | BF24: 2 | BG24: 3 | BH24: 3 | BI24: R_M_31 | BJ24: =COUNTIF($K:$K,$BJ$13) -> 61 | BK24: =COUNTIF($K:$K,$BK$13) -> 20 | BL24: =COUNTIF($K:$K,$BL$13) -> 8 | BM24: =COUNTIF($K:$K,$BM$13) -> 6 | BP24: 95 | BQ24: R_M_31 | BR24: 64.21052632 | BS24: 21.05263158 | BT24: 8.421052632 | BU24: 6.315789474 | BV24: 100
A25: 1 | B25: 3 | C25: 4 | D25: 3 | E25: 3 | F25: 3 | G25: 3 | H25: 3 | I25: 3 | J25: 2 | K25: 1 | L25: 1 | M25: 3 | N25: 1 | O25: 4 | P25: 3 | Q25: 1 | R25: 3 | S25: 3 | T25: 3 | U25: 1 | V25: 2 | W25: 1 | X25: 3 | Y25: 3 | Z25: 3 | AA25: 3 | AB25: 3 | AC25: 3 | AD25: 3 | AE25: 1 | AF25: 3 | AG25: 3 | AH25: 3 | AI25: 3 | AJ25: 3 | AK25: 1 | AL25: 3 | AM25: 3 | AN25: 2 | AO25: 1 | AP25: 3 | AQ25: 4 | AR25: 3 | AS25: 4 | AT25: 4 | AU25: 3 | AV25: 1 | AW25: 3 | AX25: 3 | AY25: 4 | AZ25: 1 | BA25: 3 | BB25: 4 | BC25: 3 | BD25: 3 | BE25: 1 | BF25: 4 | BG25: 1 | BH25: 3 | BI25: R_M_32 | BJ25: =COUNTIF($L:$L,$BJ$13) -> 10 | BK25: =COUNTIF($L:$L,$BK$13) -> 10 | BL25: =COUNTIF($L:$L,$BL$13) -> 23 | BM25: =COUNTIF($L:$L,$BM$13) -> 57 | BP25: 100 | BQ25: R_M_32 | BR25: 10 | BS25: 10 | BT25: 23 | BU25: 57 | BV25: 100
A26: 1 | B26: 4 | C26: 2 | D26: 3 | E26: 1 | F26: 1 | G26: (en blanco) | H26: (en blanco) | I26: (en blanco) | J26: 3 | K26: 3 | L26: 3 | M26: 3 | N26: 3 | O26: (en blanco) | P26: (en blanco) | Q26: 4 | R26: 4 | S26: 3 | T26: 1 | U26: 1 | V26: 2 | W26: 4 | X26: 2 | Y26: 4 | Z26: 1 | AA26: 3 | AB26: 2 | AC26: 3 | AD26: 4 | AE26: 4 | AF26: 4 | AG26: 4 | AH26: 4 | AI26: 1 | AJ26: 3 | AK26: 4 | AL26: 3 | AM26: 3 | AN26: 3 | AO26: 2 | AP26: (en blanco) | AQ26: 3 | AR26: 2 | AS26: 3 | AT26: 4 | AU26: (en blanco) | AV26: 3 | AW26: 3 | AX26: 4 | AY26: 4 | AZ26: 4 | BA26: 2 | BB26: 4 | BC26: 3 | BD26: 2 | BE26: 3 | BF26: 4 | BG26: 3 | BH26: 1 | BI26: R_M_33 | BJ26: =COUNTIF($M:$M,$BJ$13) -> 55 | BK26: =COUNTIF($M:$M,$BK$13) -> 16 | BL26: =COUNTIF($M:$M,$BL$13) -> 21 | BM26: =COUNTIF($M:$M,$BM$13) -> 7 | BP26: 99 | BQ26: R_M_33 | BR26: 55.55555556 | BS26: 16.16161616 | BT26: 21.21212121 | BU26: 7.070707071 | BV26: 100
A27: 1 | B27: 4 | C27: 3 | D27: 1 | E27: 1 | F27: 3 | G27: 4 | H27: 4 | I27: 1 | J27: 3 | K27: 1 | L27: 4 | M27: 1 | N27: 3 | O27: 4 | P27: 4 | Q27: 2 | R27: 3 | S27: 3 | T27: 2 | U27: 2 | V27: 2 | W27: 2 | X27: 2 | Y27: 2 | Z27: 2 | AA27: 2 | AB27: 2 | AC27: 2 | AD27: 2 | AE27: 2 | AF27: 4 | AG27: 3 | AH27: 1 | AI27: 1 | AJ27: 3 | AK27: 2 | AL27: 2 | AM27: 1 | AN27: 3 | AO27: 4 | AP27: 1 | AQ27: 3 | AR27: 3 | AS27: 3 | AT27: 3 | AU27: 1 | AV27: 3 | AW27: 4 | AX27: 3 | AY27: 4 | AZ27: 4 | BA27: 3 | BB27: 1 | BC27: 2 | BD27: 3 | BE27: 3 | BF27: 3 | BG27: 3 | BH27: 3 | BI27: R_M_34 | BJ27: =COUNTIF($N:$N,$BJ$13) -> 20 | BK27: =COUNTIF($N:$N,$BK$13) -> 49 | BL27: =COUNTIF($N:$N,$BL$13) -> 17 | BM27: =COUNTIF($N:$N,$BM$13) -> 10 | BP27: 96 | BQ27: R_M_34 | BR27: 20.83333333 | BS27: 51.04166667 | BT27: 17.70833333 | BU27: 10.41666667 | BV27: 100
A28: 1 | B28: 4 | C28: 3 | D28: 2 | E28: 3 | F28: 4 | G28: 4 | H28: 4 | I28: 1 | J28: 2 | K28: 2 | L28: 3 | M28: 3 | N28: 2 | O28: 4 | P28: 4 | Q28: 2 | R28: 3 | S28: 3 | T28: 1 | U28: 1 | V28: 2 | W28: 2 | X28: 2 | Y28: 4 | Z28: 2 | AA28: 4 | AB28: 3 | AC28: 4 | AD28: 4 | AE28: 2 | AF28: 4 | AG28: 4 | AH28: 1 | AI28: 2 | AJ28: 3 | AK28: 2 | AL28: 3 | AM28: 2 | AN28: 3 | AO28: 4 | AP28: 4 | AQ28: 3 | AR28: 4 | AS28: 2 | AT28: 4 | AU28: 4 | AV28: 4 | AW28: 2 | AX28: 4 | AY28: 4 | AZ28: 4 | BA28: 3 | BB28: 3 | BC28: 1 | BD28: 3 | BE28: 3 | BF28: 2 | BG28: 3 | BH28: 2 | BI28: R_M_35 | BJ28: =COUNTIF($O:$O,$BJ$13) -> 13 | BK28: =COUNTIF($O:$O,$BK$13) -> 10 | BL28: =COUNTIF($O:$O,$BL$13) -> 22 | BM28: =COUNTIF($O:$O,$BM13) -> 50 | BP28: 95 | BQ28: R_M_35 | BR28: 13.68421053 | BS28: 10.52631579 | BT28: 23.15789474 | BU28: 52.63157895 | BV28: 100
A29: 1 | B29: 4 | C29: 3 | D29: 3 | E29: 1 | F29: 3 | G29: 2 | H29: 2 | I29: 1 | J29: 3 | K29: 3 | L29: 3 | M29: 3 | N29: 2 | O29: 2 | P29: 2 | Q29: 3 | R29: 2 | S29: 2 | T29: 4 | U29: 4 | V29: 2 | W29: 3 | X29: 1 | Y29: 1 | Z29: 3 | AA29: 3 | AB29: 3 | AC29: 2 | AD29: 4 | AE29: 1 | AF29: 4 | AG29: 4 | AH29: 2 | AI29: 2 | AJ29: 3 | AK29: 2 | AL29: 3 | AM29: 3 | AN29: 3 | AO29: 3 | AP29: 4 | AQ29: 3 | AR29: 3 | AS29: 3 | AT29: 2 | AU29: 2 | AV29: 4 | AW29: 2 | AX29: 1 | AY29: 4 | AZ29: 2 | BA29: 1 | BB29: 3 | BC29: 4 | BD29: 2 | BE29: 3 | BF29: 4 | BG29: 4 | BH29: 2 | BI29: R_M_36 | BJ29: =COUNTIF($P:$P,$BJ$13) -> 9 | BK29: =COUNTIF($P:$P,$BK$13) -> 11 | BL29: =COUNTIF($P:$P,$BL$13) -> 24 | BM29: =COUNTIF($P:$P,$BM$13) -> 50 | BP29: 94 | BQ29: R_M_36 | BR29: 9.574468085 | BS29: 11.70212766 | BT29: 25.53191489 | BU29: 53.19148936 | BV29: 100
A30: 1 | B30: 4 | C30: 3 | D30: 3 | E30: 1 | F30: 3 | G30: 4 | H30: 3 | I30: 1 | J30: 2 | K30: 1 | L30: 4 | M30: 1 | N30: 2 | O30: 4 | P30: 3 | Q30: 3 | R30: 2 | S30: 3 | T30: 1 | U30: 4 | V30: 2 | W30: 1 | X30: 2 | Y30: 3 | Z30: 3 | AA30: 2 | AB30: 2 | AC30: 4 | AD30: 1 | AE30: 4 | AF30: 4 | AG30: 1 | AH30: 3 | AI30: 1 | AJ30: 4 | AK30: 2 | AL30: 2 | AM30: 3 | AN30: 4 | AO30: 2 | AP30: 1 | AQ30: 3 | AR30: 1 | AS30: 3 | AT30: 3 | AU30: 4 | AV30: 1 | AW30: 4 | AX30: 4 | AY30: 1 | AZ30: 3 | BA30: 1 | BB30: 1 | BC30: 2 | BD30: 2 | BE30: 3 | BF30: 3 | BG30: 2 | BH30: 2 | BI30: R_M_37 | BJ30: =COUNTIF($Q:$Q,$BJ$13) -> 11 | BK30: =COUNTIF($Q:$Q,$BK$13) -> 40 | BL30: =COUNTIF($Q:$Q,$BL$13) -> 25 | BM30: =COUNTIF($Q:$Q,$BM$13) -> 18 | BP30: 94 | BQ30: R_M_37 | BR30: 11.70212766 | BS30: 42.55319149 | BT30: 26.59574468 | BU30: 19.14893617 | BV30: 100
A31: 1 | B31: 4 | C31: 3 | D31: 3 | E31: 1 | F31: 3 | G31: 4 | H31: 3 | I31: 1 | J31: 3 | K31: 1 | L31: 4 | M31: 1 | N31: 2 | O31: 4 | P31: 1 | Q31: 4 | R31: (en blanco) | S31: (en blanco) | T31: (en blanco) | U31: 1 | V31: 2 | W31: 4 | X31: 2 | Y31: (en blanco) | Z31: 2 | AA31: 4 | AB31: (en blanco) | AC31: 4 | AD31: (en blanco) | AE31: 1 | AF31: 4 | AG31: 3 | AH31: 2 | AI31: 1 | AJ31: 3 | AK31: 2 | AL31: 2 | AM31: 1 | AN31: 3 | AO31: 4 | AP31: 3 | AQ31: 3 | AR31: 2 | AS31: 3 | AT31: 4 | AU31: 2 | AV31: 4 | AW31: 4 | AX31: 3 | AY31: 4 | AZ31: 4 | BA31: 3 | BB31: 1 | BC31: 2 | BD31: 2 | BE31: 3 | BF31: 2 | BG31: 2 | BH31: (en blanco) | BI31: R_M_39 | BJ31: =COUNTIF($R:$R,$BJ$13) -> 15 | BK31: =COUNTIF($R:$R,$BK$13) -> 19 | BL31: =COUNTIF($R:$R,$BL$13) -> 44 | BM31: =COUNTIF($R:$R,$BM$13) -> 15 | BP31: 93 | BQ31: R_M_39 | BR31: 16.12903226 | BS31: 20.43010753 | BT31: 47.31182796 | BU31: 16.12903226 | BV31: 100
A32: 1 | B32: 4 | C32: 3 | D32: 3 | E32: 1 | F32: 3 | G32: 4 | H32: 3 | I32: 1 | J32: 3 | K32: 4 | L32: 4 | M32: 1 | N32: 2 | O32: 4 | P32: 4 | Q32: 2 | R32: 1 | S32: 3 | T32: 3 | U32: 1 | V32: 2 | W32: 1 | X32: 2 | Y32: 2 | Z32: 1 | AA32: 2 | AB32: 2 | AC32: 3 | AD32: 2 | AE32: 1 | AF32: 2 | AG32: 3 | AH32: 3 | AI32: 2 | AJ32: 3 | AK32: 4 | AL32: 2 | AM32: 2 | AN32: 4 | AO32: 4 | AP32: 4 | AQ32: 3 | AR32: 4 | AS32: 3 | AT32: 3 | AU32: 1 | AV32: 3 | AW32: 2 | AX32: 2 | AY32: 4 | AZ32: 4 | BA32: 3 | BB32: 1 | BC32: 4 | BD32: 2 | BE32: 3 | BF32: 2 | BG32: 3 | BH32: 4 | BI32: R_M_41 | BJ32: =COUNTIF($S:$S,$BJ$13) -> 6 | BK32: =COUNTIF($S:$S,$BK$13) -> 14 | BL32: =COUNTIF($S:$S,$BL$13) -> 60 | BM32: =COUNTIF($S:$S,$BM$13) -> 12 | BP32: 92 | BQ32: R_M_41 | BR32: 6.52173913 | BS32: 15.2173913 | BT32: 65.2173913 | BU32: 13.04347826 | BV32: 100
A33: 1 | B33: 4 | C33: 3 | D33: 3 | E33: 1 | F33: 4 | G33: 4 | H33: 3 | I33: 1 | J33: 3 | K33: 2 | L33: 3 | M33: 1 | N33: 3 | O33: 3 | P33: 4 | Q33: 2 | R33: 2 | S33: 2 | T33: 2 | U33: 1 | V33: 2 | W33: 4 | X33: 2 | Y33: 2 | Z33: 1 | AA33: 3 | AB33: 2 | AC33: 3 | AD33: 3 | AE33: 4 | AF33: 3 | AG33: 4 | AH33: 3 | AI33: 1 | AJ33: 3 | AK33: 2 | AL33: 2 | AM33: 1 | AN33: 4 | AO33: 4 | AP33: 3 | AQ33: 3 | AR33: 3 | AS33: 2 | AT33: 3 | AU33: 1 | AV33: 3 | AW33: 2 | AX33: 3 | AY33: 4 | AZ33: 4 | BA33: 3 | BB33: 1 | BC33: 2 | BD33: 2 | BE33: 3 | BF33: 2 | BG33: 3 | BH33: 3 | BI33: R_M_42 | BJ33: =COUNTIF($T:$T,$BJ$13) -> 18 | BK33: =COUNTIF($T:$T,$BK$13) -> 32 | BL33: =COUNTIF($T:$T,$BL$13) -> 22 | BM33: =COUNTIF($T:$T,$BM$13) -> 15 | BP33: 87 | BQ33: R_M_42 | BR33: 20.68965517 | BS33: 36.7816092 | BT33: 25.28735632 | BU33: 17.24137931 | BV33: 100
A34: 1 | B34: 4 | C34: 3 | D34: 3 | E34: 3 | F34: 2 | G34: 4 | H34: 1 | I34: 1 | J34: 2 | K34: 1 | L34: 4 | M34: 2 | N34: 2 | O34: 3 | P34: 3 | Q34: 4 | R34: 4 | S34: (en blanco) | T34: (en blanco) | U34: (en blanco) | V34: (en blanco) | W34: (en blanco) | X34: (en blanco) | Y34: (en blanco) | Z34: (en blanco) | AA34: (en blanco) | AB34: (en blanco) | AC34: (en blanco) | AD34: (en blanco) | AE34: 1 | AF34: 4 | AG34: 3 | AH34: 3 | AI34: 1 | AJ34: 3 | AK34: 4 | AL34: 2 | AM34: 4 | AN34: 3 | AO34: 4 | AP34: 3 | AQ34: 4 | AR34: 1 | AS34: 3 | AT34: 3 | AU34: 4 | AV34: 1 | AW34: 4 | AX34: 3 | AY34: 4 | AZ34: 3 | BA34: 2 | BB34: 4 | BC34: 2 | BD34: 3 | BE34: 3 | BF34: 4 | BG34: 1 | BH34: 3 | BI34: R_M_43 | BJ34: =COUNTIF($U:$U,$BJ$13) -> 75 | BK34: =COUNTIF($U:$U,$BK$13) -> 10 | BL34: =COUNTIF($U:$U,$BL$13) -> 4 | BM34: =COUNTIF($U:$U,$BM$13) -> 6 | BP34: 95 | BQ34: R_M_43 | BR34: 78.94736842 | BS34: 10.52631579 | BT34: 4.210526316 | BU34: 6.315789474 | BV34: 100
A35: 1 | B35: 4 | C35: 3 | D35: 3 | E35: 3 | F35: 4 | G35: 4 | H35: 4 | I35: 1 | J35: 3 | K35: 2 | L35: 3 | M35: 3 | N35: (en blanco) | O35: 4 | P35: 4 | Q35: 2 | R35: 3 | S35: 3 | T35: 1 | U35: 1 | V35: 2 | W35: 2 | X35: 2 | Y35: 4 | Z35: 2 | AA35: 4 | AB35: 3 | AC35: 4 | AD35: 4 | AE35: 2 | AF35: 4 | AG35: 4 | AH35: 1 | AI35: 2 | AJ35: 3 | AK35: 2 | AL35: 3 | AM35: 2 | AN35: 3 | AO35: 4 | AP35: 4 | AQ35: 3 | AR35: (en blanco) | AS35: 2 | AT35: 4 | AU35: 4 | AV35: 4 | AW35: 1 | AX35: 4 | AY35: 4 | AZ35: 4 | BA35: 4 | BB35: 1 | BC35: 2 | BD35: 3 | BE35: 2 | BF35: 4 | BG35: 4 | BH35: 2 | BI35: R_M_44 | BJ35: =COUNTIF($V:$V,$BJ$13) -> 1 | BK35: =COUNTIF($V:$V,$BK$13) -> 89 | BL35: =COUNTIF($V:$V,$BL$13) -> 5 | BM35: =COUNTIF($V:$V,$BM$13) -> 2 | BP35: 97 | BQ35: R_M_44 | BR35: 1.030927835 | BS35: 91.75257732 | BT35: 5.154639175 | BU35: 2.06185567 | BV35: 100
A36: Total 1 | BI36: R_M_45 | BJ36: =COUNTIF($W:$W,$BJ$13) -> 23 | BK36: =COUNTIF($W:$W,$BK$13) -> 9 | BL36: =COUNTIF($W:$W,$BL$13) -> 22 | BM36: =COUNTIF($W:$W,$BM$13) -> 39 | BP36: 93 | BQ36: R_M_45 | BR36: 24.7311828 | BS36: 9.677419355 | BT36: 23.65591398 | BU36: 41.93548387 | BV36: 100
A37: 2 | B37: 1 | C37: 1 | D37: 3 | E37: 3 | F37: 4 | G37: 4 | H37: 4 | I37: 2 | J37: 4 | K37: 4 | L37: 1 | M37: 3 | N37: 1 | O37: 1 | P37: 2 | Q37: 3 | R37: 1 | S37: 1 | T37: 2 | U37: 4 | V37: 4 | W37: 1 | X37: 3 | Y37: 2 | Z37: 4 | AA37: 1 | AB37: 2 | AC37: 1 | AD37: 3 | AE37: 2 | AF37: 1 | AG37: 1 | AH37: 4 | AI37: 3 | AJ37: 4 | AK37: 4 | AL37: 1 | AM37: 1 | AN37: 1 | AO37: 2 | AP37: 1 | AQ37: 4 | AR37: 1 | AS37: 2 | AT37: 1 | AU37: 3 | AV37: 1 | AW37: 2 | AX37: 1 | AY37: 3 | AZ37: 3 | BA37: 4 | BB37: (en blanco) | BC37: 3 | BD37: 1 | BE37: 1 | BF37: 4 | BG37: 2 | BH37: 2 | BI37: R_M_46 | BJ37: =COUNTIF($X:$X,$BJ$13) -> 5 | BK37: =COUNTIF($X:$X,$BK$13) -> 70 | BL37: =COUNTIF($X:$X,$BL$13) -> 12 | BM37: =COUNTIF($X:$X,$BM$13) -> 6 | BP37: 93 | BQ37: R_M_46 | BR37: 5.376344086 | BS37: 75.2688172 | BT37: 12.90322581 | BU37: 6.451612903 | BV37: 100
A38: 2 | B38: 1 | C38: 3 | D38: 4 | E38: 4 | F38: 2 | G38: 1 | H38: 1 | I38: 4 | J38: 2 | K38: 4 | L38: 4 | M38: 4 | N38: 3 | O38: 1 | P38: 1 | Q38: 3 | R38: 2 | S38: 2 | T38: 3 | U38: 4 | V38: 3 | W38: 1 | X38: 3 | Y38: 3 | Z38: 3 | AA38: 3 | AB38: 3 | AC38: 1 | AD38: 3 | AE38: 1 | AF38: 4 | AG38: 3 | AH38: 1 | AI38: 4 | AJ38: 1 | AK38: 1 | AL38: 2 | AM38: 1 | AN38: 1 | AO38: 1 | AP38: 2 | AQ38: 2 | AR38: 4 | AS38: 2 | AT38: 3 | AU38: 3 | AV38: 1 | AW38: 3 | AX38: 4 | AY38: 1 | AZ38: 1 | BA38: 2 | BB38: 4 | BC38: 3 | BD38: 2 | BE38: 3 | BF38: 4 | BG38: (en blanco) | BH38: (en blanco) | BI38: R_M_47 | BJ38: =COUNTIF($Y:$Y,$BJ$13) -> 6 | BK38: =COUNTIF($Y:$Y,$BK$13) -> 20 | BL38: =COUNTIF($Y:$Y,$BL$13) -> 20 | BM38: =COUNTIF($Y:$Y,$BM$13) -> 45 | BP38: 91 | BQ38: R_M_47 | BR38: 6.593406593 | BS38: 21.97802198 | BT38: 21.97802198 | BU38: 49.45054945 | BV38: 100
A39: 2 | B39: 2 | C39: 2 | D39: 3 | E39: 1 | F39: 4 | G39: 4 | H39: 4 | I39: 1 | J39: 3 | K39: 1 | L39: 1 | M39: 1 | N39: 2 | O39: 4 | P39: 4 | Q39: 3 | R39: 3 | S39: 2 | T39: 4 | U39: 1 | V39: 2 | W39: 4 | X39: 2 | Y39: 3 | Z39: 1 | AA39: (en blanco) | AB39: (en blanco) | AC39: (en blanco) | AD39: (en blanco) | AE39: 1 | AF39: 4 | AG39: 4 | AH39: 3 | AI39: (en blanco) | AJ39: 3 | AK39: 1 | AL39: 3 | AM39: 1 | AN39: 4 | AO39: 3 | AP39: (en blanco) | AQ39: 3 | AR39: 1 | AS39: 3 | AT39: 2 | AU39: 3 | AV39: 3 | AW39: 1 | AX39: 2 | AY39: 4 | AZ39: 3 | BA39: 2 | BB39: 1 | BC39: 3 | BD39: 4 | BE39: 4 | BF39: 3 | BG39: 2 | BH39: 1 | BI39: R_M_48 | BJ39: =COUNTIF($Z:$Z,$BJ$13) -> 38 | BK39: =COUNTIF($Z:$Z,$BK$13) -> 33 | BL39: =COUNTIF($Z:$Z,$BL$13) -> 17 | BM39: =COUNTIF($Z:$Z,$BM$13) -> 6 | BP39: 94 | BQ39: R_M_48 | BR39: 40.42553191 | BS39: 35.10638298 | BT39: 18.08510638 | BU39: 6.382978723 | BV39: 100
A40: 2 | B40: 3 | C40: 1 | D40: 4 | E40: 3 | F40: 4 | G40: 4 | H40: 3 | I40: 4 | J40: 3 | K40: 1 | L40: 3 | M40: 1 | N40: 1 | O40: 4 | P40: 4 | Q40: 1 | R40: 3 | S40: 1 | T40: 3 | U40: 1 | V40: 2 | W40: 1 | X40: 4 | Y40: 4 | Z40: 1 | AA40: 4 | AB40: 3 | AC40: 3 | AD40: 2 | AE40: 2 | AF40: 4 | AG40: 1 | AH40: 4 | AI40: 3 | AJ40: 2 | AK40: 3 | AL40: 2 | AM40: 3 | AN40: 4 | AO40: 2 | AP40: 3 | AQ40: 2 | AR40: 1 | AS40: 3 | AT40: 1 | AU40: 1 | AV40: 3 | AW40: 2 | AX40: 2 | AY40: 3 | AZ40: 1 | BA40: (en blanco) | BB40: 2 | BC40: 2 | BD40: 2 | BE40: 3 | BF40: 3 | BG40: 3 | BH40: 2 | BI40: R_M_49 | BJ40: =COUNTIF($AA:$AA,$BJ$13) -> 9 | BK40: =COUNTIF($AA:$AA,$BK$13) -> 27 | BL40: =COUNTIF($AA:$AA,$BL$13) -> 28 | BM40: =COUNTIF($AA:$AA,$BM$13) -> 28 | BP40: 92 | BQ40: R_M_49 | BR40: 9.782608696 | BS40: 29.34782609 | BT40: 30.43478261 | BU40: 30.43478261 | BV40: 100
A41: 2 | B41: 3 | C41: 3 | D41: 2 | E41: 4 | F41: 3 | G41: 2 | H41: 4 | I41: 1 | J41: 2 | K41: 1 | L41: 4 | M41: 3 | N41: 1 | O41: 3 | P41: 2 | Q41: 4 | R41: 3 | S41: 2 | T41: 4 | U41: 1 | V41: 2 | W41: 4 | X41: 2 | Y41: 4 | Z41: 1 | AA41: 1 | AB41: 2 | AC41: 2 | AD41: 3 | AE41: 1 | AF41: 3 | AG41: 2 | AH41: 3 | AI41: 1 | AJ41: 3 | AK41: 2 | AL41: 4 | AM41: 2 | AN41: 3 | AO41: 4 | AP41: 4 | AQ41: 3 | AR41: 1 | AS41: 2 | AT41: 2 | AU41: 4 | AV41: 2 | AW41: 2 | AX41: 3 | AY41: 4 | AZ41: 1 | BA41: 3 | BB41: 4 | BC41: 3 | BD41: 3 | BE41: 3 | BF41: 1 | BG41: 3 | BH41: 2 | BI41: R_M_66 | BJ41: =COUNTIF($AB:$AB,$BJ$13) -> 13 | BK41: =COUNTIF($AB:$AB,$BK$13) -> 32 | BL41: =COUNTIF($AB:$AB,$BL$13) -> 40 | BM41: =COUNTIF($AB:$AB,$BM$13) -> 6 | BP41: 91 | BQ41: R_M_66 | BR41: 14.28571429 | BS41: 35.16483516 | BT41: 43.95604396 | BU41: 6.593406593 | BV41: 100
A42: 2 | B42: 3 | C42: 3 | D42: 3 | E42: 1 | F42: 4 | G42: 4 | H42: 3 | I42: 1 | J42: 3 | K42: 1 | L42: 3 | M42: 2 | N42: 2 | O42: 3 | P42: 4 | Q42: (en blanco) | R42: (en blanco) | S42: 3 | T42: (en blanco) | U42: (en blanco) | V42: (en blanco) | W42: (en blanco) | X42: (en blanco) | Y42: (en blanco) | Z42: (en blanco) | AA42: (en blanco) | AB42: (en blanco) | AC42: (en blanco) | AD42: (en blanco) | AE42: 1 | AF42: (en blanco) | AG42: 1 | AH42: 3 | AI42: 1 | AJ42: 3 | AK42: 1 | AL42: (en blanco) | AM42: (en blanco) | AN42: 4 | AO42: 4 | AP42: 4 | AQ42: 3 | AR42: 3 | AS42: 3 | AT42: 2 | AU42: (en blanco) | AV42: 4 | AW42: (en blanco) | AX42: (en blanco) | AY42: 1 | AZ42: 4 | BA42: 3 | BB42: 1 | BC42: 4 | BD42: 3 | BE42: (en blanco) | BF42: 3 | BG42: 2 | BH42: (en blanco) | BI42: R_M_67 | BJ42: =COUNTIF($AC:$AC,$BJ$13) -> 5 | BK42: =COUNTIF($AC:$AC,$BK$13) -> 17 | BL42: =COUNTIF($AC:$AC,$BL$13) -> 13 | BM42: =COUNTIF($AC:$AC,$BM$13) -> 58 | BP42: 93 | BQ42: R_M_67 | BR42: 5.376344086 | BS42: 18.27956989 | BT42: 13.97849462 | BU42: 62.3655914 | BV42: 100
A43: 2 | B43: 3 | C43: 4 | D43: 2 | E43: 3 | F43: 1 | G43: 2 | H43: 2 | I43: 2 | J43: 3 | K43: 2 | L43: 2 | M43: 4 | N43: 1 | O43: 2 | P43: 3 | Q43: 1 | R43: 3 | S43: 3 | T43: 2 | U43: 2 | V43: 2 | W43: 3 | X43: 2 | Y43: 4 | Z43: 3 | AA43: 4 | AB43: 2 | AC43: 3 | AD43: 2 | AE43: 4 | AF43: 4 | AG43: 1 | AH43: 2 | AI43: 3 | AJ43: 2 | AK43: 4 | AL43: 3 | AM43: 2 | AN43: 3 | AO43: 4 | AP43: 2 | AQ43: 3 | AR43: 4 | AS43: 4 | AT43: 4 | AU43: 4 | AV43: 4 | AW43: 1 | AX43: 4 | AY43: 4 | AZ43: 4 | BA43: 4 | BB43: 1 | BC43: 2 | BD43: 3 | BE43: 2 | BF43: 4 | BG43: 4 | BH43: 2 | BI43: R_M_68 | BJ43: =COUNTIF($AD:$AD,$BJ$13) -> 9 | BK43: =COUNTIF($AD:$AD,$BK$13) -> 24 | BL43: =COUNTIF($AD:$AD,$BL$13) -> 45 | BM43: =COUNTIF($AD:$AD,$BM$13) -> 13 | BP43: 91 | BQ43: R_M_68 | BR43: 9.89010989 | BS43: 26.37362637 | BT43: 49.45054945 | BU43: 14.28571429 | BV43: 100
A44: 2 | B44: 3 | C44: 4 | D44: 4 | E44: 3 | F44: 1 | G44: 3 | H44: 4 | I44: 2 | J44: 3 | K44: 2 | L44: 4 | M44: 2 | N44: 1 | O44: 4 | P44: 4 | Q44: 2 | R44: 3 | S44: 2 | T44: 1 | U44: 1 | V44: 2 | W44: 3 | X44: 2 | Y44: 4 | Z44: 1 | AA44: 3 | AB44: 1 | AC44: 4 | AD44: 4 | AE44: 4 | AF44: 4 | AG44: 3 | AH44: 3 | AI44: 1 | AJ44: 4 | AK44: 2 | AL44: 4 | AM44: 4 | AN44: 2 | AO44: 4 | AP44: 4 | AQ44: 3 | AR44: 2 | AS44: 4 | AT44: 1 | AU44: 2 | AV44: 4 | AW44: 4 | AX44: 2 | AY44: 4 | AZ44: 2 | BA44: 3 | BB44: 1 | BC44: 2 | BD44: 4 | BE44: 3 | BF44: 1 | BG44: 4 | BH44: 1 | BI44: R_M_69 | BJ44: =COUNTIF($AE:$AE,$BJ$13) -> 38 | BK44: =COUNTIF($AE:$AE,$BK$13) -> 17 | BL44: =COUNTIF($AE:$AE,$BL$13) -> 1 | BM44: =COUNTIF($AE:$AE,$BM$13) -> 45 | BP44: 101 | BQ44: R_M_69 | BR44: 37.62376238 | BS44: 16.83168317 | BT44: 0.9900990099 | BU44: 44.55445545 | BV44: 100
A45: 2 | B45: 4 | C45: 1 | D45: 4 | E45: 3 | F45: 1 | G45: 1 | H45: 3 | I45: 1 | J45: 2 | K45: 1 | L45: 1 | M45: 4 | N45: 2 | O45: 1 | P45: 1 | Q45: 3 | R45: 3 | S45: 3 | T45: 3 | U45: 1 | V45: 2 | W45: 3 | X45: 2 | Y45: 2 | Z45: 1 | AA45: 4 | AB45: 1 | AC45: 4 | AD45: 1 | AE45: 1 | AF45: 2 | AG45: 2 | AH45: 4 | AI45: 2 | AJ45: 2 | AK45: 1 | AL45: 2 | AM45: 3 | AN45: 4 | AO45: 2 | AP45: 4 | AQ45: 3 | AR45: 3 | AS45: 3 | AT45: 3 | AU45: 2 | AV45: 4 | AW45: 3 | AX45: 2 | AY45: 4 | AZ45: 1 | BA45: 3 | BB45: 2 | BC45: 4 | BD45: 3 | BE45: 3 | BF45: 3 | BG45: 3 | BH45: 2 | BI45: R_M_70 | BJ45: =COUNTIF($AF:$AF,$BJ$13) -> 17 | BK45: =COUNTIF($AF:$AF,$BK$13) -> 13 | BL45: =COUNTIF($AF:$AF,$BL$13) -> 19 | BM45: =COUNTIF($AF:$AF,$BM$13) -> 49 | BP45: 98 | BQ45: R_M_70 | BR45: 17.34693878 | BS45: 13.26530612 | BT45: 19.3877551 | BU45: 50 | BV45: 100
A46: 2 | B46: 4 | C46: 3 | D46: 1 | E46: 1 | F46: 4 | G46: 2 | H46: 3 | I46: 3 | J46: 2 | K46: 4 | L46: 4 | M46: 2 | N46: 1 | O46: 4 | P46: 3 | Q46: 2 | R46: 3 | S46: 4 | T46: 2 | U46: 1 | V46: 2 | W46: 1 | X46: 2 | Y46: 4 | Z46: 1 | AA46: 2 | AB46: 2 | AC46: 3 | AD46: 2 | AE46: 4 | AF46: 1 | AG46: 3 | AH46: 4 | AI46: 1 | AJ46: 3 | AK46: 4 | AL46: 3 | AM46: 2 | AN46: 4 | AO46: 4 | AP46: 1 | AQ46: 3 | AR46: 3 | AS46: 4 | AT46: 2 | AU46: 1 | AV46: 4 | AW46: 3 | AX46: 2 | AY46: 3 | AZ46: 1 | BA46: 4 | BB46: 2 | BC46: 2 | BD46: 2 | BE46: 3 | BF46: 1 | BG46: 3 | BH46: 2 | BI46: R_M_71 | BJ46: =COUNTIF($AG:$AG,$BJ$13) -> 19 | BK46: =COUNTIF($AG:$AG,$BK$13) -> 15 | BL46: =COUNTIF($AG:$AG,$BL$13) -> 30 | BM46: =COUNTIF($AG:$AG,$BM$13) -> 33 | BP46: =SUM(BJ46:BM46) -> 97 | BQ46: R_M_71 | BR46: =(BJ46*100)/BP46 -> 19.58762887 | BS46: =(BK46*100)/BP46 -> 15.46391753 | BT46: =(BL46*100)/BP46 -> 30.92783505 | BU46: =(BM46*100)/BP46 -> 34.02061856 | BV46: =SUM(BR46:BU46) -> 100
A47: 2 | B47: 4 | C47: 3 | D47: 1 | E47: 2 | F47: 4 | G47: 2 | H47: 1 | I47: 2 | J47: 3 | K47: 3 | L47: 2 | M47: 2 | N47: 1 | O47: 3 | P47: 4 | Q47: 4 | R47: 3 | S47: 1 | T47: 3 | U47: 1 | V47: 2 | W47: 1 | X47: 3 | Y47: 2 | Z47: 4 | AA47: 4 | AB47: 1 | AC47: 2 | AD47: 2 | AE47: 4 | AF47: 3 | AG47: 4 | AH47: 4 | AI47: 2 | AJ47: 3 | AK47: 4 | AL47: 2 | AM47: 2 | AN47: 4 | AO47: 4 | AP47: 2 | AQ47: 4 | AR47: 3 | AS47: 4 | AT47: 4 | AU47: 2 | AV47: 4 | AW47: 2 | AX47: 3 | AY47: 4 | AZ47: 2 | BA47: 2 | BB47: 1 | BC47: 4 | BD47: 4 | BE47: 4 | BF47: 3 | BG47: 1 | BH47: 3 | BI47: R_M_72 | BJ47: =COUNTIF($AH:$AH,$BJ$13) -> 13 | BK47: =COUNTIF($AH:$AH,$BK$13) -> 14 | BL47: =COUNTIF($AH:$AH,$BL$13) -> 48 | BM47: =COUNTIF($AH:$AH,$BM$13) -> 23 | BP47: 98 | BQ47: R_M_72 | BR47: 13.26530612 | BS47: 14.28571429 | BT47: 48.97959184 | BU47: 23.46938776 | BV47: 100
A48: 2 | B48: 4 | C48: 3 | D48: 3 | E48: 1 | F48: 3 | G48: 1 | H48: 1 | I48: 1 | J48: 3 | K48: 1 | L48: 3 | M48: 1 | N48: 1 | O48: 3 | P48: 4 | Q48: 2 | R48: 3 | S48: 3 | T48: 3 | U48: 1 | V48: 2 | W48: 3 | X48: 2 | Y48: 4 | Z48: 3 | AA48: 3 | AB48: 3 | AC48: 2 | AD48: 3 | AE48: 4 | AF48: 4 | AG48: 3 | AH48: 3 | AI48: 1 | AJ48: 3 | AK48: (en blanco) | AL48: 2 | AM48: 2 | AN48: 3 | AO48: 4 | AP48: 3 | AQ48: 3 | AR48: 3 | AS48: 3 | AT48: 3 | AU48: 2 | AV48: 4 | AW48: 1 | AX48: 3 | AY48: 4 | AZ48: 4 | BA48: 3 | BB48: 1 | BC48: 3 | BD48: 1 | BE48: 3 | BF48: 2 | BG48: 3 | BH48: 2 | BI48: R_M_73 | BJ48: =COUNTIF($AI:$AI,$BJ$13) -> 57 | BK48: =COUNTIF($AI:$AI,$BK$13) -> 32 | BL48: =COUNTIF($AI:$AI,$BL$13) -> 8 | BM48: =COUNTIF($AI:$AI,$BM$13) -> 1 | BP48: 98 | BQ48: R_M_73 | BR48: 58.16326531 | BS48: 32.65306122 | BT48: 8.163265306 | BU48: 1.020408163 | BV48: 100
A49: Total 2 | BI49: R_M_74 | BJ49: =COUNTIF($AJ:$AJ,$BJ$13) -> 5 | BK49: =COUNTIF($AJ:$AJ,$BK$13) -> 5 | BL49: =COUNTIF($AJ:$AJ,$BL$13) -> 82 | BM49: =COUNTIF($AJ:$AJ,$BM$13) -> 8 | BP49: 100 | BQ49: R_M_74 | BR49: 5 | BS49: 5 | BT49: 82 | BU49: 8 | BV49: 100
A50: 3 | B50: (en blanco) | C50: 3 | D50: 1 | E50: 1 | F50: 3 | G50: 4 | H50: 4 | I50: 1 | J50: 3 | K50: 1 | L50: 4 | M50: 3 | N50: 2 | O50: 4 | P50: 4 | Q50: 2 | R50: 1 | S50: 3 | T50: (en blanco) | U50: 1 | V50: 2 | W50: 4 | X50: 2 | Y50: 2 | Z50: 4 | AA50: 3 | AB50: 3 | AC50: 4 | AD50: 3 | AE50: 3 | AF50: 1 | AG50: 2 | AH50: 3 | AI50: 1 | AJ50: 3 | AK50: 2 | AL50: 2 | AM50: 2 | AN50: 4 | AO50: 4 | AP50: 1 | AQ50: 3 | AR50: 4 | AS50: 3 | AT50: 4 | AU50: 4 | AV50: 4 | AW50: 4 | AX50: 4 | AY50: 4 | AZ50: 4 | BA50: 3 | BB50: 1 | BC50: 2 | BD50: 2 | BE50: 3 | BF50: 2 | BG50: 1 | BH50: 3 | BI50: R_M_75 | BJ50: =COUNTIF($AK:$AK,$BJ$13) -> 20 | BK50: =COUNTIF($AK:$AK,$BK$13) -> 46 | BL50: =COUNTIF($AK:$AK,$BL$13) -> 8 | BM50: =COUNTIF($AK:$AK,$BM$13) -> 24 | BP50: 98 | BQ50: R_M_75 | BR50: 20.40816327 | BS50: 46.93877551 | BT50: 8.163265306 | BU50: 24.48979592 | BV50: 100
A51: 3 | B51: 1 | C51: 3 | D51: 2 | E51: 1 | F51: 2 | G51: 2 | H51: 1 | I51: 4 | J51: 1 | K51: 1 | L51: 4 | M51: 1 | N51: 1 | O51: 2 | P51: 4 | Q51: 3 | R51: 3 | S51: 4 | T51: 1 | U51: 1 | V51: 2 | W51: 3 | X51: 2 | Y51: 1 | Z51: 1 | AA51: 4 | AB51: 2 | AC51: 3 | AD51: 2 | AE51: 2 | AF51: 3 | AG51: 3 | AH51: 4 | AI51: 1 | AJ51: 3 | AK51: 4 | AL51: 3 | AM51: 3 | AN51: 3 | AO51: 1 | AP51: 4 | AQ51: 1 | AR51: 1 | AS51: 1 | AT51: 2 | AU51: 1 | AV51: 2 | AW51: 4 | AX51: 1 | AY51: 4 | AZ51: 1 | BA51: 3 | BB51: 2 | BC51: 2 | BD51: 1 | BE51: 1 | BF51: 1 | BG51: 2 | BH51: 1 | BI51: R_M_76 | BJ51: =COUNTIF($AL:$AL,$BJ$13) -> 7 | BK51: =COUNTIF($AL:$AL,$BK$13) -> 42 | BL51: =COUNTIF($AL:$AL,$BL$13) -> 36 | BM51: =COUNTIF($AL:$AL,$BM$13) -> 11 | BP51: 96 | BQ51: R_M_76 | BR51: 7.291666667 | BS51: 43.75 | BT51: 37.5 | BU51: 11.45833333 | BV51: 100
A52: 3 | B52: 1 | C52: 3 | D52: 3 | E52: 1 | F52: 3 | G52: 1 | H52: 3 | I52: 2 | J52: 3 | K52: 1 | L52: 3 | M52: 4 | N52: 4 | O52: 2 | P52: 4 | Q52: 2 | R52: 3 | S52: 4 | T52: 3 | U52: 2 | V52: 2 | W52: 3 | X52: 2 | Y52: 1 | Z52: 1 | AA52: 4 | AB52: 1 | AC52: 4 | AD52: 2 | AE52: 4 | AF52: 3 | AG52: 4 | AH52: 3 | AI52: 1 | AJ52: 3 | AK52: 4 | AL52: 3 | AM52: 3 | AN52: (en blanco) | AO52: 3 | AP52: 1 | AQ52: 4 | AR52: 2 | AS52: 4 | AT52: 4 | AU52: 4 | AV52: 3 | AW52: 4 | AX52: 1 | AY52: 4 | AZ52: 2 | BA52: 1 | BB52: 1 | BC52: 3 | BD52: 1 | BE52: 2 | BF52: 2 | BG52: 4 | BH52: 3 | BI52: R_M_78 | BJ52: =COUNTIF($AM:$AM,$BJ$13) -> 13 | BK52: =COUNTIF($AM:$AM,$BK$13) -> 45 | BL52: =COUNTIF($AM:$AM,$BL$13) -> 29 | BM52: =COUNTIF($AM:$AM,$BM$13) -> 9 | BP52: 96 | BQ52: R_M_78 | BR52: 13.54166667 | BS52: 46.875 | BT52: 30.20833333 | BU52: 9.375 | BV52: 100
A53: 3 | B53: 2 | C53: 1 | D53: 3 | E53: 1 | F53: 2 | G53: 4 | H53: 3 | I53: 1 | J53: 2 | K53: 2 | L53: 4 | M53: 1 | N53: 2 | O53: 3 | P53: 2 | Q53: 2 | R53: 1 | S53: 3 | T53: 4 | U53: 2 | V53: 2 | W53: 1 | X53: 3 | Y53: 4 | Z53: 1 | AA53: 4 | AB53: 3 | AC53: 2 | AD53: 1 | AE53: 2 | AF53: 2 | AG53: 3 | AH53: 4 | AI53: 2 | AJ53: 3 | AK53: 2 | AL53: 2 | AM53: 4 | AN53: 4 | AO53: 3 | AP53: 1 | AQ53: 3 | AR53: 3 | AS53: 2 | AT53: 2 | AU53: 1 | AV53: 3 | AW53: 1 | AX53: 3 | AY53: 4 | AZ53: 2 | BA53: 3 | BB53: 2 | BC53: 4 | BD53: 1 | BE53: 1 | BF53: 3 | BG53: 2 | BH53: 1 | BI53: R_M_79 | BJ53: =COUNTIF($AN:$AN,$BJ$13) -> 3 | BK53: =COUNTIF($AN:$AN,$BK$13) -> 9 | BL53: =COUNTIF($AN:$AN,$BL$13) -> 43 | BM53: =COUNTIF($AN:$AN,$BM$13) -> 45 | BP53: 100 | BQ53: R_M_79 | BR53: 3 | BS53: 9 | BT53: 43 | BU53: 45 | BV53: 100
A54: 3 | B54: 2 | C54: 2 | D54: 2 | E54: 2 | F54: 1 | G54: 2 | H54: 4 | I54: 1 | J54: 3 | K54: 2 | L54: 2 | M54: 2 | N54: 2 | O54: 4 | P54: 3 | Q54: 3 | R54: 3 | S54: 2 | T54: 2 | U54: 2 | V54: 2 | W54: 4 | X54: 2 | Y54: 2 | Z54: 2 | AA54: 2 | AB54: 2 | AC54: 2 | AD54: 2 | AE54: 1 | AF54: 2 | AG54: 1 | AH54: 4 | AI54: 2 | AJ54: 3 | AK54: 2 | AL54: 1 | AM54: 3 | AN54: 3 | AO54: 4 | AP54: 3 | AQ54: 2 | AR54: 1 | AS54: 4 | AT54: 3 | AU54: 2 | AV54: 4 | AW54: 2 | AX54: 1 | AY54: 4 | AZ54: 3 | BA54: 3 | BB54: 4 | BC54: 2 | BD54: 3 | BE54: 2 | BF54: 2 | BG54: 3 | BH54: 3 | BI54: R_M_80 | BJ54: =COUNTIF($AO:$AO,$BJ$13) -> 10 | BK54: =COUNTIF($AO:$AO,$BK$13) -> 14 | BL54: =COUNTIF($AO:$AO,$BL$13) -> 15 | BM54: =COUNTIF($AO:$AO,$BM$13) -> 60 | BP54: 99 | BQ54: R_M_80 | BR54: 10.1010101 | BS54: 14.14141414 | BT54: 15.15151515 | BU54: 60.60606061 | BV54: 100
A55: 3 | B55: 2 | C55: 3 | D55: 3 | E55: 1 | F55: 3 | G55: 3 | H55: 1 | I55: 3 | J55: 3 | K55: 1 | L55: 3 | M55: 2 | N55: 3 | O55: 3 | P55: 4 | Q55: 3 | R55: 2 | S55: 3 | T55: 4 | U55: 1 | V55: 2 | W55: 1 | X55: 2 | Y55: 4 | Z55: 4 | AA55: 4 | AB55: 2 | AC55: 4 | AD55: 3 | AE55: 2 | AF55: 4 | AG55: 4 | AH55: 2 | AI55: 2 | AJ55: 3 | AK55: 2 | AL55: 3 | AM55: 2 | AN55: 3 | AO55: 4 | AP55: 4 | AQ55: 3 | AR55: 3 | AS55: 3 | AT55: 4 | AU55: 4 | AV55: 4 | AW55: 1 | AX55: 4 | AY55: 3 | AZ55: 4 | BA55: 3 | BB55: 1 | BC55: 2 | BD55: 1 | BE55: 1 | BF55: 3 | BG55: 2 | BH55: 4 | BI55: R_M_81 | BJ55: =COUNTIF($AP:$AP,$BJ$13) -> 15 | BK55: =COUNTIF($AP:$AP,$BK$13) -> 15 | BL55: =COUNTIF($AP:$AP,$BL$13) -> 27 | BM55: =COUNTIF($AP:$AP,$BM$13) -> 41 | BP55: 98 | BQ55: R_M_81 | BR55: 15.30612245 | BS55: 15.30612245 | BT55: 27.55102041 | BU55: 41.83673469 | BV55: 100
A56: 3 | B56: 2 | C56: 3 | D56: 3 | E56: 1 | F56: 3 | G56: 4 | H56: 3 | I56: 1 | J56: 2 | K56: 1 | L56: 4 | M56: 1 | N56: 2 | O56: 2 | P56: 3 | Q56: 4 | R56: 3 | S56: 4 | T56: 2 | U56: 1 | V56: 2 | W56: 2 | X56: 4 | Y56: 3 | Z56: 2 | AA56: 3 | AB56: 2 | AC56: 4 | AD56: 4 | AE56: 1 | AF56: 4 | AG56: 4 | AH56: 1 | AI56: 1 | AJ56: 2 | AK56: 3 | AL56: 2 | AM56: 2 | AN56: 4 | AO56: 4 | AP56: 1 | AQ56: 3 | AR56: (en blanco) | AS56: 3 | AT56: 3 | AU56: 2 | AV56: 1 | AW56: 4 | AX56: 3 | AY56: 4 | AZ56: 4 | BA56: 3 | BB56: 1 | BC56: 2 | BD56: 2 | BE56: 2 | BF56: 2 | BG56: 1 | BH56: (en blanco) | BI56: R_M_82 | BJ56: =COUNTIF($AQ:$AQ,$BJ$13) -> 7 | BK56: =COUNTIF($AQ:$AQ,$BK$13) -> 15 | BL56: =COUNTIF($AQ:$AQ,$BL$13) -> 66 | BM56: =COUNTIF($AQ:$AQ,$BM$13) -> 11 | BP56: 99 | BQ56: R_M_82 | BR56: 7.070707071 | BS56: 15.15151515 | BT56: 66.66666667 | BU56: 11.11111111 | BV56: 100
A57: 3 | B57: 2 | C57: 3 | D57: 3 | E57: 1 | F57: 3 | G57: 4 | H57: 3 | I57: 1 | J57: 3 | K57: 1 | L57: 4 | M57: 1 | N57: 2 | O57: 4 | P57: 4 | Q57: 2 | R57: 3 | S57: 3 | T57: 2 | U57: 1 | V57: 2 | W57: 4 | X57: 2 | Y57: 4 | Z57: 2 | AA57: 3 | AB57: 1 | AC57: 4 | AD57: 4 | AE57: 1 | AF57: 1 | AG57: 3 | AH57: 4 | AI57: 2 | AJ57: 3 | AK57: 2 | AL57: 3 | AM57: 2 | AN57: 3 | AO57: 2 | AP57: 4 | AQ57: 3 | AR57: 3 | AS57: 4 | AT57: 3 | AU57: 4 | AV57: 2 | AW57: 3 | AX57: 1 | AY57: 4 | AZ57: 2 | BA57: 3 | BB57: 1 | BC57: 1 | BD57: 2 | BE57: 3 | BF57: 2 | BG57: 4 | BH57: 3 | BI57: R_M_83 | BJ57: =COUNTIF($AR:$AR,$BJ$13) -> 24 | BK57: =COUNTIF($AR:$AR,$BK$13) -> 16 | BL57: =COUNTIF($AR:$AR,$BL$13) -> 46 | BM57: =COUNTIF($AR:$AR,$BM$13) -> 10 | BP57: 96 | BQ57: R_M_83 | BR57: 25 | BS57: 16.66666667 | BT57: 47.91666667 | BU57: 10.41666667 | BV57: 100
A58: 3 | B58: 2 | C58: 3 | D58: 3 | E58: 1 | F58: 4 | G58: 1 | H58: 4 | I58: 1 | J58: 3 | K58: 1 | L58: 3 | M58: 3 | N58: 2 | O58: 3 | P58: 2 | Q58: 1 | R58: 2 | S58: 3 | T58: 3 | U58: 1 | V58: 2 | W58: 4 | X58: 2 | Y58: 4 | Z58: 1 | AA58: 2 | AB58: 2 | AC58: 4 | AD58: 3 | AE58: 2 | AF58: 3 | AG58: 3 | AH58: 4 | AI58: 1 | AJ58: 3 | AK58: 2 | AL58: 3 | AM58: 2 | AN58: 4 | AO58: 4 | AP58: 2 | AQ58: 3 | AR58: 3 | AS58: 4 | AT58: 2 | AU58: 2 | AV58: 4 | AW58: 4 | AX58: 3 | AY58: 4 | AZ58: 3 | BA58: 3 | BB58: 2 | BC58: 3 | BD58: 3 | BE58: 2 | BF58: 2 | BG58: 4 | BH58: 4 | BI58: R_M_85 | BJ58: =COUNTIF($AS:$AS,$BJ$13) -> 5 | BK58: =COUNTIF($AS:$AS,$BK$13) -> 10 | BL58: =COUNTIF($AS:$AS,$BL$13) -> 49 | BM58: =COUNTIF($AS:$AS,$BM$13) -> 35 | BP58: 99 | BQ58: R_M_85 | BR58: 5.050505051 | BS58: 10.1010101 | BT58: 49.49494949 | BU58: 35.35353535 | BV58: 100
A59: 3 | B59: 2 | C59: 4 | D59: 3 | E59: 1 | F59: 1 | G59: 3 | H59: 1 | I59: 1 | J59: 2 | K59: 2 | L59: 3 | M59: 3 | N59: 3 | O59: 2 | P59: 3 | Q59: 3 | R59: 4 | S59: 3 | T59: 4 | U59: 1 | V59: 2 | W59: 3 | X59: 2 | Y59: 4 | Z59: 3 | AA59: 3 | AB59: 4 | AC59: 4 | AD59: 2 | AE59: 4 | AF59: 4 | AG59: 4 | AH59: 3 | AI59: 1 | AJ59: 3 | AK59: 2 | AL59: 4 | AM59: 2 | AN59: 3 | AO59: 3 | AP59: 4 | AQ59: 2 | AR59: 3 | AS59: 4 | AT59: 2 | AU59: 3 | AV59: 4 | AW59: 4 | AX59: 1 | AY59: 4 | AZ59: 3 | BA59: 3 | BB59: 1 | BC59: 2 | BD59: 2 | BE59: 1 | BF59: 2 | BG59: 3 | BH59: 3 | BI59: R_M_86 | BJ59: =COUNTIF($AT:$AT,$BJ$13) -> 8 | BK59: =COUNTIF($AT:$AT,$BK$13) -> 27 | BL59: =COUNTIF($AT:$AT,$BL$13) -> 32 | BM59: =COUNTIF($AT:$AT,$BM$13) -> 30 | BP59: 97 | BQ59: R_M_86 | BR59: 8.24742268 | BS59: 27.83505155 | BT59: 32.98969072 | BU59: 30.92783505 | BV59: 100
A60: 3 | B60: 2 | C60: 4 | D60: 3 | E60: 1 | F60: 2 | G60: 1 | H60: 4 | I60: 1 | J60: 2 | K60: 3 | L60: 2 | M60: 4 | N60: 4 | O60: 4 | P60: (en blanco) | Q60: (en blanco) | R60: (en blanco) | S60: (en blanco) | T60: (en blanco) | U60: (en blanco) | V60: (en blanco) | W60: (en blanco) | X60: (en blanco) | Y60: (en blanco) | Z60: (en blanco) | AA60: (en blanco) | AB60: (en blanco) | AC60: (en blanco) | AD60: (en blanco) | AE60: 1 | AF60: 3 | AG60: 4 | AH60: 2 | AI60: 1 | AJ60: 3 | AK60: 4 | AL60: 3 | AM60: 2 | AN60: 2 | AO60: 2 | AP60: 4 | AQ60: 1 | AR60: 4 | AS60: 4 | AT60: 3 | AU60: 1 | AV60: 2 | AW60: 1 | AX60: 4 | AY60: 4 | AZ60: 4 | BA60: 3 | BB60: 2 | BC60: 2 | BD60: 2 | BE60: 1 | BF60: (en blanco) | BG60: (en blanco) | BH60: (en blanco) | BI60: R_M_87 | BJ60: =COUNTIF($AU:$AU,$BJ$13) -> 28 | BK60: =COUNTIF($AU:$AU,$BK$13) -> 26 | BL60: =COUNTIF($AU:$AU,$BL$13) -> 13 | BM60: =COUNTIF($AU:$AU,$BM$13) -> 29 | BP60: 96 | BQ60: R_M_87 | BR60: 29.16666667 | BS60: 27.08333333 | BT60: 13.54166667 | BU60: 30.20833333 | BV60: 100
A61: 3 | B61: 3 | C61: 1 | D61: 2 | E61: 3 | F61: 4 | G61: 2 | H61: 4 | I61: 3 | J61: 4 | K61: 2 | L61: 4 | M61: 1 | N61: 2 | O61: 4 | P61: 3 | Q61: 4 | R61: 2 | S61: 3 | T61: 3 | U61: 1 | V61: 2 | W61: 1 | X61: 2 | Y61: 3 | Z61: 2 | AA61: 3 | AB61: 4 | AC61: 2 | AD61: 3 | AE61: 2 | AF61: 1 | AG61: 3 | AH61: 2 | AI61: 1 | AJ61: 1 | AK61: 2 | AL61: 2 | AM61: 3 | AN61: 4 | AO61: 4 | AP61: 4 | AQ61: 1 | AR61: 3 | AS61: 1 | AT61: 3 | AU61: 4 | AV61: 1 | AW61: 2 | AX61: 3 | AY61: 3 | AZ61: 2 | BA61: 3 | BB61: 3 | BC61: 2 | BD61: 2 | BE61: 3 | BF61: 2 | BG61: 1 | BH61: 1 | BI61: R_M_88 | BJ61: =COUNTIF($AV:$AV,$BJ$13) -> 9 | BK61: =COUNTIF($AV:$AV,$BK$13) -> 19 | BL61: =COUNTIF($AV:$AV,$BL$13) -> 23 | BM61: =COUNTIF($AV:$AV,$BM$13) -> 48 | BP61: 99 | BQ61: R_M_88 | BR61: 9.090909091 | BS61: 19.19191919 | BT61: 23.23232323 | BU61: 48.48484848 | BV61: 100
A62: 3 | B62: 3 | C62: 2 | D62: 2 | E62: 4 | F62: 3 | G62: 3 | H62: 4 | I62: 4 | J62: 3 | K62: 1 | L62: 3 | M62: 1 | N62: 4 | O62: 4 | P62: 4 | Q62: 2 | R62: 3 | S62: 3 | T62: 2 | U62: 1 | V62: 2 | W62: 1 | X62: 2 | Y62: 3 | Z62: 3 | AA62: 1 | AB62: 2 | AC62: 4 | AD62: 3 | AE62: 2 | AF62: 1 | AG62: 3 | AH62: 4 | AI62: 1 | AJ62: 1 | AK62: 1 | AL62: 4 | AM62: 3 | AN62: 2 | AO62: 4 | AP62: 2 | AQ62: 3 | AR62: 2 | AS62: 3 | AT62: 1 | AU62: 3 | AV62: 2 | AW62: 4 | AX62: 2 | AY62: 4 | AZ62: 2 | BA62: 3 | BB62: 2 | BC62: 1 | BD62: 1 | BE62: 1 | BF62: 2 | BG62: 1 | BH62: 4 | BI62: R_M_89 | BJ62: =COUNTIF($AW:$AW,$BJ$13) -> 19 | BK62: =COUNTIF($AW:$AW,$BK$13) -> 24 | BL62: =COUNTIF($AW:$AW,$BL$13) -> 21 | BM62: =COUNTIF($AW:$AW,$BM$13) -> 33 | BP62: 97 | BQ62: R_M_89 | BR62: 19.58762887 | BS62: 24.74226804 | BT62: 21.64948454 | BU62: 34.02061856 | BV62: 100
A63: 3 | B63: 3 | C63: 2 | D63: 3 | E63: (en blanco) | F63: 1 | G63: 2 | H63: 3 | I63: 1 | J63: 2 | K63: 3 | L63: 4 | M63: 1 | N63: 3 | O63: 4 | P63: 2 | Q63: 2 | R63: 1 | S63: 2 | T63: 3 | U63: 2 | V63: 2 | W63: 2 | X63: 1 | Y63: 3 | Z63: 2 | AA63: 3 | AB63: 3 | AC63: 2 | AD63: 3 | AE63: 1 | AF63: 4 | AG63: 1 | AH63: 3 | AI63: 2 | AJ63: 4 | AK63: 3 | AL63: 1 | AM63: 3 | AN63: 4 | AO63: 1 | AP63: 3 | AQ63: 2 | AR63: 2 | AS63: 4 | AT63: 1 | AU63: 1 | AV63: 3 | AW63: 4 | AX63: 2 | AY63: 4 | AZ63: 2 | BA63: 3 | BB63: 1 | BC63: 2 | BD63: 3 | BE63: 1 | BF63: 2 | BG63: 4 | BH63: 1 | BI63: R_M_90 | BJ63: =COUNTIF($AX:$AX,$BJ$13) -> 23 | BK63: =COUNTIF($AX:$AX,$BJ$13) -> 23 | BL63: =COUNTIF($AX:$AX,$BL$13) -> 29 | BM63: =COUNTIF($AX:$AX,$BM$13) -> 25 | BP63: 100 | BQ63: R_M_90 | BR63: 23 | BS63: 23 | BT63: 29 | BU63: 25 | BV63: 100
A64: 3 | B64: 3 | C64: 3 | D64: 2 | E64: 1 | F64: 1 | G64: 3 | H64: 4 | I64: 2 | J64: 4 | K64: 1 | L64: 4 | M64: 2 | N64: 4 | O64: 3 | P64: 4 | Q64: 3 | R64: 3 | S64: 4 | T64: 4 | U64: 1 | V64: 2 | W64: 1 | X64: 2 | Y64: 4 | Z64: 1 | AA64: 4 | AB64: 4 | AC64: 4 | AD64: 3 | AE64: 1 | AF64: 1 | AG64: 1 | AH64: 4 | AI64: 3 | AJ64: 3 | AK64: 1 | AL64: 2 | AM64: 3 | AN64: 3 | AO64: 3 | AP64: 4 | AQ64: 2 | AR64: 3 | AS64: 1 | AT64: 4 | AU64: 2 | AV64: 2 | AW64: 1 | AX64: 2 | AY64: 4 | AZ64: 2 | BA64: 2 | BB64: 3 | BC64: 1 | BD64: 1 | BE64: 3 | BF64: 1 | BG64: 4 | BH64: 1 | BI64: R_M_91 | BJ64: =COUNTIF($AY:$AY,$BJ$13) -> 5 | BK64: =COUNTIF($AY:$AY,$BK$13) -> 1 | BL64: =COUNTIF($AY:$AY,$BL$13) -> 13 | BM64: =COUNTIF($AY:$AY,$BM$13) -> 82 | BP64: 101 | BQ64: R_M_91 | BR64: 4.95049505 | BS64: 0.9900990099 | BT64: 12.87128713 | BU64: 81.18811881 | BV64: 100
A65: 3 | B65: 3 | C65: 3 | D65: 3 | E65: 1 | F65: 3 | G65: 4 | H65: 4 | I65: 1 | J65: 3 | K65: 1 | L65: 3 | M65: 1 | N65: 2 | O65: 1 | P65: (en blanco) | Q65: 1 | R65: 4 | S65: 3 | T65: 4 | U65: 1 | V65: 2 | W65: 4 | X65: (en blanco) | Y65: (en blanco) | Z65: (en blanco) | AA65: (en blanco) | AB65: (en blanco) | AC65: (en blanco) | AD65: (en blanco) | AE65: 1 | AF65: 4 | AG65: 4 | AH65: 3 | AI65: 1 | AJ65: 3 | AK65: 4 | AL65: 3 | AM65: 2 | AN65: 1 | AO65: 4 | AP65: 4 | AQ65: 3 | AR65: 1 | AS65: 3 | AT65: 2 | AU65: 1 | AV65: 4 | AW65: 2 | AX65: 3 | AY65: 4 | AZ65: 4 | BA65: 3 | BB65: 1 | BC65: 3 | BD65: 2 | BE65: 3 | BF65: 3 | BG65: 2 | BH65: 3 | BI65: R_M_92 | BJ65: =COUNTIF($AZ:$AZ,$BJ$13) -> 18 | BK65: =COUNTIF($AZ:$AZ,$BK$13) -> 25 | BL65: =COUNTIF($AZ:$AZ,$BL$13) -> 26 | BM65: =COUNTIF($AZ:$AZ,$BM$13) -> 33 | BP65: 102 | BQ65: R_M_92 | BR65: 17.64705882 | BS65: 24.50980392 | BT65: 25.49019608 | BU65: 32.35294118 | BV65: 100
A66: 3 | B66: 3 | C66: 3 | D66: 4 | E66: 3 | F66: 3 | G66: 3 | H66: 3 | I66: 1 | J66: 2 | K66: 3 | L66: 4 | M66: 2 | N66: 1 | O66: 3 | P66: 4 | Q66: 1 | R66: 2 | S66: 3 | T66: 2 | U66: 1 | V66: 2 | W66: 3 | X66: 3 | Y66: 4 | Z66: 2 | AA66: 3 | AB66: 2 | AC66: 2 | AD66: 2 | AE66: 4 | AF66: 2 | AG66: 3 | AH66: 4 | AI66: 1 | AJ66: 3 | AK66: 1 | AL66: 2 | AM66: 2 | AN66: 3 | AO66: 2 | AP66: 2 | AQ66: 2 | AR66: 1 | AS66: 3 | AT66: 2 | AU66: 1 | AV66: 3 | AW66: 4 | AX66: 2 | AY66: 4 | AZ66: 3 | BA66: 2 | BB66: 3 | BC66: 4 | BD66: 2 | BE66: 1 | BF66: 2 | BG66: 3 | BH66: 1 | BI66: R_M_93 | BJ66: =COUNTIF($BA:$BA,$BJ$13) -> 8 | BK66: =COUNTIF($BA:$BA,$BK$13) -> 19 | BL66: =COUNTIF($BA:$BA,$BL$13) -> 65 | BM66: =COUNTIF($BA:$BA,$BM$13) -> 9 | BP66: 101 | BQ66: R_M_93 | BR66: 7.920792079 | BS66: 18.81188119 | BT66: 64.35643564 | BU66: 8.910891089 | BV66: 100
A67: 3 | B67: 3 | C67: 4 | D67: 1 | E67: 3 | F67: 2 | G67: 1 | H67: 3 | I67: 3 | J67: 2 | K67: 1 | L67: 4 | M67: 2 | N67: 4 | O67: 4 | P67: 1 | Q67: 3 | R67: 2 | S67: 3 | T67: 2 | U67: 2 | V67: 2 | W67: 1 | X67: 2 | Y67: 3 | Z67: 1 | AA67: 3 | AB67: 2 | AC67: 2 | AD67: 3 | AE67: 4 | AF67: 3 | AG67: 4 | AH67: 4 | AI67: 2 | AJ67: 3 | AK67: 1 | AL67: 2 | AM67: 3 | AN67: 4 | AO67: 2 | AP67: 4 | AQ67: 2 | AR67: 3 | AS67: 4 | AT67: 4 | AU67: 4 | AV67: 4 | AW67: 4 | AX67: 1 | AY67: 4 | AZ67: 2 | BA67: 3 | BB67: 2 | BC67: 4 | BD67: 3 | BE67: 2 | BF67: 4 | BG67: 1 | BH67: 2 | BI67: R_M_94 | BJ67: =COUNTIF($BB:$BB,$BJ$13) -> 60 | BK67: =COUNTIF($BB:$BB,$BK$13) -> 19 | BL67: =COUNTIF($BB:$BB,$BL$13) -> 10 | BM67: =COUNTIF($BB:$BB,$BM$13) -> 10 | BP67: 99 | BQ67: R_M_94 | BR67: 60.60606061 | BS67: 19.19191919 | BT67: 10.1010101 | BU67: 10.1010101 | BV67: 100
A68: 3 | B68: 3 | C68: 4 | D68: 3 | E68: 3 | F68: 3 | G68: 4 | H68: 3 | I68: 2 | J68: 3 | K68: 1 | L68: 4 | M68: 1 | N68: 2 | O68: 1 | P68: 4 | Q68: 2 | R68: 3 | S68: 3 | T68: 1 | U68: 1 | V68: 2 | W68: 4 | X68: 2 | Y68: 2 | Z68: 2 | AA68: 1 | AB68: 1 | AC68: 4 | AD68: 2 | AE68: 4 | AF68: 1 | AG68: 3 | AH68: 2 | AI68: 1 | AJ68: 3 | AK68: 2 | AL68: 1 | AM68: 1 | AN68: 2 | AO68: 4 | AP68: 4 | AQ68: 3 | AR68: 3 | AS68: 3 | AT68: 4 | AU68: 1 | AV68: 4 | AW68: 3 | AX68: 4 | AY68: 4 | AZ68: 3 | BA68: 3 | BB68: 3 | BC68: 3 | BD68: 2 | BE68: 3 | BF68: 2 | BG68: 3 | BH68: 3
A69: 3 | B69: 3 | C69: 4 | D69: 3 | E69: 3 | F69: 4 | G69: 1 | H69: 4 | I69: 2 | J69: 4 | K69: 1 | L69: 4 | M69: 1 | N69: 2 | O69: 4 | P69: 3 | Q69: 3 | R69: 2 | S69: 3 | T69: 3 | U69: 4 | V69: 2 | W69: 3 | X69: 2 | Y69: 4 | Z69: 1 | AA69: 2 | AB69: 2 | AC69: 4 | AD69: 3 | AE69: 4 | AF69: 1 | AG69: 2 | AH69: 4 | AI69: 2 | AJ69: 4 | AK69: 2 | AL69: 3 | AM69: 3 | AN69: 3 | AO69: 1 | AP69: 3 | AQ69: 4 | AR69: 4 | AS69: 1 | AT69: 2 | AU69: 3 | AV69: 3 | AW69: 1 | AX69: 1 | AY69: 4 | AZ69: 1 | BA69: 1 | BB69: 2 | BC69: 3 | BD69: 1 | BE69: 3 | BF69: 3 | BG69: 4 | BH69: 1
A70: 3 | B70: 4 | C70: 1 | D70: 1 | E70: 3 | F70: 4 | G70: 1 | H70: 4 | I70: 1 | J70: 3 | K70: 2 | L70: 1 | M70: 3 | N70: 1 | O70: 4 | P70: 4 | Q70: 1 | R70: 2 | S70: 3 | T70: 2 | U70: 1 | V70: 2 | W70: 3 | X70: 2 | Y70: 3 | Z70: 3 | AA70: 4 | AB70: 3 | AC70: 4 | AD70: 2 | AE70: 4 | AF70: 3 | AG70: 2 | AH70: 3 | AI70: 3 | AJ70: 1 | AK70: 4 | AL70: 3 | AM70: (en blanco) | AN70: 3 | AO70: 1 | AP70: 4 | AQ70: 2 | AR70: 1 | AS70: 4 | AT70: 2 | AU70: (en blanco) | AV70: 4 | AW70: 2 | AX70: 1 | AY70: 4 | AZ70: 3 | BA70: 3 | BB70: 1 | BC70: 2 | BD70: 3 | BE70: 2 | BF70: 3 | BG70: 4 | BH70: 2
A71: 3 | B71: 4 | C71: 3 | D71: (en blanco) | E71: 1 | F71: 4 | G71: 3 | H71: 4 | I71: 1 | J71: 3 | K71: (en blanco) | L71: 3 | M71: (en blanco) | N71: (en blanco) | O71: (en blanco) | P71: (en blanco) | Q71: (en blanco) | R71: (en blanco) | S71: (en blanco) | T71: (en blanco) | U71: (en blanco) | V71: 2 | W71: (en blanco) | X71: (en blanco) | Y71: (en blanco) | Z71: (en blanco) | AA71: (en blanco) | AB71: (en blanco) | AC71: 4 | AD71: (en blanco) | AE71: 1 | AF71: 3 | AG71: (en blanco) | AH71: (en blanco) | AI71: 2 | AJ71: 3 | AK71: 2 | AL71: (en blanco) | AM71: 2 | AN71: 3 | AO71: (en blanco) | AP71: (en blanco) | AQ71: (en blanco) | AR71: (en blanco) | AS71: (en blanco) | AT71: (en blanco) | AU71: (en blanco) | AV71: 4 | AW71: 2 | AX71: (en blanco) | AY71: 4 | AZ71: 3 | BA71: 1 | BB71: (en blanco) | BC71: 2 | BD71: 1 | BE71: 1 | BF71: 2 | BG71: 3 | BH71: 3
A72: 3 | B72: 4 | C72: 3 | D72: 1 | E72: 1 | F72: 1 | G72: 4 | H72: 4 | I72: (en blanco) | J72: 3 | K72: 1 | L72: 4 | M72: 1 | N72: 2 | O72: (en blanco) | P72: 4 | Q72: 2 | R72: 3 | S72: 3 | T72: (en blanco) | U72: 1 | V72: 2 | W72: 1 | X72: 2 | Y72: 2 | Z72: 2 | AA72: 2 | AB72: 3 | AC72: 4 | AD72: 4 | AE72: 4 | AF72: 4 | AG72: 4 | AH72: 3 | AI72: 1 | AJ72: 3 | AK72: (en blanco) | AL72: 2 | AM72: (en blanco) | AN72: 4 | AO72: 4 | AP72: 4 | AQ72: 3 | AR72: 2 | AS72: 4 | AT72: 4 | AU72: 3 | AV72: 3 | AW72: 4 | AX72: 4 | AY72: 4 | AZ72: 4 | BA72: 3 | BB72: 1 | BC72: 2 | BD72: (en blanco) | BE72: 3 | BF72: (en blanco) | BG72: 3 | BH72: 1
A73: 3 | B73: 4 | C73: 3 | D73: 1 | E73: 1 | F73: 3 | G73: 1 | H73: 3 | I73: 1 | J73: 4 | K73: 2 | L73: 4 | M73: 1 | N73: 3 | O73: 4 | P73: 4 | Q73: 3 | R73: 2 | S73: 3 | T73: 1 | U73: 1 | V73: 2 | W73: 4 | X73: 2 | Y73: 4 | Z73: 2 | AA73: 3 | AB73: 3 | AC73: 4 | AD73: 4 | AE73: 4 | AF73: 2 | AG73: 4 | AH73: 1 | AI73: 1 | AJ73: 3 | AK73: 2 | AL73: 2 | AM73: 2 | AN73: 4 | AO73: 4 | AP73: 3 | AQ73: 3 | AR73: 2 | AS73: 3 | AT73: 4 | AU73: 2 | AV73: 4 | AW73: 2 | AX73: 1 | AY73: 4 | AZ73: 4 | BA73: 4 | BB73: 1 | BC73: 2 | BD73: 2 | BE73: 3 | BF73: 2 | BG73: 3 | BH73: 3
A74: 3 | B74: 4 | C74: 3 | D74: 1 | E74: 1 | F74: 3 | G74: 2 | H74: 3 | I74: 2 | J74: 3 | K74: 1 | L74: 3 | M74: 3 | N74: 3 | O74: 1 | P74: 3 | Q74: 2 | R74: 3 | S74: 3 | T74: 1 | U74: 1 | V74: 2 | W74: 2 | X74: 2 | Y74: 4 | Z74: 1 | AA74: 2 | AB74: 3 | AC74: (en blanco) | AD74: 3 | AE74: 4 | AF74: (en blanco) | AG74: 4 | AH74: 3 | AI74: 1 | AJ74: 3 | AK74: (en blanco) | AL74: 3 | AM74: 4 | AN74: 3 | AO74: 3 | AP74: 3 | AQ74: 3 | AR74: 2 | AS74: 4 | AT74: 3 | AU74: 3 | AV74: 2 | AW74: 3 | AX74: 1 | AY74: 3 | AZ74: 2 | BA74: 3 | BB74: 2 | BC74: 4 | BD74: 3 | BE74: 3 | BF74: 2 | BG74: 3 | BH74: 1
A75: 3 | B75: 4 | C75: 3 | D75: 1 | E75: 1 | F75: 3 | G75: 2 | H75: 4 | I75: 2 | J75: 3 | K75: 2 | L75: 2 | M75: 2 | N75: 1 | O75: 3 | P75: 3 | Q75: 2 | R75: 3 | S75: 3 | T75: 2 | U75: 1 | V75: 2 | W75: 3 | X75: 2 | Y75: 4 | Z75: 1 | AA75: 3 | AB75: 2 | AC75: 4 | AD75: 3 | AE75: 1 | AF75: 1 | AG75: 2 | AH75: 3 | AI75: 1 | AJ75: 3 | AK75: 3 | AL75: 3 | AM75: 3 | AN75: 3 | AO75: 4 | AP75: 4 | AQ75: 1 | AR75: 1 | AS75: 4 | AT75: 2 | AU75: 2 | AV75: 4 | AW75: 3 | AX75: (en blanco) | AY75: 4 | AZ75: 3 | BA75: 2 | BB75: 1 | BC75: 3 | BD75: 2 | BE75: 1 | BF75: 2 | BG75: 1 | BH75: 2
A76: 3 | B76: 4 | C76: 3 | D76: 1 | E76: 1 | F76: 3 | G76: 3 | H76: 1 | I76: 1 | J76: 3 | K76: 3 | L76: 4 | M76: 1 | N76: 3 | O76: 2 | P76: 3 | Q76: 3 | R76: 3 | S76: 2 | T76: 2 | U76: 1 | V76: 2 | W76: 4 | X76: 2 | Y76: 2 | Z76: 2 | AA76: 4 | AB76: 3 | AC76: 2 | AD76: 3 | AE76: 4 | AF76: 3 | AG76: 2 | AH76: 3 | AI76: 1 | AJ76: 3 | AK76: 3 | AL76: 3 | AM76: 1 | AN76: 4 | AO76: 3 | AP76: 3 | AQ76: 3 | AR76: 3 | AS76: 4 | AT76: 2 | AU76: 1 | AV76: 3 | AW76: 3 | AX76: 1 | AY76: 4 | AZ76: 2 | BA76: 4 | BB76: 2 | BC76: 3 | BD76: 2 | BE76: 3 | BF76: 2 | BG76: 1 | BH76: 3
A77: 3 | B77: 4 | C77: 3 | D77: 1 | E77: 1 | F77: 3 | G77: 3 | H77: 1 | I77: 2 | J77: 4 | K77: 1 | L77: 2 | M77: 3 | N77: 1 | O77: 3 | P77: 4 | Q77: 3 | R77: 1 | S77: 3 | T77: 4 | U77: 2 | V77: 2 | W77: 3 | X77: 2 | Y77: 3 | Z77: 1 | AA77: 4 | AB77: 2 | AC77: 4 | AD77: 3 | AE77: 2 | AF77: 1 | AG77: 3 | AH77: 3 | AI77: 1 | AJ77: 3 | AK77: 3 | AL77: 3 | AM77: 3 | AN77: 3 | AO77: 4 | AP77: 3 | AQ77: 2 | AR77: 3 | AS77: 3 | AT77: 1 | AU77: 1 | AV77: 2 | AW77: 3 | AX77: 3 | AY77: 4 | AZ77: 2 | BA77: 3 | BB77: 1 | BC77: 4 | BD77: 3 | BE77: 1 | BF77: 2 | BG77: 3 | BH77: 1
A78: 3 | B78: 4 | C78: 3 | D78: 1 | E78: 1 | F78: 3 | G78: 4 | H78: 3 | I78: 1 | J78: 3 | K78: 1 | L78: 4 | M78: 1 | N78: 2 | O78: 3 | P78: 3 | Q78: 2 | R78: 2 | S78: 1 | T78: 3 | U78: 2 | V78: 3 | W78: 1 | X78: 3 | Y78: 4 | Z78: 1 | AA78: 2 | AB78: 3 | AC78: 2 | AD78: 1 | AE78: 1 | AF78: 4 | AG78: 3 | AH78: 3 | AI78: 1 | AJ78: 3 | AK78: 4 | AL78: (en blanco) | AM78: 3 | AN78: 3 | AO78: 4 | AP78: 4 | AQ78: 4 | AR78: 3 | AS78: 4 | AT78: 2 | AU78: 4 | AV78: 4 | AW78: 4 | AX78: 4 | AY78: 4 | AZ78: 3 | BA78: 2 | BB78: 1 | BC78: 4 | BD78: 3 | BE78: 3 | BF78: 3 | BG78: 4 | BH78: 1
A79: 3 | B79: 4 | C79: 3 | D79: 1 | E79: 1 | F79: 3 | G79: 4 | H79: 3 | I79: 1 | J79: 3 | K79: 1 | L79: 4 | M79: 1 | N79: 2 | O79: 3 | P79: 4 | Q79: 2 | R79: 1 | S79: 3 | T79: 3 | U79: 1 | V79: 2 | W79: 3 | X79: 2 | Y79: 2 | Z79: 2 | AA79: 2 | AB79: 3 | AC79: 4 | AD79: 3 | AE79: 1 | AF79: 4 | AG79: 1 | AH79: 3 | AI79: 2 | AJ79: 3 | AK79: 1 | AL79: 2 | AM79: 2 | AN79: 3 | AO79: 4 | AP79: 1 | AQ79: 3 | AR79: 1 | AS79: 3 | AT79: 4 | AU79: 1 | AV79: 4 | AW79: 4 | AX79: 3 | AY79: 4 | AZ79: 4 | BA79: 2 | BB79: 1 | BC79: 2 | BD79: 2 | BE79: 1 | BF79: 2 | BG79: 3 | BH79: 4
A80: 3 | B80: 4 | C80: 3 | D80: 1 | E80: 1 | F80: 3 | G80: 4 | H80: 3 | I80: 1 | J80: 3 | K80: 2 | L80: 2 | M80: 1 | N80: 2 | O80: 4 | P80: 4 | Q80: 2 | R80: 3 | S80: 3 | T80: 1 | U80: 1 | V80: 2 | W80: 3 | X80: 2 | Y80: 4 | Z80: 1 | AA80: 2 | AB80: 3 | AC80: 4 | AD80: 3 | AE80: 4 | AF80: 4 | AG80: 3 | AH80: 3 | AI80: 2 | AJ80: 3 | AK80: 1 | AL80: 2 | AM80: 2 | AN80: 4 | AO80: 3 | AP80: 2 | AQ80: 3 | AR80: 2 | AS80: 4 | AT80: (en blanco) | AU80: 3 | AV80: 2 | AW80: 3 | AX80: 1 | AY80: 3 | AZ80: 2 | BA80: 3 | BB80: 2 | BC80: 4 | BD80: 3 | BE80: 3 | BF80: 2 | BG80: 3 | BH80: 1
A81: 3 | B81: 4 | C81: 3 | D81: 2 | E81: 1 | F81: 3 | G81: 4 | H81: 3 | I81: 2 | J81: 2 | K81: 1 | L81: 3 | M81: 1 | N81: 4 | O81: 3 | P81: 4 | Q81: 4 | R81: 3 | S81: 3 | T81: 2 | U81: 1 | V81: 2 | W81: 1 | X81: 2 | Y81: 4 | Z81: 2 | AA81: 3 | AB81: 1 | AC81: 4 | AD81: 3 | AE81: 1 | AF81: 4 | AG81: 1 | AH81: 3 | AI81: 3 | AJ81: 3 | AK81: 1 | AL81: 4 | AM81: 3 | AN81: 4 | AO81: 2 | AP81: 4 | AQ81: 3 | AR81: 3 | AS81: 4 | AT81: 4 | AU81: 2 | AV81: 3 | AW81: 2 | AX81: 3 | AY81: 4 | AZ81: 1 | BA81: 3 | BB81: 1 | BC81: 3 | BD81: 3 | BE81: 3 | BF81: 2 | BG81: 1 | BH81: 2
A82: 3 | B82: 4 | C82: 3 | D82: 3 | E82: 1 | F82: 2 | G82: 4 | H82: 1 | I82: 2 | J82: 3 | K82: 1 | L82: 4 | M82: 1 | N82: 2 | O82: 4 | P82: 4 | Q82: 2 | R82: 3 | S82: 3 | T82: 1 | U82: 1 | V82: 2 | W82: 2 | X82: 2 | Y82: 4 | Z82: 2 | AA82: 4 | AB82: 3 | AC82: 4 | AD82: 4 | AE82: 2 | AF82: 4 | AG82: 4 | AH82: 1 | AI82: 2 | AJ82: 3 | AK82: 2 | AL82: 3 | AM82: 2 | AN82: 3 | AO82: 4 | AP82: 4 | AQ82: 3 | AR82: 1 | AS82: 2 | AT82: 4 | AU82: 4 | AV82: 4 | AW82: 1 | AX82: 4 | AY82: 3 | AZ82: 4 | BA82: 4 | BB82: 1 | BC82: 1 | BD82: 2 | BE82: 3 | BF82: 2 | BG82: 4 | BH82: 4
A83: 3 | B83: 4 | C83: 3 | D83: 3 | E83: 1 | F83: 3 | G83: 1 | H83: 1 | I83: 1 | J83: 2 | K83: 1 | L83: 4 | M83: 1 | N83: 2 | O83: 4 | P83: 4 | Q83: 2 | R83: 3 | S83: 3 | T83: 3 | U83: 1 | V83: 2 | W83: 4 | X83: 2 | Y83: 4 | Z83: 2 | AA83: 2 | AB83: 3 | AC83: 4 | AD83: 3 | AE83: 4 | AF83: 4 | AG83: 4 | AH83: 3 | AI83: 2 | AJ83: 3 | AK83: 2 | AL83: 2 | AM83: 2 | AN83: 4 | AO83: 4 | AP83: 3 | AQ83: 3 | AR83: 3 | AS83: 3 | AT83: 3 | AU83: 2 | AV83: 4 | AW83: 4 | AX83: 4 | AY83: 4 | AZ83: 3 | BA83: 3 | BB83: 1 | BC83: 4 | BD83: 2 | BE83: 3 | BF83: 3 | BG83: 3 | BH83: 1
A84: 3 | B84: 4 | C84: 3 | D84: 3 | E84: 1 | F84: 3 | G84: 2 | H84: 4 | I84: 1 | J84: 2 | K84: (en blanco) | L84: 3 | M84: 1 | N84: 1 | O84: 1 | P84: 1 | Q84: 2 | R84: 2 | S84: 3 | T84: 1 | U84: 2 | V84: 2 | W84: 4 | X84: 3 | Y84: 4 | Z84: 1 | AA84: 2 | AB84: 3 | AC84: 4 | AD84: 1 | AE84: 1 | AF84: 4 | AG84: 4 | AH84: 4 | AI84: 1 | AJ84: 3 | AK84: 3 | AL84: 3 | AM84: 1 | AN84: 3 | AO84: 4 | AP84: 1 | AQ84: 3 | AR84: 4 | AS84: 4 | AT84: 3 | AU84: 2 | AV84: 4 | AW84: 3 | AX84: 2 | AY84: 3 | AZ84: 4 | BA84: 2 | BB84: 1 | BC84: 2 | BD84: 2 | BE84: 2 | BF84: 3 | BG84: 1 | BH84: 2
A85: 3 | B85: 4 | C85: 3 | D85: 3 | E85: 1 | F85: 3 | G85: 4 | H85: 1 | I85: 1 | J85: 3 | K85: 2 | L85: 2 | M85: 1 | N85: 2 | O85: 1 | P85: 4 | Q85: 4 | R85: 1 | S85: 4 | T85: 3 | U85: 1 | V85: 2 | W85: 4 | X85: 2 | Y85: 3 | Z85: 1 | AA85: 4 | AB85: 2 | AC85: 4 | AD85: 2 | AE85: 4 | AF85: 1 | AG85: 1 | AH85: 1 | AI85: 1 | AJ85: 3 | AK85: 2 | AL85: 2 | AM85: 3 | AN85: 2 | AO85: 3 | AP85: 3 | AQ85: 2 | AR85: 3 | AS85: 3 | AT85: 3 | AU85: 1 | AV85: 3 | AW85: 2 | AX85: 1 | AY85: 4 | AZ85: 4 | BA85: 3 | BB85: 1 | BC85: 1 | BD85: 2 | BE85: 2 | BF85: 2 | BG85: 3 | BH85: 2
A86: 3 | B86: 4 | C86: 3 | D86: 3 | E86: 1 | F86: 3 | G86: 4 | H86: 3 | I86: 1 | J86: 2 | K86: 1 | L86: 4 | M86: 3 | N86: 3 | O86: 1 | P86: 4 | Q86: 3 | R86: 2 | S86: 2 | T86: 1 | U86: 1 | V86: 2 | W86: 4 | X86: 2 | Y86: 4 | Z86: 2 | AA86: 4 | AB86: 3 | AC86: 4 | AD86: 3 | AE86: 4 | AF86: 1 | AG86: 3 | AH86: 3 | AI86: 2 | AJ86: 3 | AK86: 2 | AL86: 2 | AM86: 2 | AN86: 4 | AO86: 4 | AP86: 3 | AQ86: 3 | AR86: 1 | AS86: 3 | AT86: 4 | AU86: 3 | AV86: 4 | AW86: 2 | AX86: 3 | AY86: 4 | AZ86: 4 | BA86: 3 | BB86: 1 | BC86: 1 | BD86: 2 | BE86: 2 | BF86: 3 | BG86: 2 | BH86: 3
A87: 3 | B87: 4 | C87: 3 | D87: 3 | E87: 1 | F87: 3 | G87: 4 | H87: 3 | I87: 1 | J87: 3 | K87: 1 | L87: 4 | M87: 1 | N87: 2 | O87: 4 | P87: 3 | Q87: 4 | R87: 1 | S87: 4 | T87: 2 | U87: 1 | V87: 2 | W87: 4 | X87: 2 | Y87: 3 | Z87: 1 | AA87: 3 | AB87: 2 | AC87: 3 | AD87: 1 | AE87: 1 | AF87: 4 | AG87: 4 | AH87: 3 | AI87: 1 | AJ87: 3 | AK87: 2 | AL87: 2 | AM87: 3 | AN87: 4 | AO87: 4 | AP87: 3 | AQ87: 2 | AR87: 3 | AS87: 3 | AT87: 4 | AU87: 1 | AV87: 3 | AW87: 2 | AX87: 1 | AY87: 4 | AZ87: 4 | BA87: 3 | BB87: 1 | BC87: 1 | BD87: 2 | BE87: 2 | BF87: 2 | BG87: 3 | BH87: 2
A88: 3 | B88: 4 | C88: 3 | D88: 3 | E88: 1 | F88: 3 | G88: 4 | H88: 3 | I88: 1 | J88: 3 | K88: 1 | L88: 4 | M88: 1 | N88: 2 | O88: 4 | P88: 4 | Q88: 2 | R88: 2 | S88: 3 | T88: 2 | U88: 1 | V88: 2 | W88: 4 | X88: 2 | Y88: 2 | Z88: 3 | AA88: 2 | AB88: 3 | AC88: 2 | AD88: 3 | AE88: 1 | AF88: 4 | AG88: 1 | AH88: 3 | AI88: 1 | AJ88: 3 | AK88: 2 | AL88: 1 | AM88: 2 | AN88: 4 | AO88: 4 | AP88: 3 | AQ88: 3 | AR88: 3 | AS88: 3 | AT88: 3 | AU88: 4 | AV88: 2 | AW88: 2 | AX88: 4 | AY88: 4 | AZ88: 4 | BA88: 3 | BB88: 1 | BC88: 2 | BD88: 2 | BE88: 3 | BF88: 2 | BG88: 2 | BH88: 4
A89: 3 | B89: 4 | C89: 3 | D89: 3 | E89: 1 | F89: 3 | G89: 4 | H89: 3 | I89: 1 | J89: 3 | K89: 1 | L89: 4 | M89: 1 | N89: 2 | O89: 4 | P89: 4 | Q89: 2 | R89: 3 | S89: 3 | T89: 1 | U89: 3 | V89: 2 | W89: 1 | X89: 4 | Y89: 2 | Z89: 1 | AA89: 2 | AB89: 3 | AC89: 4 | AD89: 3 | AE89: 4 | AF89: 1 | AG89: 2 | AH89: 3 | AI89: 2 | AJ89: 3 | AK89: 2 | AL89: 2 | AM89: 2 | AN89: 2 | AO89: 4 | AP89: 3 | AQ89: 3 | AR89: 2 | AS89: 3 | AT89: 3 | AU89: 1 | AV89: 2 | AW89: 3 | AX89: 2 | AY89: 4 | AZ89: 4 | BA89: 3 | BB89: 1 | BC89: 4 | BD89: 2 | BE89: 3 | BF89: 2 | BG89: 3 | BH89: 2
A90: 3 | B90: 4 | C90: 3 | D90: 3 | E90: 1 | F90: 3 | G90: 4 | H90: 3 | I90: 1 | J90: 3 | K90: 1 | L90: 4 | M90: 3 | N90: 2 | O90: 4 | P90: 3 | Q90: 2 | R90: 3 | S90: 4 | T90: 3 | U90: 1 | V90: 2 | W90: 4 | X90: 2 | Y90: 4 | Z90: 1 | AA90: 4 | AB90: 3 | AC90: 4 | AD90: 4 | AE90: 1 | AF90: 4 | AG90: 4 | AH90: 3 | AI90: 1 | AJ90: 3 | AK90: 2 | AL90: 2 | AM90: 2 | AN90: 4 | AO90: 4 | AP90: 4 | AQ90: 3 | AR90: 3 | AS90: 3 | AT90: 3 | AU90: 1 | AV90: 4 | AW90: 2 | AX90: 3 | AY90: 4 | AZ90: 4 | BA90: 3 | BB90: 1 | BC90: 2 | BD90: 3 | BE90: 1 | BF90: 4 | BG90: 1 | BH90: 4
A91: 3 | B91: 4 | C91: 3 | D91: 3 | E91: 1 | F91: 3 | G91: 4 | H91: 4 | I91: 1 | J91: 2 | K91: 1 | L91: 4 | M91: 1 | N91: 2 | O91: 4 | P91: 4 | Q91: 2 | R91: 4 | S91: 3 | T91: 2 | U91: 1 | V91: 2 | W91: 4 | X91: 2 | Y91: 2 | Z91: 2 | AA91: 3 | AB91: 2 | AC91: 4 | AD91: 2 | AE91: 4 | AF91: 4 | AG91: 3 | AH91: 3 | AI91: 2 | AJ91: 2 | AK91: 2 | AL91: 2 | AM91: 2 | AN91: 3 | AO91: 4 | AP91: 3 | AQ91: 3 | AR91: 1 | AS91: 3 | AT91: 3 | AU91: 4 | AV91: 4 | AW91: 3 | AX91: 4 | AY91: 4 | AZ91: 4 | BA91: 3 | BB91: 1 | BC91: 3 | BD91: 3 | BE91: 3 | BF91: 1 | BG91: 3 | BH91: 1
A92: 3 | B92: 4 | C92: 3 | D92: 3 | E92: 1 | F92: 3 | G92: 4 | H92: 4 | I92: 1 | J92: 2 | K92: 1 | L92: 4 | M92: 1 | N92: 2 | O92: 4 | P92: 4 | Q92: 3 | R92: 4 | S92: 3 | T92: (en blanco) | U92: 1 | V92: 2 | W92: 4 | X92: 2 | Y92: 4 | Z92: 2 | AA92: 2 | AB92: 3 | AC92: 4 | AD92: 3 | AE92: 4 | AF92: 3 | AG92: 4 | AH92: 4 | AI92: 2 | AJ92: 3 | AK92: 4 | AL92: 2 | AM92: 2 | AN92: 4 | AO92: 4 | AP92: 2 | AQ92: 3 | AR92: 3 | AS92: 3 | AT92: 4 | AU92: 2 | AV92: 4 | AW92: (en blanco) | AX92: 1 | AY92: 4 | AZ92: 3 | BA92: 3 | BB92: 1 | BC92: 2 | BD92: 1 | BE92: 3 | BF92: 2 | BG92: 4 | BH92: 2
A93: 3 | B93: 4 | C93: 3 | D93: 3 | E93: 1 | F93: 3 | G93: 4 | H93: 4 | I93: 1 | J93: 2 | K93: 1 | L93: 4 | M93: 1 | N93: 2 | O93: 4 | P93: 4 | Q93: 3 | R93: 4 | S93: 3 | T93: 2 | U93: 1 | V93: 2 | W93: 4 | X93: 2 | Y93: 4 | Z93: 1 | AA93: 2 | AB93: 3 | AC93: 4 | AD93: 3 | AE93: 4 | AF93: 3 | AG93: 4 | AH93: 4 | AI93: 2 | AJ93: 3 | AK93: 4 | AL93: 2 | AM93: 2 | AN93: 4 | AO93: 4 | AP93: 2 | AQ93: 3 | AR93: 3 | AS93: 3 | AT93: 4 | AU93: 2 | AV93: 4 | AW93: 4 | AX93: 2 | AY93: 4 | AZ93: 3 | BA93: 4 | BB93: 1 | BC93: 2 | BD93: 1 | BE93: 1 | BF93: 2 | BG93: 3 | BH93: 2
A94: 3 | B94: 4 | C94: 3 | D94: 3 | E94: 1 | F94: 3 | G94: 4 | H94: 4 | I94: 1 | J94: 3 | K94: 1 | L94: 4 | M94: 1 | N94: 2 | O94: 3 | P94: 4 | Q94: 2 | R94: 3 | S94: 4 | T94: 4 | U94: 1 | V94: 1 | W94: 2 | X94: 3 | Y94: 4 | Z94: 1 | AA94: 2 | AB94: 2 | AC94: 3 | AD94: 3 | AE94: 1 | AF94: 4 | AG94: 4 | AH94: 1 | AI94: 2 | AJ94: 3 | AK94: 3 | AL94: 2 | AM94: 2 | AN94: 4 | AO94: 4 | AP94: 3 | AQ94: 3 | AR94: 3 | AS94: 3 | AT94: 3 | AU94: (en blanco) | AV94: (en blanco) | AW94: (en blanco) | AX94: (en blanco) | AY94: (en blanco) | AZ94: 2 | BA94: 3 | BB94: 1 | BC94: 2 | BD94: 2 | BE94: 3 | BF94: 1 | BG94: 3 | BH94: 2
A95: 3 | B95: 4 | C95: 3 | D95: 3 | E95: 1 | F95: 3 | G95: 4 | H95: 4 | I95: 1 | J95: 3 | K95: 1 | L95: 4 | M95: 1 | N95: 2 | O95: 4 | P95: 4 | Q95: 2 | R95: 4 | S95: 3 | T95: 4 | U95: 1 | V95: 2 | W95: 4 | X95: 2 | Y95: 2 | Z95: 1 | AA95: 3 | AB95: 1 | AC95: 4 | AD95: 3 | AE95: 4 | AF95: 3 | AG95: 4 | AH95: 4 | AI95: 1 | AJ95: 3 | AK95: 2 | AL95: 3 | AM95: 3 | AN95: 4 | AO95: 4 | AP95: 2 | AQ95: 3 | AR95: 3 | AS95: 3 | AT95: 4 | AU95: 4 | AV95: 3 | AW95: 4 | AX95: 1 | AY95: 1 | AZ95: 2 | BA95: 1 | BB95: 1 | BC95: 3 | BD95: 1 | BE95: 3 | BF95: 2 | BG95: 3 | BH95: 4
A96: 3 | B96: 4 | C96: 3 | D96: 3 | E96: 1 | F96: 3 | G96: 4 | H96: 4 | I96: 1 | J96: 3 | K96: 1 | L96: 4 | M96: 1 | N96: 4 | O96: 4 | P96: 4 | Q96: 4 | R96: 4 | S96: 3 | T96: 2 | U96: 1 | V96: 2 | W96: 4 | X96: 2 | Y96: 4 | Z96: 2 | AA96: 2 | AB96: 3 | AC96: 4 | AD96: 3 | AE96: 4 | AF96: 3 | AG96: 4 | AH96: 4 | AI96: 2 | AJ96: 3 | AK96: 4 | AL96: 2 | AM96: 2 | AN96: 4 | AO96: 4 | AP96: 2 | AQ96: 3 | AR96: 3 | AS96: 3 | AT96: 4 | AU96: 2 | AV96: 4 | AW96: 1 | AX96: 1 | AY96: 4 | AZ96: 3 | BA96: 3 | BB96: 1 | BC96: 2 | BD96: 1 | BE96: 2 | BF96: 3 | BG96: 3 | BH96: 4
A97: 3 | B97: 4 | C97: 3 | D97: 3 | E97: 1 | F97: 4 | G97: 1 | H97: 3 | I97: 1 | J97: 4 | K97: 2 | L97: 1 | M97: 3 | N97: 4 | O97: 4 | P97: 4 | Q97: 3 | R97: 3 | S97: 3 | T97: 4 | U97: 1 | V97: 2 | W97: 2 | X97: 2 | Y97: 4 | Z97: 3 | AA97: 1 | AB97: 2 | AC97: 1 | AD97: 3 | AE97: 2 | AF97: 4 | AG97: 4 | AH97: 1 | AI97: 2 | AJ97: 3 | AK97: 2 | AL97: 3 | AM97: 2 | AN97: 3 | AO97: 4 | AP97: 4 | AQ97: 3 | AR97: 1 | AS97: 3 | AT97: 4 | AU97: 4 | AV97: 4 | AW97: 1 | AX97: 4 | AY97: 3 | AZ97: 3 | BA97: 3 | BB97: 2 | BC97: 1 | BD97: 1 | BE97: 4 | BF97: 4 | BG97: 2 | BH97: (en blanco)
A98: 3 | B98: 4 | C98: 3 | D98: 3 | E98: 1 | F98: 4 | G98: 2 | H98: 3 | I98: 1 | J98: 3 | K98: 1 | L98: 4 | M98: 1 | N98: 2 | O98: 4 | P98: 4 | Q98: 2 | R98: 3 | S98: 2 | T98: 4 | U98: 1 | V98: 2 | W98: 4 | X98: 2 | Y98: 3 | Z98: 2 | AA98: 2 | AB98: 3 | AC98: 2 | AD98: 3 | AE98: 1 | AF98: 4 | AG98: 4 | AH98: 3 | AI98: 2 | AJ98: 3 | AK98: 4 | AL98: 2 | AM98: 2 | AN98: 3 | AO98: 4 | AP98: 2 | AQ98: 3 | AR98: 3 | AS98: 3 | AT98: 3 | AU98: 2 | AV98: 3 | AW98: 4 | AX98: 1 | AY98: 4 | AZ98: 2 | BA98: 3 | BB98: 1 | BC98: 2 | BD98: 2 | BE98: 3 | BF98: 1 | BG98: 3 | BH98: 2
A99: 3 | B99: 4 | C99: 3 | D99: 3 | E99: 1 | F99: 4 | G99: 3 | H99: 2 | I99: 4 | J99: 3 | K99: 3 | L99: 4 | M99: 3 | N99: 4 | O99: 3 | P99: 2 | Q99: 3 | R99: 3 | S99: 3 | T99: 1 | U99: 1 | V99: 2 | W99: 4 | X99: 2 | Y99: 3 | Z99: 4 | AA99: 3 | AB99: 4 | AC99: 2 | AD99: 3 | AE99: 4 | AF99: 4 | AG99: 3 | AH99: 3 | AI99: 1 | AJ99: 3 | AK99: 4 | AL99: 4 | AM99: 3 | AN99: 3 | AO99: 3 | AP99: 4 | AQ99: 3 | AR99: 4 | AS99: 4 | AT99: 2 | AU99: 1 | AV99: 3 | AW99: 4 | AX99: 2 | AY99: 4 | AZ99: 1 | BA99: 3 | BB99: 3 | BC99: 2 | BD99: 4 | BE99: 4 | BF99: 3 | BG99: 4 | BH99: 1
A100: 3 | B100: 4 | C100: 3 | D100: 3 | E100: 1 | F100: 4 | G100: 3 | H100: 4 | I100: 1 | J100: 3 | K100: (en blanco) | L100: 1 | M100: 2 | N100: (en blanco) | O100: (en blanco) | P100: (en blanco) | Q100: (en blanco) | R100: (en blanco) | S100: (en blanco) | T100: (en blanco) | U100: (en blanco) | V100: 2 | W100: (en blanco) | X100: (en blanco) | Y100: (en blanco) | Z100: (en blanco) | AA100: (en blanco) | AB100: (en blanco) | AC100: (en blanco) | AD100: 2 | AE100: 1 | AF100: (en blanco) | AG100: 4 | AH100: (en blanco) | AI100: (en blanco) | AJ100: 3 | AK100: (en blanco) | AL100: (en blanco) | AM100: (en blanco) | AN100: 4 | AO100: (en blanco) | AP100: 4 | AQ100: (en blanco) | AR100: (en blanco) | AS100: (en blanco) | AT100: (en blanco) | AU100: (en blanco) | AV100: 4 | AW100: (en blanco) | AX100: 2 | AY100: 4 | AZ100: 3 | BA100: 3 | BB100: 1 | BC100: 2 | BD100: 2 | BE100: (en blanco) | BF100: 2 | BG100: (en blanco) | BH100: 3
A101: 3 | B101: 4 | C101: 3 | D101: 3 | E101: 1 | F101: 4 | G101: 4 | H101: 3 | I101: 1 | J101: 3 | K101: 1 | L101: 4 | M101: 1 | N101: 3 | O101: 4 | P101: 2 | Q101: 3 | R101: 1 | S101: 3 | T101: 4 | U101: 1 | V101: 2 | W101: 3 | X101: 3 | Y101: 4 | Z101: 2 | AA101: 2 | AB101: 2 | AC101: 4 | AD101: 2 | AE101: 4 | AF101: 4 | AG101: 2 | AH101: 3 | AI101: 2 | AJ101: 3 | AK101: 1 | AL101: 3 | AM101: 3 | AN101: 3 | AO101: 4 | AP101: 1 | AQ101: 3 | AR101: 3 | AS101: 3 | AT101: 2 | AU101: 1 | AV101: 4 | AW101: 2 | AX101: 4 | AY101: 4 | AZ101: 3 | BA101: 3 | BB101: 3 | BC101: 3 | BD101: 3 | BE101: 3 | BF101: 2 | BG101: 3 | BH101: 3
A102: 3 | B102: 4 | C102: 3 | D102: 3 | E102: 1 | F102: 4 | G102: 4 | H102: 4 | I102: 1 | J102: 3 | K102: 1 | L102: 4 | M102: 1 | N102: 2 | O102: 4 | P102: 3 | Q102: 2 | R102: 1 | S102: 3 | T102: 2 | U102: 1 | V102: 2 | W102: 4 | X102: 2 | Y102: 4 | Z102: 2 | AA102: 2 | AB102: 3 | AC102: 4 | AD102: 3 | AE102: 1 | AF102: 4 | AG102: 2 | AH102: 3 | AI102: 1 | AJ102: 3 | AK102: 2 | AL102: 2 | AM102: 2 | AN102: 4 | AO102: 1 | AP102: 4 | AQ102: 3 | AR102: 4 | AS102: 3 | AT102: 1 | AU102: 1 | AV102: 2 | AW102: 4 | AX102: 1 | AY102: 3 | AZ102: 3 | BA102: 3 | BB102: 3 | BC102: 2 | BD102: 4 | BE102: 3 | BF102: 1 | BG102: 3 | BH102: 2
A103: 3 | B103: 4 | C103: 3 | D103: 3 | E103: 3 | F103: 3 | G103: 4 | H103: 1 | I103: 1 | J103: 3 | K103: 1 | L103: 4 | M103: 1 | N103: 2 | O103: 4 | P103: 4 | Q103: 2 | R103: 1 | S103: 3 | T103: 2 | U103: 1 | V103: 2 | W103: 4 | X103: 2 | Y103: 2 | Z103: 2 | AA103: 3 | AB103: 1 | AC103: 4 | AD103: 3 | AE103: 4 | AF103: 1 | AG103: 4 | AH103: 1 | AI103: 2 | AJ103: 3 | AK103: 2 | AL103: 3 | AM103: 3 | AN103: 2 | AO103: 4 | AP103: 3 | AQ103: 3 | AR103: 2 | AS103: 1 | AT103: 2 | AU103: 1 | AV103: 4 | AW103: 3 | AX103: 4 | AY103: 4 | AZ103: 2 | BA103: 2 | BB103: 1 | BC103: 1 | BD103: 2 | BE103: 3 | BF103: 2 | BG103: 3 | BH103: 3
A104: 3 | B104: 4 | C104: 3 | D104: 3 | E104: 4 | F104: 3 | G104: 4 | H104: 3 | I104: 1 | J104: 3 | K104: 1 | L104: 4 | M104: 1 | N104: 2 | O104: 2 | P104: 1 | Q104: 2 | R104: 4 | S104: 4 | T104: 3 | U104: 1 | V104: 2 | W104: 4 | X104: 1 | Y104: 4 | Z104: 1 | AA104: 1 | AB104: 4 | AC104: 3 | AD104: 2 | AE104: 4 | AF104: 4 | AG104: 3 | AH104: 3 | AI104: 1 | AJ104: 3 | AK104: 2 | AL104: 4 | AM104: 3 | AN104: 4 | AO104: 1 | AP104: 4 | AQ104: 4 | AR104: 3 | AS104: 4 | AT104: 3 | AU104: 4 | AV104: 2 | AW104: 3 | AX104: 3 | AY104: 4 | AZ104: 3 | BA104: 3 | BB104: 1 | BC104: 4 | BD104: 1 | BE104: 2 | BF104: 3 | BG104: 1 | BH104: 4
A105: 3 | B105: 4 | C105: 4 | D105: 1 | E105: 1 | F105: 3 | G105: 4 | H105: (en blanco) | I105: 1 | J105: 3 | K105: 1 | L105: 4 | M105: 3 | N105: 1 | O105: 4 | P105: 3 | Q105: 4 | R105: 2 | S105: 3 | T105: 4 | U105: 1 | V105: 3 | W105: 4 | X105: 2 | Y105: 3 | Z105: 2 | AA105: 1 | AB105: 3 | AC105: 4 | AD105: 3 | AE105: 1 | AF105: 4 | AG105: 3 | AH105: 3 | AI105: 1 | AJ105: 4 | AK105: 4 | AL105: 4 | AM105: 3 | AN105: 3 | AO105: 4 | AP105: 3 | AQ105: 1 | AR105: 3 | AS105: 4 | AT105: 3 | AU105: 2 | AV105: 2 | AW105: 4 | AX105: 3 | AY105: 4 | AZ105: 1 | BA105: 3 | BB105: 4 | BC105: 2 | BD105: 3 | BE105: 2 | BF105: 1 | BG105: 3 | BH105: 4
A106: 3 | B106: 4 | C106: 4 | D106: 1 | E106: 1 | F106: 3 | G106: 4 | H106: 3 | I106: 2 | J106: 2 | K106: 1 | L106: 4 | M106: 1 | N106: 2 | O106: 4 | P106: 4 | Q106: 2 | R106: 4 | S106: 3 | T106: 2 | U106: 1 | V106: 2 | W106: 4 | X106: 2 | Y106: 4 | Z106: 2 | AA106: 4 | AB106: 3 | AC106: 4 | AD106: 3 | AE106: 4 | AF106: 2 | AG106: 4 | AH106: 3 | AI106: 2 | AJ106: 3 | AK106: 2 | AL106: 3 | AM106: 1 | AN106: 4 | AO106: 4 | AP106: 4 | AQ106: 3 | AR106: 3 | AS106: 3 | AT106: 2 | AU106: 3 | AV106: 3 | AW106: 1 | AX106: 4 | AY106: 4 | AZ106: 2 | BA106: 3 | BB106: 1 | BC106: 2 | BD106: 1 | BE106: 3 | BF106: 1 | BG106: 3 | BH106: 4
A107: 3 | B107: 4 | C107: 4 | D107: 1 | E107: 1 | F107: 3 | G107: 4 | H107: 3 | I107: 2 | J107: 3 | K107: 1 | L107: 2 | M107: 1 | N107: 4 | O107: 4 | P107: 1 | Q107: 2 | R107: 3 | S107: 4 | T107: 2 | U107: 1 | V107: 2 | W107: 4 | X107: 2 | Y107: 4 | Z107: 1 | AA107: 3 | AB107: 2 | AC107: 4 | AD107: 4 | AE107: 1 | AF107: 3 | AG107: 1 | AH107: 2 | AI107: 1 | AJ107: 3 | AK107: 1 | AL107: 3 | AM107: 4 | AN107: 4 | AO107: 2 | AP107: 1 | AQ107: 3 | AR107: 1 | AS107: 4 | AT107: 3 | AU107: 1 | AV107: 4 | AW107: 4 | AX107: 3 | AY107: 4 | AZ107: 2 | BA107: 3 | BB107: 2 | BC107: 4 | BD107: 2 | BE107: 4 | BF107: 1 | BG107: 4 | BH107: 1
A108: 3 | B108: 4 | C108: 4 | D108: 1 | E108: 3 | F108: 2 | G108: 1 | H108: 4 | I108: 2 | J108: 3 | K108: 2 | L108: 1 | M108: 1 | N108: 1 | O108: 3 | P108: 3 | Q108: 4 | R108: 1 | S108: 3 | T108: 3 | U108: 1 | V108: 3 | W108: 4 | X108: 2 | Y108: 2 | Z108: 1 | AA108: 3 | AB108: 2 | AC108: 4 | AD108: 1 | AE108: 2 | AF108: 3 | AG108: 3 | AH108: 2 | AI108: 1 | AJ108: 3 | AK108: 4 | AL108: 1 | AM108: 3 | AN108: 4 | AO108: 4 | AP108: 3 | AQ108: 4 | AR108: 2 | AS108: 4 | AT108: 3 | AU108: 4 | AV108: 4 | AW108: 1 | AX108: 4 | AY108: 4 | AZ108: 1 | BA108: 3 | BB108: 4 | BC108: 3 | BD108: 2 | BE108: 2 | BF108: 1 | BG108: 1 | BH108: 2
A109: Total 3
A110: 4 | B110: 2 | C110: 3 | D110: 3 | E110: 1 | F110: 3 | G110: 3 | H110: 1 | I110: 1 | J110: 3 | K110: 1 | L110: 4 | M110: 1 | N110: 2 | O110: 4 | P110: 3 | Q110: 3 | R110: 4 | S110: 3 | T110: 2 | U110: 1 | V110: 2 | W110: 3 | X110: 4 | Y110: 2 | Z110: 1 | AA110: 4 | AB110: 3 | AC110: 4 | AD110: 3 | AE110: 4 | AF110: 4 | AG110: 1 | AH110: 3 | AI110: 1 | AJ110: 3 | AK110: 2 | AL110: 1 | AM110: 2 | AN110: 4 | AO110: 4 | AP110: 3 | AQ110: 3 | AR110: 3 | AS110: 3 | AT110: 3 | AU110: 4 | AV110: 2 | AW110: 1 | AX110: 4 | AY110: 1 | AZ110: 2 | BA110: 3 | BB110: 1 | BC110: 2 | BD110: 3 | BE110: 2 | BF110: 4 | BG110: 1 | BH110: 3
A111: 4 | B111: 2 | C111: 3 | D111: 3 | E111: 1 | F111: 3 | G111: 3 | H111: 1 | I111: 1 | J111: 3 | K111: 1 | L111: 4 | M111: 1 | N111: 2 | O111: 4 | P111: 4 | Q111: 4 | R111: 4 | S111: 3 | T111: 1 | U111: 1 | V111: 2 | W111: 4 | X111: 4 | Y111: 4 | Z111: 2 | AA111: 3 | AB111: 2 | AC111: 4 | AD111: 4 | AE111: 4 | AF111: 4 | AG111: 3 | AH111: 3 | AI111: 1 | AJ111: 3 | AK111: 2 | AL111: 2 | AM111: 2 | AN111: 4 | AO111: 4 | AP111: 4 | AQ111: 3 | AR111: 3 | AS111: 3 | AT111: 4 | AU111: 4 | AV111: 2 | AW111: 1 | AX111: 3 | AY111: 3 | AZ111: 4 | BA111: 2 | BB111: 1 | BC111: 2 | BD111: 2 | BE111: 1 | BF111: 3 | BG111: 3 | BH111: 1
A112: 4 | B112: 2 | C112: 3 | D112: 3 | E112: 1 | F112: 3 | G112: 3 | H112: 2 | I112: 1 | J112: 3 | K112: 1 | L112: 3 | M112: 1 | N112: 3 | O112: 1 | P112: 4 | Q112: 4 | R112: 3 | S112: 4 | T112: 2 | U112: 3 | V112: 2 | W112: 4 | X112: 1 | Y112: 4 | Z112: 3 | AA112: 2 | AB112: 3 | AC112: 4 | AD112: 3 | AE112: 4 | AF112: 2 | AG112: 1 | AH112: 3 | AI112: 1 | AJ112: 3 | AK112: 1 | AL112: 3 | AM112: 2 | AN112: 3 | AO112: 4 | AP112: 1 | AQ112: 2 | AR112: 2 | AS112: 4 | AT112: 2 | AU112: 1 | AV112: 4 | AW112: 3 | AX112: 2 | AY112: 3 | AZ112: 1 | BA112: 2 | BB112: 1 | BC112: 2 | BD112: 2 | BE112: 2 | BF112: 1 | BG112: 4 | BH112: 1
A113: 4 | B113: 4 | C113: 3 | D113: 3 | E113: 1 | F113: 2 | G113: 4 | H113: 2 | I113: 1 | J113: 3 | K113: 1 | L113: 3 | M113: 1 | N113: 2 | O113: 4 | P113: 2 | Q113: 1 | R113: 3 | S113: 3 | T113: 2 | U113: 1 | V113: 2 | W113: 4 | X113: 2 | Y113: 4 | Z113: 2 | AA113: 4 | AB113: 3 | AC113: 2 | AD113: 3 | AE113: 1 | AF113: 1 | AG113: 2 | AH113: 1 | AI113: 1 | AJ113: 3 | AK113: 1 | AL113: 2 | AM113: 2 | AN113: 3 | AO113: 4 | AP113: 4 | AQ113: 3 | AR113: 1 | AS113: 4 | AT113: 3 | AU113: 2 | AV113: 2 | AW113: 3 | AX113: 2 | AY113: 4 | AZ113: 4 | BA113: 3 | BB113: 4 | BC113: 2 | BD113: 1 | BE113: 3 | BF113: 2 | BG113: 3 | BH113: 3
A114: 4 | B114: 4 | C114: 3 | D114: 3 | E114: 1 | F114: 3 | G114: 3 | H114: 4 | I114: 1 | J114: 3 | K114: (en blanco) | L114: (en blanco) | M114: (en blanco) | N114: (en blanco) | O114: (en blanco) | P114: (en blanco) | Q114: (en blanco) | R114: (en blanco) | S114: (en blanco) | T114: (en blanco) | U114: 3 | V114: 2 | W114: (en blanco) | X114: (en blanco) | Y114: (en blanco) | Z114: 4 | AA114: 1 | AB114: 2 | AC114: 4 | AD114: (en blanco) | AE114: (en blanco) | AF114: (en blanco) | AG114: (en blanco) | AH114: (en blanco) | AI114: 1 | AJ114: (en blanco) | AK114: 1 | AL114: (en blanco) | AM114: (en blanco) | AN114: 4 | AO114: (en blanco) | AP114: 4 | AQ114: (en blanco) | AR114: (en blanco) | AS114: (en blanco) | AT114: 2 | AU114: 4 | AV114: 4 | AW114: (en blanco) | AX114: 2 | AY114: 4 | AZ114: 3 | BA114: 3 | BB114: 1 | BC114: 2 | BD114: 2 | BE114: (en blanco) | BF114: 2 | BG114: (en blanco) | BH114: 3
A115: 4 | B115: 4 | C115: 3 | D115: 3 | E115: 1 | F115: 3 | G115: 4 | H115: 4 | I115: 1 | J115: 3 | K115: 4 | L115: 4 | M115: 3 | N115: 3 | O115: 3 | P115: 3 | Q115: 3 | R115: 3 | S115: 3 | T115: 3 | U115: 3 | V115: 3 | W115: 3 | X115: 3 | Y115: 3 | Z115: 3 | AA115: 3 | AB115: 3 | AC115: 3 | AD115: 3 | AE115: 1 | AF115: 2 | AG115: 4 | AH115: 3 | AI115: 3 | AJ115: 1 | AK115: 2 | AL115: 3 | AM115: 2 | AN115: 3 | AO115: 3 | AP115: 4 | AQ115: 4 | AR115: 3 | AS115: 3 | AT115: 4 | AU115: 2 | AV115: 1 | AW115: 4 | AX115: 4 | AY115: 4 | AZ115: 4 | BA115: 2 | BB115: 1 | BC115: 1 | BD115: 3 | BE115: 1 | BF115: 3 | BG115: 1 | BH115: 3
A116: 4 | B116: 4 | C116: 3 | D116: 3 | E116: 3 | F116: 3 | G116: 4 | H116: 3 | I116: 1 | J116: 3 | K116: 1 | L116: 4 | M116: 1 | N116: 3 | O116: 4 | P116: 4 | Q116: 4 | R116: 1 | S116: 3 | T116: 1 | U116: 1 | V116: 2 | W116: 4 | X116: 2 | Y116: 4 | Z116: 2 | AA116: 1 | AB116: 3 | AC116: 4 | AD116: 3 | AE116: 4 | AF116: 4 | AG116: 1 | AH116: 3 | AI116: 1 | AJ116: 3 | AK116: 4 | AL116: 4 | AM116: 2 | AN116: 3 | AO116: 3 | AP116: 4 | AQ116: 3 | AR116: 3 | AS116: 3 | AT116: 3 | AU116: 4 | AV116: 4 | AW116: 4 | AX116: 3 | AY116: 4 | AZ116: 3 | BA116: 3 | BB116: 1 | BC116: 4 | BD116: 2 | BE116: 1 | BF116: 3 | BG116: 2 | BH116: 2
A117: Total 4

Sheet REACTIVOS_MAT
C2: Unidad de Diagnóstico | D2: Número de reactivo | E2: ARGUMENTACIÓN | G2: Unidad de Diagnóstico | H2: Número de reactivo | I2: ARGUMENTACIÓN | K2: Unidad de Diagnóstico | L2: Número de reactivo | M2: ARGUMENTACIÓN | O2: Unidad de Diagnóstico | P2: Número de reactivo | Q2: ARGUMENTACIÓN
C3: APELATIVO | D3: ►21 | E3: Para identificar la fracción equivalente, tanto el numerador como el denominador se dividen entre 3 y luego entre 7. Se obtiene la fracción 2/3. | H3: ►39 | I3: Para encontrar la ganancia de las 5 semanas primero se calcula el 20% de cada semana considerando los datos de la gráfica (v. columna 3 de la tabla que aquí se muestra). Luego ese 20% se convierte a pesos multiplicando por 13 (v. columna 4) y por 13.5 (v. columna 5) para tener los valores mínimos y máximos de la ganancia considerando la fluctuación del dólar. Al final se suman todos los posibles valores en pesos y se obtiene un intervalo para la ganancia aproximada que corresponde con la opción C. | L3: ►66 | M3: Para identificar la expresión algebraica se toma en cuenta la jerarquía de las operaciones. Debido a que en el primer factor se pide el cuadrado de un número, se descarta la opción B. El segundo factor es el cuadrado de una suma por lo que se descartan A y C. Por tanto D es la expresión que describe el enunciado. | P3: ►80 | Q3: Para identificar la expresión algebraica que expresa el dinero que juntaron Luis, María y Felipe, se traduce la descripción textual en lenguaje algebraico. Si Felipe aporta x pesos, y Luis aporta el doble, esto es igual a 2x. María pone lo de Luis menos 7, lo que es igual a 2x - 7. Los tres juntan $83, por lo que la expresión completa es igual a x + 2x + (2x - 7) = 83.
D4: ►22 | E4: Para calcular el resultado de la suma de fracciones se debe encontrar el denominador común, pudiendo obtenerse como la multiplicación de los tres denominadores que en este caso es 108. Luego se divide 108 entre cada denominador y se multiplica por su correspondiente numerador para obtener fracciones equivalentes. Una vez que se tiene el mismo denominador en las 3 fracciones, estas se suman obteniendo 636/108. Por último se simplifica el resultado al dividir entre 12 el numerador y el denominador. | H4: ►40 | I4: Para determinar el monto que tuvo que pagar la empresa de Silvia, primero se calculan los costos de los pedidos en pesos, previos al envío. Para ello, se multiplican los datos de la tabla por la cotización de cada día del euro (lunes 8,000 x 16.81 = 134 480) + (12,000 x 17.12 = 205,440), sumando un total aproximado de $339,900. El día miércoles, de acuerdo con la cotización, el envío tendrá un costo del 12% del total en euros [aplicando una regla de tres (12 x 20,000)/100 = 2,400]. Eso equivale a 2,400 euros que, aplicando el valor de la moneda el tercer día es aproximadamente igual a 41,400 pesos mexicanos (2,400 x 17.25 = 41,400). Por tanto, al sumar las cantidades aproximadas se sabe que Silvia debe $381,300, que se encuentra en el intervalo de 380 mil a 385 mil pesos. | L4: ►67 | M4: Para identificar la gráfica que representa la expresión debe notarse que únicamente la gráfica D corresponde con una ecuación cúbica. | P4: ►81 | Q4: Para saber el segundo aproximado en que habrá la misma cantidad de ambas bacterias, se requiere conjuntar la información de la gráfica y la tabla. De la primera se pueden extraer los puntos (0,0), (2,4), (4,16) y (6,36), de donde se deduce que la función que expresa el ritmo de crecimiento de los lactobacilos es y = x2. Luego, para conocer la función después de introducir un probiótico, en la tabla se observa que hay un incremento constante de m = (24 - 10)/(3 - 1) = 14/2 = 7. Por tanto, si se sustituye el punto (1,10) en y = mx + b, se deduce que b = y - mx entonces b = 10 - 7(1) = 10 - 7 = 3, por lo que la función es y = 7x + 3. Para saber en qué segundo habrá la misma cantidad de ambas bacterias se igualan ambas ecuaciones (x2 = 7x + 3), se procede a igualar a cero (x2 - 7x - 3 = 0) y se encuentra “x” utilizando la fórmula general: x = -b ± √(b2 - 4ac)/2a. Se sustituyen los valores a=1, b=-7 y c=-3 y se obtiene que 7 < x < 8.
D5: ►23 | E5: Para calcular el resultado, una posible estrategia es unir los términos de la multiplicación en una sola fracción. Esto implica factorizar el 9 y el 4 como (3)(3) y (2)(2) respectivamente, y por último sustituir por la unidad los términos comunes en el numerador y el denominador (3/3) (2/2) (5/5), obteniendo como residuo (3/2). | H5: ►41 | I5: Para identificar la figura que corresponde a la descripción deben interpretarse las indicaciones de la base del reactivo y traducir del lenguaje textual al lenguaje gráfico. La figura A tiene todos los elementos descritos, las demás figuras pueden descartarse por no contar con los orificios, los prismas triangulares o los prismas trapezoidales. | L5: ►68 | M5: Para obtener el resultado debe desarrollarse la función para -4 y 2. Posteriormente se dividen los valores. | P5: ►82 | Q5: Para identificar la expresión que ilustra la variación de velocidad, se observa que en el intervalo del minuto 13 al 20 la pendiente es negativa (lo que descarta las opciones C y D). Para calcular el valor exacto se ubican los puntos (13, 80) y (20, 40) y se obtiene -40/7. Utilizando la forma punto pendiente, se obtiene la expresión que presenta la opción B.
D6: ►24 | E6: Para obtener el resultado, se toma en cuenta tanto la jerarquía de operaciones como los corchetes y paréntesis y primero se realizan las operaciones que se encuentran más anidadas de la ecuación. Se continúa haciendo operaciones básicas (sumas, restas, multiplicaciones o divisiones), hasta obtener el resultado que es igual a 17. √49 + {52 + [8 - 5(7 - 2)] + 2} = 7 + {25 + [8 - 5(7 - 2)] + 2} = 7 + {25 + [8 - 5(5)] + 2} = 7 + {25 + [8 - 25] + 2} = 7 + {25 + [-17] + 2} = 7 + [25 - 17] + 2 = 7 + 8 + 2 = 17 | H6: ►42 | I6: Para identificar las figuras en que se descompone el juguete, se reconoce que la pirámide es el cuerpo principal en la imagen. Además, hay esferas pequeñas y un cilindro corto en el centro del juguete, lo que descarta las opciones A y D. Después, se descarta la opción C porque no incluye la imagen de los cilindros largos y delgados que se muestran en las cuatro esquinas de la imagen. | L6: ►69 | M6: Para identificar la gráfica que corresponde con la expresión algebraica, se toma en cuenta que en la base del reactivo se presenta la ecuación de la circunferencia en su forma cónica, donde el centro de la misma esta en el punto (1,1) y el radio es 1. | P6: ►83 | Q6: Para determinar el consumo de litros de pintura si Pedro y Juan trabajan 8 horas, se debe observar que la gráfica muestra que Pedro pinta 3 m2 por hora, mientras que Juan pinta 4 m2 en el mismo tiempo. Entonces, si en 8 horas Pedro pinta 3 x 8 = 24 m2, y Juan pinta 4 x 8 = 32 m2, se sustituyen los valores en la fórmula que se muestra en la base. Finalmente, entre los dos gastan C = 24/2 + 32/2 = 12 + 16 = 28 litros.
D7: ►25 | E7: Para obtener el resultado se considera que, en la división de fracciones, se requiere una multiplicación "cruzada" de numeradores y denominadores. Así, el numerador de la primera fracción se multiplica por denominador de la segunda fracción para obtener el numerador del resultado (5 x 3 = 15); luego el denominador de la primera fracción se multiplica por el numerador de la segunda fracción y se obtiene el denominador del resultado (8 x 5 = 40). Esto resulta en la fracción 15/40, que se simplifica obteniendo la quinta parte y es igual a 3/8. | H7: ►43 | I7: Para identificar las coordenadas de la casa de Cynthia y la casa de Karina, se considera que la casa de Angélica, que es el número 1, coincide con el centro del plano cartesiano (0,0). A partir de ahí se cuentan las posiciones, primero en el eje X y luego en el eje Y, y se identifica que el número 5 de Cynthia esta en (3,-4) y el 3 de Karina en (4,3). | L7: ►70 | M7: Para obtener el volumen del gas debe notarse que, si la presión se reduce a la mitad, entonces el volumen se duplica, por tanto se incrementa a 10 litros. | P7: ►84 | Q7: Para identificar la recta paralela de la ecuación y - 2x - 3 = 0 pueden calcularse los puntos que atraviesa la recta con el eje X (cuando y es 0 x es igual a -3/2) y con el eje Y (cuando x es 0 y es igual a 3), y luego desplazar la recta de forma que la ordenada al origen sea -2, obteniendo la opción C.
D8: ►26 | E8: Para identificar el número dentro del intervalo, una estrategia es convertir las fracciones a decimales obteniendo el cociente de los numeradores entre los denominadores. Después de ello se sabe que el valor a encontrar debe estar entre -0.2 y 0.8. Considerando las posibilidades (-0.66, -0.45, 0.60, 0.85) se encuentra que el resultado es la opción C. | H8: ►44 | I8: Para identificar la imagen tridimensional se observa que, de acuerdo con la vista superior, existe una caja sostenida por tres prismas rectangulares que la atraviesan (lo que descarta a las opciones C y D). Después, atendiendo a las vistas frontal y superior se observa que dos de esos prismas son atravesados por un cuarto prisma rectangular que sólo aparece en la opción B. | L8: ►71 | M8: Para estimar el promedio de computadores defectuosas almacenadas en el semestre, se suman los valores de cada mes y se dividen entre seis meses (20 + 55 + 35 + 60 + 10 + 35)/6 = 215/6 = 35.8. | P8: ►85 | Q8: Para identificar el segundo y distancia en que Ana alcanzará a Carla, una estrategia es igualar la distancia que cada una recorre con su respectiva rapidez. Para ello, en principio y con los datos de la gráfica, se puede calcular la rapidez de Carla obteniendo la pendiente después de identificar dos puntos. Considerando que (0,0) y (50, 400) y que m = (y2 - y1) / (x2 - x1), entonces la pendiente es igual a (400 - 0) / (50 - 0) = 400 / 50 = 8. Por tanto y si consideramos la fórmula que se señala en el enunciado para calcular la distancia (D = Rt), la distancia recorrida por Carla es DC = 8t. A su vez, la distancia que recorre Ana se calcula considerando que su rapidez es igual a la de Carla más un 20%, menos 5 segundos que le da de ventaja, esto es DA = 8 (1.20)(t - 5). Igualando las dos distancias se obtiene: 8 (1.20)(t - 5) = 8t 9.6 (t - 5) = 8t 9.6t - 48 = 8t 9.6t - 8t = 48 1.6t = 48 t = 48 / 1.6 t = 30 seg. Sustituyendo este tiempo en la distancia de Carla tenemos que DC = 8(30) = 240 mts, y si Ana le dio 5 minutos ventaja ella corrió 25 segundos para alcanzarla.
D9: ►27 | E9: Para identificar la recta con el número de jabones que salieron a la venta, se restan los 8 jabones defectuosos a la producción de 15 jabones y se suman los 4 que se recuperaron (que corresponden a 2/4 o 1/2 de 8). Se obtienen 11 jabones que están representados gráficamente en la opción D. | H9: ►45 | I9: Para obtener la medida de la barda diagonal, se debe calcular el ancho y largo de la oficina, para lo que se requiere conocer el número de losetas de cada lado (que corresponde con los elementos 2 y 4 del listado). Posteriormente y contando con los datos que representan los catetos del triángulo, se aplica el teorema de Pitágoras (corresponde con el elemento 6) para encontrar el valor de la hipotenusa. | L9: ►72 | M9: Para obtener el número que falta en la tabla, una posible estrategia es graficar los datos y establecer la relación entre el ahorro en pesos y el día del mes que puede expresarse mediante la ecuación: y = x2 + 2x + 1. Luego, para despejar y se sustituye el valor del onceavo día (x = 11) obteniendo: y = (11)(11) + 2(11) + 1 y = 121 + 22 + 1 y = 144 | P9: ►86 | Q9: Para identificar la siguiente figura en la sucesión debe notarse que en la base se le hace girar, cada vez, 90º sobre su eje transversal. Así, la figura 1 que es igual a la D, aparece en las posiciones 1, 5, 9, 13, 17, ...
D10: ►28 | E10: Para identificar el producto con menor el costo por litro, una estrategia es, primero, dividir el precio por presentación de cada producto entre la cantidad de kilos. Así se sabe que cada kilo de Frutisa cuesta $15.5, de Juicelux $16, de Sabormax $15 y de Tiqui tiqui $19. A su vez, estos precios se dividen entre los litros que rinde cada kilo (0.775, 0.8, 0.75 y 0.95, respectivamente) y se sabe que Sabormax es el producto que tiene menor costo por litro. | H10: ►46 | I10: Para identificar el movimiento debe notarse que la posición de la pieza para completar la figura mayor es: Por lo tanto, la pieza debe hacer un giro de 180°. | L10: ►73 | M10: Para identificar la expresión algebraica que corresponde a las ventas por semana, se observa que la imagen muestra que la recta toca los puntos (2,5) y (3,7). La pendiente es igual a m = (y2 - y1) / (x2 - x1), es decir, m = (7 - 5)/(3 - 2) = 2/1 = 2. Después, tomando el punto (2,5) y sustituyendo los valores en la expresión 2 = (y - 5)/(x - 2) se obtiene como resultado 2(x - 2) = y - 5, que al simplificar resulta 2x - 4 = y - 5 y se identifica con la forma general 2x - y + 1 = 0. | P10: ►87 | Q10: Para encontrar el volumen del cilindro, se sustituyen los valores de la imagen en la fórmula: AB x H, es decir, área de la base por altura. Para calcular AB se tiene que aplicar a su vez la fórmula de la superficie de un círculo que es Posteriormente, se multiplica este resultado por la altura: 50.24 x 12 = 602.88 cm3
D11: ►29 | E11: Para determinar la distancia en metros que tuvo que recorrer el jugador, primero se obtiene la distancia en yardas multiplicando 5 segundos por las 8 yardas = 40 yardas. Luego, se multiplica el resultado por 0.91 para hacer la conversión a metros y se obtienen 36.4 m. | H11: ►47 | I11: Para identificar el número de diagonales desde un vértice, se realiza el doblez por la mitad y se nota que se pueden trazar dos diagonales de cada vértice de la figura resultante, como se muestra en la figura: | L11: ►74 | M11: Para obtener el ancho del terreno en metros, se parte de que la base tiene el doble de la altura menos 8 metros, por lo que es igual a 2x - 8. La ecuación para obtener el área del rectángulo queda (x)(2x - 8) = 330, lo que permite plantear la ecuación cuadrática 2x2 - 8x - 330 = 0. Para resolverla utilizando la fórmula general: x = -b ± √(b2 - 4ac)/2a, se sustituyen los valores a=2, b=-8, c=-330 y se obtiene un valor de ancho igual a 15. Para comprobar el resultado se puede multiplicar 15 por 22 (que es el doble del ancho menos 8) y se obtiene 330. | P11: ►88 | Q11: Para identificar el punto en el que está sentado Pedro, se relacionan ambas imágenes y se considera que la imagen capta la parte trasera de muchas sillas (lo que descarta A y B) y que se tiene mayor visión de la parte izquierda del teatro (lo que descarta D).
D12: ►30 | E12: Para obtener el costo de los 55 cuadernos, una estrategia es plantear una ecuación considerando que 28 cuadernos equivalen a $1,360 y los 55 cuadernos equivalen a "x" pesos. Si se tiene que 28/55 = 1360/x se despeja x y se obtiene la opción C. 28 x = 1360 (55) 28 x = 74800 x = 74800/28 x = 2671.42 pesos. | H12: ►48 | I12: Para obtener el área de la rejilla debe restarse la superficie de los 16 círculos (utilizando la fórmula π x r2, que es igual a 3.14 x r2 = 3.14 x 1) al área del cuadrado (16 x 16) según las siguientes operaciones: A = (16)(16) - (3.14)(1)(16) A = 256 - (3.14)(16) A = 256 - 50.24 A = 205.76 cm² | L12: ►75 | M12: Para encontrar el precio de la pluma primero se plantea el sistema de ecuaciones. Si “L” representa el precio del lápiz y “p” el de la pluma, entonces: 4L + 8p = 40 (1) 6L + 2p = 25 (2) Si se despeja “L” de la ecuación (1) y se sustituye en la ecuación (2) para encontrar "p" se obtiene: L = (40 - 8p)/4 = 10 - 2p 6(10 - 2p) + 2p = 25 60 - 12p + 2p = 25 60 - 10p = 25 10p = 60 - 25 = 35 p = 35/10 = 3.5 Para comprobar si la solución es correcta se encuentra el valor de L (L = 10 - 2(3.5) = 10 - 7 = 3) y ambos valores se sustituyen en las ecuaciones (1) y (2): 4(3) + 8(3.5) = 40 (1) 6(3) + 2(3.5) = 25 (2) | P12: ►89 | Q12: Para calcular la longitud del segmento A se construye el triángulo rectángulo que hace falta para aplicar el Teorema de Pitágoras, restando a la longitud de la base mayor del trapecio la longitud de la base menor. Al aplicar el Teorema de Pitágoras realiza las operaciones siguientes: A =
D13: ►31 | E13: Para obtener el porcentaje que se cobra de impuestos, se parte de que $1,200 es el 100% y se puede plantear una regla de tres [(225 x 100)/1,200]. Así, se obtiene que $225 equivalen a 18.75%. | H13: ►49 | I13: Para identificar la figura que debe elaborar el escultor, debe notarse que el cuerpo en la cima de la figura corresponde a medio prisma pentagonal, figura que solo se muestra en el inciso D. | L13: ►76 | M13: Para obtener la regla de correspondencia se evalúa n para cada uno de los datos de la tabla, descartando la opción A porque los datos tendrían que ser igual en ambas columnas. Luego se constata que, solo para la longitud igual a 3, se puede usar la regla de correspondencia indicada en la opción B. Posteriormente, se prueban las reglas de C y D y se identifica que 200 n2 es la p correspondiente a cada n. | P13: ►90 | Q13: Para identificar la figura con el mayor volumen se calculan las dimensiones cúbicas de cada una considerando que la fórmula del volumen de la pirámide rectangular es igual a (l x l x h / 3) y la de un cono es (π x r2 x h / 3). La pirámide en la opción B es mayor que las otras figuras (9 x 9)(7) / 3 = 189.
D14: ►32 | E14: Para determinar el intervalo de dinero que gastará en total Enrique en su fiesta, una estrategia es pensar en términos de variaciones y, por un lado, sumar los valores más pequeños posibles correspondientes al gasto por invitado (30 x 100) + (30 x 300) = 3000 + 9000 = 12000. Además, se calculan los valores más grandes posibles considerando que se gasta lo máximo por invitado (30 x 100) + (30 x 400) = (6000 + 12000) = 18000. Se obtiene que el gasto estará entre $12,000 y $18,000. | H14: ►50 | I14: Para obtener el número de latas que caben en la caja, una estrategia es hacer la conversión de pulgadas a centímetros para saber cuánto mide cada lado de la lata (altura = 4 x 2.5 = 10 cm, diámetro = 2 x 2.5 = 5 cm). Después se calcula cuántas latas caben a lo largo y a lo ancho de la caja, para lo cual se dividen las medidas obtenidas entre 80, 30 y 50 (diámetro de 5 cm se toma como largo y ancho de la lata: 80/5 = 16, 30/5 = 6, 50/10 = 5) y finalmente se multiplican los números calculados (16 x 6 x 5 = 480). Se asume que son medidas aproximadas puesto que las latas tienen lados curvos y pueden moverse al ser transportadas. | L14: ►77 | M14: Para identificar la expresión que representa la cantidad de metros que corren cada día Carlos y Susana, debe notarse gráficamente que la sucesión de Carlos es aritmética, y la de Susana es geométrica, . Otra estrategia es probar los valores de las metas de uno o varios días de competencia de Carlos y Susana, y sustituir en las diferentes opciones. | P14: ►91 | Q14: Para obtener el número de bocinas que tiene cada caja, una estrategia es convertir las medidas de la caja a pulgadas para manejar siempre las mismas unidades. Si se dividen las medidas entre 2.5 cm, se obtienen 20, 30 y 30 pulgadas, respectivamente. Posteriormente, se obtiene el volumen de cada bocina en pulgadas cúbicas (5 x 15 x 10 = 750), y el de la caja en pulgadas cúbicas (20 x 30 x 30 = 18,000). Por último, se dividen ambas cantidades y se obtiene 24.
D15: ►33 | E15: Para obtener la cardinalidad de los conjuntos se convierten a número las diferentes proporciones de personas según su actividad en el museo. Se toman las 3/4 partes de 60 obteniendo como resultado 45 para quienes entraron al cine. El resto sería 15 personas (60 - 45) de las cuales el 60% recorren el museo [aplicando una regla de tres (60 x 15)/100] . Esto da como resultado 9 personas cuya diferencia con el resto (15 - 9 = 6) permite conocer el número de personas que se quedan en la cafetería. | L15: ►78 | M15: Para identificar la frase que completa la relación entre los segundos y la distancia recorrida, se observa que al multiplicar los segundos por 2 y sumar 4 al resultado se cumplen todas las mediciones. | P15: ►92 | Q15: Para obtener el número de caras del cuerpo mayor se identifica que el plano que corta al octaedro por ABC, genera una cara más de las que el poliedro ya tiene. Por tanto 8 + 1 = 9.
D16: ►34 | E16: Para obtener el cambio del billete de $200 se le resta la compra total, aplicando las siguientes operaciones: | L16: ►79 | M16: Para saber qué artículos compraron los dos amigos se plantea y resuelve el siguiente sistema de ecuaciones: 5x + 3y = 550 (1) 7x + 2y = 660 (2) Utilizando cualquiera de los métodos para solución de ecuaciones se obtiene que x = 80 y = 50, de donde se concluye que los artículos son: novelas y playeras. | P16: ►93 | Q16: Para obtener los centímetros de listón que se necesitan se debe calcular el perímetro del mantel. La sección circular corresponde a tres cuartas partes de una circunferencia, es decir, 0.75 de su perímetro, por lo que considerando la fórmula π x d se obtiene [0.75 x (3.14)(100)] = 235.5 cm. Además, la sección cuadrangular tiene 2 lados rectos de 50 cm cada uno, por lo que el perímetro total del mantel es igual a 235.5 + 50 + 50 = 335.5 cm
D17: ►35 | E17: Para obtener el monto que recibió Esteban por su camioneta se calcula devaluación por devaluación. En la primera se tiene que determinar el 25% de 100,000 [aplicando una regla de tres (25 x 100,000)/100 = 25,000], restar 100,000 menos su 25% (100,000 - 25,000 = 75,000) para obtener el valor del auto después de la primera devaluación. Después se calcula la décima parte del valor descontado (75,000 / 10 = 7,500) y se le resta al valor previo del automóvil (75,000 - 7,500 = 67,500). Finalmente se tiene que calcular el 80% de esa segunda devaluación [aplicando una regla de tres (80 x 67 500)/100 = 54,000] y se obtiene la opción D. | P17: ►94 | Q17: Para identificar la figura que se obtendrá se considera que el primer doblez se hace horizontalmente a lo largo de AC y luego se hace un corte simétrico pasando por B. Como no se indica algún giro, se descartan las opciones A, B y D.
D18: ►36 | E18: Para calcular la cantidad de litros que habrá en el tinaco en 2 horas una estrategia es, primero, obtener el tiempo que tomaría llenar el tinaco poniendo a trabajar a las tres llaves juntas. Para ello se plantea la ecuación: 1/5 + 1/6 + 1/30 = 1/x. El proceso de solución, considerando como común denominador (30x) es 6x + 5x + x = 30, que se simplifica 12x = 30, x = 30/12 , x = 2.5. Por tanto, les toma 2.5 horas llenar el tinaco. Esto significa que vierten: 6000/2.5 = 2400 litros cada hora. Por lo tanto, en 2 horas tendrá 2400 x 2 = 4800 litros el tinaco. | P18: ►95 | Q18: Para obtener los centímetros cuadrados de piel que requiere el artesano, se considera que el área del respaldo es la de un rectángulo cuyos lados miden 70 cm (110 cm de h menos 40 cm de a) y 60 cm (dos veces el radio del asiento), por tanto 70 x 60 = 4,200. Además, el área del asiento corresponde con un semicírculo de radio 30 cm, por lo que considerando la fórmula π x r2 se obtiene [3.14 x (30)(30)]/2 = 1,413. En suma, el área total es 4,200 + 1,413 = 5,613 cm2.
D19: ►37 | E19: Para determinar la recta que representa el resultado, primero se obtiene el costo total del tiempo que pasó la persona en el café internet considerando que 20 minutos es igual a 1/3 y que todos los demás intervalos están expresados en fracciones de hora, por tanto se multiplica el costo por hora de la siguiente manera: 20(1/3 + 1/2 + 1/4) = 20(13/12) = 10(13/6) = (5/3)(13) = 65/3 = 21 2/3. Luego, a ese resultado se le restan los $4 que le debía el encargado, con lo que su fracción a pagar es igual a 17 2/3.
D20: ►38 | E20: Para obtener el lado de los cubos se calcula el Máximo Común Divisor de 88, 72 y 16 que es 8, debido a que es el número mayor que divide a los tres datos aunque quede residuo.

Sheet MAT_21_26
F1: OPCIONES DE RESPUESTA

Sheet MAT_27 a 28
F1: OPCIONES DE RESPUESTA

Sheet MAT_29 a 33

Sheet MAT_34 a 38

Sheet MAT_39 a 40

Sheet MAT_41 a 44

Sheet MAT_45_50

Sheet MAT_66 - 71

Sheet MAT__72 - 79

Sheet MAT_80 - 84

Sheet MAT_85 - 95

Sheet PLANEACIÓN
A1: PLANEACIÓN CON BASE EN RESULTADOS
A4: NOMBRE DEL SUBSISTEMA | E4: TABLA DE MEJORA ACADÉMICA
A5: PORCENTAJE DE ESTUDIANTES DEL SUBSISTEMA ESCOLAR EN CADA NIVEL DE DESEMPEÑO EN PLANEA 2016 GLOBAL PARA EL SUBSISTEMA | E5: NIVEL DE DESEMPEÑO DE CADA ESCUELA | F5: FORTALEZAS Y DEBILIDADES ACADÉMICAS CON BASE EN LOS RESULTADOS DE PLANEA 2016 | N5: TEMÁTICAS PARA REFORZAR EN LA CURRÍCULA | V5: SUGERENCIAS DE ESTRATEGIAS PARA EL REFORZAMIENTO DE CADA TEMÁTICA | AD5: NECESIDADES INDISPENSABLES DE CAPACITACIÓN DEL DOCENTE PARA EL REFORZAMIENTO DE CADA TEMÁTICA
A6: I | B6: II | C6: III | D6: IV | F6: MATEMÁTICAS
A7: DIAGNÓSTICO DEL SUBSISTEMA ESCOLAR | E7: ESCUELA 1 | F7: NOMBRE DE LA ESCUELA O PLANTEL:
A8: COMENTARIOS: | E8: Escriba los porcentajes de estudiantes en cada nivel de desempeño de acuerdo a PLANEA 2017 en MATEMÁTICAS
E17: IV =
E18: III =
E19: II =
E20: I =
E27: ESCUELA 2 | F27: NOMBRE DE LA ESCUELA O PLANTEL:
E28: Escriba los porcentajes de estudiantes en cada nivel de desempeño de acuerdo a PLANEA 2017 en MATEMÁTICAS
E37: IV =
E38: III =
E39: II =
E40: I =
E47: ESCUELA 3 | F47: NOMBRE DE LA ESCUELA O PLANTEL:
E48: Escriba los porcentajes de estudiantes en cada nivel de desempeño de acuerdo a PLANEA 2017 en MATEMÁTICAS
E57: IV =
E58: III =
E59: II =
E60: I =
E67: ESCUELA 4 | F67: NOMBRE DE LA ESCUELA O PLANTEL:
E68: Escriba los porcentajes de estudiantes en cada nivel de desempeño de acuerdo a PLANEA 2017 en MATEMÁTICAS
E77: IV =
E78: III =
E79: II =
E80: I =
E87: ESCUELA 5 | F87: NOMBRE DE LA ESCUELA O PLANTEL:
E88: Escriba los porcentajes de estudiantes en cada nivel de desempeño de acuerdo a PLANEA 2017 en MATEMÁTICAS
E97: IV =
E98: III =
E99: II =
E100: I =
E107: ESCUELA 6 | F107: NOMBRE DE LA ESCUELA O PLANTEL:
E108: Escriba los porcentajes de estudiantes en cada nivel de desempeño de acuerdo a PLANEA 2017 en MATEMÁTICAS
E117: IV =
E118: III =
E119: II =
E120: I =
E127: ESCUELA 7 | F127: NOMBRE DE LA ESCUELA O PLANTEL:
E128: Escriba los porcentajes de estudiantes en cada nivel de desempeño de acuerdo a PLANEA 2017 en MATEMÁTICAS
E137: IV =
E138: III =
E139: II =
E140: I =
E147: ESCUELA 8 | F147: NOMBRE DE LA ESCUELA O PLANTEL:
E148: Escriba los porcentajes de estudiantes en cada nivel de desempeño de acuerdo a PLANEA 2017 en MATEMÁTICAS
E157: IV =
E158: III =
E159: II =
E160: I =
E167: ESCUELA 9 | F167: NOMBRE DE LA ESCUELA O PLANTEL:
E168: Escriba los porcentajes de estudiantes en cada nivel de desempeño de acuerdo a PLANEA 2017 en MATEMÁTICAS
E177: IV =
E178: III =
E179: II =
E180: I =
E187: ESCUELA 10 | F187: NOMBRE DE LA ESCUELA O PLANTEL:
E188: Escriba los porcentajes de estudiantes en cada nivel de desempeño de acuerdo a PLANEA 2017 en MATEMÁTICAS
E197: IV =
E198: III =
E199: II =
E200: I =
E207: ESCUELA 11 | F207: NOMBRE DE LA ESCUELA O PLANTEL:
E208: Escriba los porcentajes de estudiantes en cada nivel de desempeño de acuerdo a PLANEA 2017 en MATEMÁTICAS
E217: IV =
E218: III =
E219: II =
E220: I =
E227: ESCUELA 12 | F227: NOMBRE DE LA ESCUELA O PLANTEL:
E228: Escriba los porcentajes de estudiantes en cada nivel de desempeño de acuerdo a PLANEA 2017 en MATEMÁTICAS
E237: IV =
E238: III =
E239: II =
E240: I =
E247: ESCUELA 13 | F247: NOMBRE DE LA ESCUELA O PLANTEL:
E248: Escriba los porcentajes de estudiantes en cada nivel de desempeño de acuerdo a PLANEA 2017 en MATEMÁTICAS
E257: IV =
E258: III =
E259: II =
E260: I =
E267: ESCUELA 14 | F267: NOMBRE DE LA ESCUELA O PLANTEL:
E268: Escriba los porcentajes de estudiantes en cada nivel de desempeño de acuerdo a PLANEA 2017 en MATEMÁTICAS
E277: IV =
E278: III =
E279: II =
E280: I =
E287: ESCUELA 15 | F287: NOMBRE DE LA ESCUELA O PLANTEL:
E288: Escriba los porcentajes de estudiantes en cada nivel de desempeño de acuerdo a PLANEA 2017 en MATEMÁTICAS
E297: IV =
E298: III =
E299: II =
E300: I =
